Workbook

Sheet START
A1: =muni -> FS184 Matjhabeng

Sheet Instructions
D2: 2020
X4: Yes
X5: No
W7: Type of Entities Range: | X7: Parent Municipality
X8: Consolidated Information
W10: Date linked | X10: 3
W11: Date | X11: =VLOOKUP(X10,W39:X55,2) -> M03 September | Y11: 2013-08-01
W19: MTREF Range: | X19: 2008
X20: 2009
X21: 2010
X22: 2011
X23: 2012
X24: 2013
X25: 2014
X26: 2015
X27: 2016
X28: 2017
X29: 2018
X30: 2019
X31: 2020
X32: 2021
X33: 2022
W34: MTREF Linked:
W35: MTREF: | X35: 8
X36: =INDEX(X19:X33,X35,1) -> 2015
W37: Fin Year:
X38: =MTREF&"/"&RIGHT(MTREF,2)+1 -> 2015/16
V39: Date/type of report | W39: 1 | X39: M01 July
W40: 2 | X40: M02 August
W41: 3 | X41: M03 September
W42: 4 | X42: M04 October
W43: 5 | X43: M05 November
W44: 6 | X44: M06 December
W45: 7 | X45: M07 January
W46: 8 | X46: M08 February
W47: 9 | X47: M09 March
W48: 10 | X48: M10 April
W49: 11 | X49: M11 May
W50: 12 | X50: M12 June
W51: 13 | X51: Q1 First Quarter
W52: 14 | X52: Q2 Second Quarter
W53: 15 | X53: Q3 Third Quarter
W54: 16 | X54: Q4 Fourth Quarter
W55: 17 | X55: Mid-Year Assessment

Sheet Template names (hidden)
A1: Common sheet headings
A2: Head1 | B2: =HLOOKUP(MTREF,Headings,2) -> 2014/15 | C2: Prior year -1
A3: Head2 | B3: =HLOOKUP(MTREF,Headings,5) -> Budget Year 2015/16 | C3: Year of approved budget
A4: Head2A | B4: =HLOOKUP(MTREF,Headings,4) -> 2015/16 | C4: Approved budget year
A5: Head3 | B5: =HLOOKUP(MTREF,Headings,3) -> 2015/16 Medium Term Revenue & Expenditure Framework | C5: MTREF header name
A6: Head5 | B6: Audited Outcome
A7: Head5A | B7: Outcome
A8: Head5B | B8: Pre-audit outcome
A9: Head6 | B9: Original Budget
A10: Head7 | B10: Adjusted Budget
A11: Head8 | B11: Full Year Forecast
A12: Head9 | B12: =HLOOKUP(MTREF,Headings,5) -> Budget Year 2015/16 | C12: 1st year of MTREF | D12: Year1
A13: Head10 | B13: =HLOOKUP(MTREF,Headings,6) -> Budget Year +1 2016/17 | C13: 2nd year of MTREF | D13: Year2
A14: Head11 | B14: =HLOOKUP(MTREF,Headings,7) -> Budget Year +2 2017/18 | C14: 3rd year of MTREF | D14: Year3
A15: Head12 | B15: Forecast 2010/11 | D15: Year4
A16: Head13 | B16: Forecast 2011/12 | D16: Year5
A17: Head14 | B17: Forecast 2012/13 | D17: Year6
A18: Head15 | B18: Forecast 2013/14 | D18: Year7
A19: Head16 | B19: Forecast 2014/15 | D19: Year8
A20: Head17 | B20: Forecast 2015/16 | D20: Year9
A21: Head18 | B21: Forecast 2016/17 | D21: Year10
A22: Head19 | B22: Forecast 2017/18 | D22: Year11
A23: Head20 | B23: Forecast 2018/19 | D23: Year12
A24: Head21 | B24: Forecast 2019/20 | D24: Year13
A25: Head22 | B25: Forecast 2020/21 | D25: Year14
A26: Head23 | B26: Forecast 2021/22 | D26: Year15
A27: Head24 | B27: Description | D27: Desc
A28: Head25 | B28: Schedule of funding diligence | D28: fdil
A29: Head26 | B29: Vote Description | D29: VDesc
A30: Head27 | B30: Ref
A31: Head27a | B31: References
A32: Head28 | B32: Surplus/ (Deficit) for the year | D32: Result
A33: Head29 | B33: Annual target 2007/08
A34: Head30 | B34: Revised target 2007/08
A35: Head31 | B35: Quarter ended 30 September
A36: Head32 | B36: Quarter ended 31 December
A37: Head33 | B37: Quarter ended 31 March
A38: Head34 | B38: Quarter ended 30 June
A39: Head35 | B39: Variance explanation
A40: Head36 | B40: YTD Actual 31 Dec
A41: Head37 | B41: YTD Budget 31 Dec
A42: Head38 | B42: Monthly actual
A43: Head39 | B43: YearTD actual
A44: Head40 | B44: YearTD budget
A45: Head41 | B45: YTD variance
A46: Head42 | B46: Surplus/ (Deficit) for the yr/period
A47: Head43 | B47: =Head3&" Summary" -> 2015/16 Medium Term Revenue & Expenditure Framework Summary
A48: Head44 | B48: 1996 Census
A49: Head45 | B49: 2001 Census
A50: Head46 | B50: - Adjustments Budget - Month YYYY
A51: Head47 | B51: Previous target year to complete
A52: Head48 | B52: Present value
A53: Head49 | B53: Virement
A54: Head50 | B54: Other Adjusts.
A55: Head51 | B55: Accum. Funds
A56: Head52 | B56: Multi-year capital
A57: Head53 | B57: Unfore. Unavoid.
A58: Head54 | B58: Prior Adjusted
A59: Head55 | B59: Nat. or Prov. Govt
A60: Head56 | B60: Total Adjusts.
A61: Head57 | B61: =date -> M03 September
A62: Head58 | B62: Parent muni.
A63: Head59 | B63: Downward adjusts
A64: Head60 | B64: Month | C64: Report header part name | D64: =MONTH(date) -> 
A65: SFPerf1 | B65: Budgeted Financial Performance
A66: SFPerf2 | B66: Forecast Financial Performance
A67: SFPos1 | B67: Budgeted Financial Position
A68: SFPos2 | B68: Forecast Financial Position
A69: Cash1 | B69: Budget Cash Flow
A70: Cash2 | B70: Forecast Cash Flow
A71: RandM | B71: Expenditure includes repairs & maintenance of R'000
A72: Standard nomenclature
A73: Muni | B73: ='Lookup and lists'!B27 -> FS184 Matjhabeng
A74: Municipal Entities | B74: 2 | C74: Type of report: | D74: 3
A75: =IF((MuniEntities=1)*(MuniType=2),"YES","NO") -> NO | B75: Does this municipality have entities (consolidated budget and entity budgets required)? YES/NO
A76: s71 (Monthly Mayor report) schedules and charts
A77: S71sum | B77: =IF(Consolques="YES",E77,F77) -> Table C1 Monthly Budget Statement Summary | D77: Table C1 | E77: =D77&"Consolidated Monthly Budget Statement Summary" -> Table C1 Consolidated Monthly Budget Statement Summary | F77: =D77&"Monthly Budget Statement Summary" -> Table C1 Monthly Budget Statement Summary
A78: S71C | B78: Table C3 Monthly Budget Statement - Financial Performance (revenue and expenditure by municipal vote) | D78: Table C3 | E78: =D78&"Consolidated Monthly Budget Statement - Financial Performance (revenue and expenditure by municipal vote) " -> Table C3 Consolidated Monthly Budget Statement - Financial Performance (revenue and expenditure by municipal vote) | F78: =D78&"Monthly Budget Statement - Financial Performance (revenue and expenditure by municipal vote)" -> Table C3 Monthly Budget Statement - Financial Performance (revenue and expenditure by municipal vote)
A79: S71A | B79: =IF(Consolques="YES",E79,F79) -> Table C2 Monthly Budget Statement - Financial Performance (standard classification) | D79: Table C2 | E79: =D79&"Consolidated Monthly Budget Statement - Financial Performance (standard classification) " -> Table C2 Consolidated Monthly Budget Statement - Financial Performance (standard classification) | F79: =D79&"Monthly Budget Statement - Financial Performance (standard classification)" -> Table C2 Monthly Budget Statement - Financial Performance (standard classification)
A80: S71B | B80: =IF(Consolques="YES",E80,F80) -> Table C4 Monthly Budget Statement - Financial Performance (revenue and expenditure) | D80: Table C4 | E80: =D80&"Consolidated Monthly Budget Statement - Financial Performance (revenue and expenditure) " -> Table C4 Consolidated Monthly Budget Statement - Financial Performance (revenue and expenditure) | F80: =D80&"Monthly Budget Statement - Financial Performance (revenue and expenditure)" -> Table C4 Monthly Budget Statement - Financial Performance (revenue and expenditure)
A81: S71D | B81: =IF(Consolques="YES",E81,F81) -> Table C5 Monthly Budget Statement - Capital Expenditure (municipal vote, standard classification and funding) | D81: Table C5 | E81: =D81&"Consolidated Monthly Budget Statement - Capital Expenditure (municipal vote, standard classification and funding " -> Table C5 Consolidated Monthly Budget Statement - Capital Expenditure (municipal vote, standard classification and funding | F81: =D81&"Monthly Budget Statement - Capital Expenditure (municipal vote, standard classification and funding)" -> Table C5 Monthly Budget Statement - Capital Expenditure (municipal vote, standard classification and funding)
A82: S71E | B82: Table C6 Monthly Budget Statement - Financial Position | D82: Table C6 | E82: =D82&"Consolidated Monthly Budget Statement - Financial Position " -> Table C6 Consolidated Monthly Budget Statement - Financial Position | F82: =D82&"Monthly Budget Statement - Financial Position" -> Table C6 Monthly Budget Statement - Financial Position
A83: S71F | B83: Table C7 Monthly Budget Statement - Cash Flow | D83: Table C7 | E83: =D83&"Consolidated Monthly Budget Statement - Cash Flow " -> Table C7 Consolidated Monthly Budget Statement - Cash Flow | F83: =D83&"Monthly Budget Statement - Cash Flow " -> Table C7 Monthly Budget Statement - Cash Flow
A84: S71G | B84: =D84&"Material variance explanations " -> Supporting Table SC1 Material variance explanations | D84: Supporting Table SC1
A85: S71H | B85: =D85&"Monthly Budget Statement - performance indicators " -> Supporting Table SC2 Monthly Budget Statement - performance indicators | D85: Supporting Table SC2
A86: S71I | B86: =D86&"Monthly Budget Statement - aged debtors" -> Supporting Table SC3 Monthly Budget Statement - aged debtors | D86: Supporting Table SC3
A87: S71J | B87: =D87&"Monthly Budget Statement - aged creditors " -> Supporting Table SC4 Monthly Budget Statement - aged creditors | D87: Supporting Table SC4
A88: S71K | B88: =D88&"Monthly Budget Statement - investment portfolio " -> Supporting Table SC5 Monthly Budget Statement - investment portfolio | D88: Supporting Table SC5
A89: S71L | B89: =D89&"Monthly Budget Statement - transfers and grant receipts " -> Supporting Table SC6 Monthly Budget Statement - transfers and grant receipts | D89: Supporting Table SC6
A90: S71M | B90: =D90&" Monthly Budget Statement - transfers and grant expenditure " -> Supporting Table SC7(1) Monthly Budget Statement - transfers and grant expenditure | D90: Supporting Table SC7(1)
A91: S71N | B91: =D91&"Monthly Budget Statement - councillor and staff benefits " -> Supporting Table SC8 Monthly Budget Statement - councillor and staff benefits | D91: Supporting Table SC8
A92: S71O | B92: =D92&"Monthly Budget Statement - actuals and revised targets for cash receipts" -> Supporting Table SC9 Monthly Budget Statement - actuals and revised targets for cash receipts | D92: Supporting Table SC9
A93: S71P | B93: =IF(Consolques="YES",E93,F93) -> NOT REQUIRED - municipality does not have entities or this is the parent municipality's budget | D93: Supporting Table SC10 | E93: =D93&"Monthly Budget Statement - Parent Municipality Financial Performance (revenue and expenditure) " -> Supporting Table SC10 Monthly Budget Statement - Parent Municipality Financial Performance (revenue and expenditure) | F93: NOT REQUIRED - municipality does not have entities or this is the parent municipality's budget
A94: S71Q | B94: NOT REQUIRED - municipality does not have entities or this is the parent municipality's budget | D94: Supporting Table SC11 | E94: =D94&"Monthly Budget Statement - summary of municipal entities" -> Supporting Table SC11 Monthly Budget Statement - summary of municipal entities | F94: NOT REQUIRED - municipality does not have entities or this is the parent municipality's budget
A95: S71R | B95: Supporting Table SC12 Monthly Budget Statement - capital expenditure trend | D95: Supporting Table SC12 | E95: =D95&"Consolidated Monthly Budget Statement - capital expenditure trend " -> Supporting Table SC12 Consolidated Monthly Budget Statement - capital expenditure trend | F95: =D95&"Monthly Budget Statement - capital expenditure trend" -> Supporting Table SC12 Monthly Budget Statement - capital expenditure trend
A96: S71Sa | B96: Supporting Table SC13a Monthly Budget Statement - capital expenditure on new assets by asset class | D96: Supporting Table SC13a | E96: =D96&"Consolidated Monthly Budget Statement - capital expenditure on new assets by asset class" -> Supporting Table SC13a Consolidated Monthly Budget Statement - capital expenditure on new assets by asset class | F96: =D96&"Monthly Budget Statement - capital expenditure on new assets by asset class" -> Supporting Table SC13a Monthly Budget Statement - capital expenditure on new assets by asset class
A97: S71Sb | B97: Supporting Table SC13b Monthly Budget Statement - capital expenditure on renewal of existing assets by asset class | D97: Supporting Table SC13b | E97: =D97&"Consolidated Monthly Budget Statement - capital expenditure on renewal of existing assets by asset class" -> Supporting Table SC13b Consolidated Monthly Budget Statement - capital expenditure on renewal of existing assets by asset class | F97: =D97&"Monthly Budget Statement - capital expenditure on renewal of existing assets by asset class" -> Supporting Table SC13b Monthly Budget Statement - capital expenditure on renewal of existing assets by asset class
A98: S71Sc | B98: Supporting Table SC13c Monthly Budget Statement - expenditure on repairs and maintenance by asset class | D98: Supporting Table SC13c | E98: =D98&"Consolidated Monthly Budget Statement - expenditure on repairs and maintenance by asset class" -> Supporting Table SC13c Consolidated Monthly Budget Statement - expenditure on repairs and maintenance by asset class | F98: =D98&"Monthly Budget Statement - expenditure on repairs and maintenance by asset class" -> Supporting Table SC13c Monthly Budget Statement - expenditure on repairs and maintenance by asset class
A99: S71Sd | B99: Supporting Table SC13d Monthly Budget Statement - depreciation by asset class | D99: Supporting Table SC13d | E99: =D99&"Consolidated Monthly Budget Statement - depreciation by asset class" -> Supporting Table SC13d Consolidated Monthly Budget Statement - depreciation by asset class | F99: =D99&"Monthly Budget Statement - depreciation by asset class" -> Supporting Table SC13d Monthly Budget Statement - depreciation by asset class
B100: s71 charts listing
B101: =D101&Head2A&" Capital Expenditure Monthly Trend: actual v target" -> Chart C1 2015/16 Capital Expenditure Monthly Trend: actual v target | D101: Chart C1
B102: =D102&Head2A&" Capital Expenditure: YTD actual v YTD target" -> Chart C2 2015/16 Capital Expenditure: YTD actual v YTD target | D102: Chart C2
B103: =D103&"Aged Consumer Debtors Analysis" -> Chart C3 Aged Consumer Debtors Analysis | D103: Chart C3
B104: =D104&"Consumer Debtors (total by Debtor Customer Category)" -> Chart C4 Consumer Debtors (total by Debtor Customer Category) | D104: Chart C4
B105: =D105&"Aged Creditors Analysis" -> Chart C5 Aged Creditors Analysis | D105: Chart C5
A106: S71T | B106: =D106&" Monthly Budget Statement - Expenditure against approved rollovers" -> Supporting Table SC7(2) Monthly Budget Statement - Expenditure against approved rollovers | D106: Supporting Table SC7(2)

Sheet Lookup and lists (hidden)
A1: Description | B1: 2007 | C1: 2008 | D1: 2009 | E1: 2010 | F1: 2011 | G1: 2012 | H1: 2013 | I1: 2014 | J1: 2015 | K1: 2016 | L1: 2017 | M1: 2018 | N1: 2019 | O1: 2020 | Q1: Grants: | R1: National - opex | S1: Provincial - opex | T1: National - capex | U1: Provincial - capex | V1: YESNO
A2: ='Template names'!C2 -> Prior year -1 | B2: 2006/07 | C2: 2007/08 | D2: 2008/09 | E2: =E1-1&"/"&RIGHT(E1,2)-0 -> 2009/10 | F2: =F1-1&"/"&RIGHT(F1,2)-0 -> 2010/11 | G2: 2011/12 | H2: 2012/13 | I2: 2013/14 | J2: 2014/15 | K2: 2015/16 | L2: 2016/17 | M2: 2017/18 | N2: 2018/19 | O2: 2019/20 | R2: Local Government Equitable Share | S2: Health subsidy | T2: Municipal Infrastructure Grant (MIG) | U2: Agriculture | V2: Yes
A3: ='Template names'!C5 -> MTREF header name | B3: 2007/08 Medium Term Revenue & Expenditure Framework | C3: 2008/09 Medium Term Revenue & Expenditure Framework | D3: 2009/10 Medium Term Revenue & Expenditure Framework | E3: =E1&"/"&RIGHT(E1,2)+1&" Medium Term Revenue & Expenditure Framework" -> 2010/11 Medium Term Revenue & Expenditure Framework | F3: =F1&"/"&RIGHT(F1,2)+1&" Medium Term Revenue & Expenditure Framework" -> 2011/12 Medium Term Revenue & Expenditure Framework | G3: 2012/13 Medium Term Revenue & Expenditure Framework | H3: 2013/14 Medium Term Revenue & Expenditure Framework | I3: 2014/15 Medium Term Revenue & Expenditure Framework | J3: 2015/16 Medium Term Revenue & Expenditure Framework | K3: 2016/17 Medium Term Revenue & Expenditure Framework | L3: 2017/18 Medium Term Revenue & Expenditure Framework | M3: 2018/19 Medium Term Revenue & Expenditure Framework | N3: 2019/20 Medium Term Revenue & Expenditure Framework | O3: 2020/21 Medium Term Revenue & Expenditure Framework | R3: RSC Levy Replacement | S3: Ambulance subsidy | T3: Public Transport and Systems | U3: Education | V3: No
A4: ='Template names'!C4 -> Approved budget year | B4: 2007/08 | C4: 2008/09 | D4: 2009/10 | E4: =E1&"/"&RIGHT(E1,2)+1 -> 2010/11 | F4: =F1&"/"&RIGHT(F1,2)+1 -> 2011/12 | G4: 2012/13 | H4: 2013/14 | I4: 2014/15 | J4: 2015/16 | K4: 2016/17 | L4: 2017/18 | M4: 2018/19 | N4: 2019/20 | O4: 2020/21 | R4: Finance Management | S4: Housing | T4: Rural Transport Services and Infrastructure | U4: Health
A5: ='Template names'!C12 -> 1st year of MTREF | B5: Budget Year 2007/08 | C5: Budget Year 2008/09 | D5: Budget Year 2009/10 | E5: ="Budget Year "&E1&"/"&RIGHT(E1,2)+1 -> Budget Year 2010/11 | F5: ="Budget Year "&F1&"/"&RIGHT(F1,2)+1 -> Budget Year 2011/12 | G5: Budget Year 2012/13 | H5: Budget Year 2013/14 | I5: Budget Year 2014/15 | J5: Budget Year 2015/16 | K5: Budget Year 2016/17 | L5: Budget Year 2017/18 | M5: Budget Year 2018/19 | N5: Budget Year 2019/20 | O5: Budget Year 2020/21 | R5: Municipal Systems Improvement | S5: Sport and Recreation | T5: Regional Bulk Infrastructure | U5: Housing and Local Government
A6: ='Template names'!C13 -> 2nd year of MTREF | B6: Budget Year +1 2008/09 | C6: Budget Year +1 2009/10 | D6: Budget Year +1 2010/11 | E6: ="Budget Year +1 "&E1+1&"/"&RIGHT(E1,2)+2 -> Budget Year +1 2011/12 | F6: ="Budget Year +1 "&F1+1&"/"&RIGHT(F1,2)+2 -> Budget Year +1 2012/13 | G6: Budget Year +1 2013/14 | H6: Budget Year +1 2014/15 | I6: Budget Year +1 2015/16 | J6: Budget Year +1 2016/17 | K6: Budget Year +1 2017/18 | L6: Budget Year +1 2018/19 | M6: Budget Year +1 2019/20 | N6: Budget Year +1 2020/21 | O6: Budget Year +1 2021/22 | R6: Water Services Operating Subsidy | T6: Rural Households Infrastructure | U6: Other Departments
A7: ='Template names'!C14 -> 3rd year of MTREF | B7: Budget Year +2 2009/10 | C7: Budget Year +2 2010/11 | D7: Budget Year +2 2011/12 | E7: ="Budget Year +2 "&E1+2&"/"&RIGHT(E1,2)+3 -> Budget Year +2 2012/13 | F7: ="Budget Year +2 "&F1+2&"/"&RIGHT(F1,2)+3 -> Budget Year +2 2013/14 | G7: Budget Year +2 2014/15 | H7: Budget Year +2 2015/16 | I7: Budget Year +2 2016/17 | J7: Budget Year +2 2017/18 | K7: Budget Year +2 2018/19 | L7: Budget Year +2 2019/20 | M7: Budget Year +2 2020/21 | N7: Budget Year +2 2021/22 | O7: Budget Year +2 2022/23 | R7: Energy Efficiency and Demand Management | T7: Neighbourhood Development Partnership | U7: Public Works, Roads, Transport
A8: NOTE: This sheet should not be directly amended - select headings from sheet 'S' | R8: Integrated National Electrification Programme | T8: 2010 FIFA World Cup Stadiums Development | U8: Sport and Recreation
R9: Municipal Drought Relief
R10: 2010 FIFA World Cup Operating
R11: Electricity Demand Side Management
R12: EPWP Incentive
A26: Name link | B26: 56
A27: Name of Muni | B27: =INDEX(B28:B311,B26,1) -> FS184 Matjhabeng
B28: Choose name from list | C28: Set name on 'Instructions' sheet
B29: BUF Buffalo City | C29: EC EASTERN CAPE
B30: NMA Nelson Mandela Bay | C30: EC EASTERN CAPE
B31: EC101 Camdeboo | C31: EC EASTERN CAPE
B32: EC102 Blue Crane Route | C32: EC EASTERN CAPE
B33: EC103 Ikwezi | C33: EC EASTERN CAPE
B34: EC104 Makana | C34: EC EASTERN CAPE
B35: EC105 Ndlambe | C35: EC EASTERN CAPE
B36: EC106 Sundays River Valley | C36: EC EASTERN CAPE
B37: EC107 Baviaans | C37: EC EASTERN CAPE
B38: EC108 Kouga | C38: EC EASTERN CAPE
B39: EC109 Kou-Kamma | C39: EC EASTERN CAPE
B40: DC10 Cacadu | C40: EC EASTERN CAPE
B41: EC121 Mbhashe | C41: EC EASTERN CAPE
B42: EC122 Mnquma | C42: EC EASTERN CAPE
B43: EC123 Great Kei | C43: EC EASTERN CAPE
B44: EC124 Amahlathi | C44: EC EASTERN CAPE
B45: EC126 Ngqushwa | C45: EC EASTERN CAPE
B46: EC127 Nkonkobe | C46: EC EASTERN CAPE
B47: EC128 Nxuba | C47: EC EASTERN CAPE
B48: DC12 Amathole | C48: EC EASTERN CAPE
B49: EC131 Inxuba Yethemba | C49: EC EASTERN CAPE
B50: EC132 Tsolwana | C50: EC EASTERN CAPE
B51: EC133 Inkwanca | C51: EC EASTERN CAPE
B52: EC134 Lukhanji | C52: EC EASTERN CAPE
B53: EC135 Intsika Yethu | C53: EC EASTERN CAPE
B54: EC136 Emalahleni (Ec) | C54: EC EASTERN CAPE
B55: EC137 Engcobo | C55: EC EASTERN CAPE
B56: EC138 Sakhisizwe | C56: EC EASTERN CAPE
B57: DC13 Chris Hani | C57: EC EASTERN CAPE
B58: EC141 Elundini | C58: EC EASTERN CAPE
B59: EC142 Senqu | C59: EC EASTERN CAPE
B60: EC143 Maletswai | C60: EC EASTERN CAPE
B61: EC144 Gariep | C61: EC EASTERN CAPE
B62: DC14 Joe Gqabi | C62: EC EASTERN CAPE
B63: EC153 Ngquza Hills | C63: EC EASTERN CAPE
B64: EC154 Port St Johns | C64: EC EASTERN CAPE
B65: EC155 Nyandeni | C65: EC EASTERN CAPE
B66: EC156 Mhlontlo | C66: EC EASTERN CAPE
B67: EC157 King Sabata Dalindyebo | C67: EC EASTERN CAPE
B68: DC15 O .R. Tambo | C68: EC EASTERN CAPE
B69: EC441 Matatiele | C69: EC EASTERN CAPE
B70: EC442 Umzimvubu | C70: EC EASTERN CAPE
B71: EC443 Mbizana | C71: EC EASTERN CAPE
B72: EC444 Ntabankulu | C72: EC EASTERN CAPE
B73: DC44 Alfred Nzo | C73: EC EASTERN CAPE
B74: MAN Mangaung | C74: FS FREE STATE
B75: FS161 Letsemeng | C75: FS FREE STATE
B76: FS162 Kopanong | C76: FS FREE STATE
B77: FS163 Mohokare | C77: FS FREE STATE
B78: FS164 Naledi (Fs) | C78: FS FREE STATE
B79: DC16 Xhariep | C79: FS FREE STATE
B80: FS181 Masilonyana | C80: FS FREE STATE
B81: FS182 Tokologo | C81: FS FREE STATE
B82: FS183 Tswelopele | C82: FS FREE STATE
B83: FS184 Matjhabeng | C83: FS FREE STATE
B84: FS185 Nala | C84: FS FREE STATE
B85: DC18 Lejweleputswa | C85: FS FREE STATE
B86: FS191 Setsoto | C86: FS FREE STATE
B87: FS192 Dihlabeng | C87: FS FREE STATE
B88: FS193 Nketoana | C88: FS FREE STATE
B89: FS194 Maluti-a-Phofung | C89: FS FREE STATE
B90: FS195 Phumelela | C90: FS FREE STATE
B91: FS196 Mantsopa | C91: FS FREE STATE
B92: DC19 Thabo Mofutsanyana | C92: FS FREE STATE
B93: FS201 Moqhaka | C93: FS FREE STATE
B94: FS203 Ngwathe | C94: FS FREE STATE
B95: FS204 Metsimaholo | C95: FS FREE STATE
B96: FS205 Mafube | C96: FS FREE STATE
B97: DC20 Fezile Dabi | C97: FS FREE STATE
B98: EKU Ekurhuleni Metro | C98: GT GAUTENG
B99: JHB City Of Johannesburg | C99: GT GAUTENG
B100: TSH City Of Tshwane | C100: GT GAUTENG
B101: GT421 Emfuleni | C101: GT GAUTENG
B102: GT422 Midvaal | C102: GT GAUTENG
B103: GT423 Lesedi | C103: GT GAUTENG
B104: DC42 Sedibeng | C104: GT GAUTENG
B105: GT481 Mogale City | C105: GT GAUTENG
B106: GT482 Randfontein | C106: GT GAUTENG
B107: GT483 Westonaria | C107: GT GAUTENG
B108: GT484 Merafong City | C108: GT GAUTENG
B109: DC48 West Rand | C109: GT GAUTENG
B110: ETH eThekwini | C110: KZN KWAZULU-NATAL
B111: KZN211 Vulamehlo | C111: KZN KWAZULU-NATAL
B112: KZN212 Umdoni | C112: KZN KWAZULU-NATAL
B113: KZN213 Umzumbe | C113: KZN KWAZULU-NATAL
B114: KZN214 uMuziwabantu | C114: KZN KWAZULU-NATAL
B115: KZN215 Ezinqoleni | C115: KZN KWAZULU-NATAL
B116: KZN216 Hibiscus Coast | C116: KZN KWAZULU-NATAL
B117: DC21 Ugu | C117: KZN KWAZULU-NATAL
B118: KZN221 uMshwathi | C118: KZN KWAZULU-NATAL
B119: KZN222 uMngeni | C119: KZN KWAZULU-NATAL
B120: KZN223 Mpofana | C120: KZN KWAZULU-NATAL
B121: KZN224 Impendle | C121: KZN KWAZULU-NATAL
B122: KZN225 Msunduzi | C122: KZN KWAZULU-NATAL
B123: KZN226 Mkhambathini | C123: KZN KWAZULU-NATAL
B124: KZN227 Richmond | C124: KZN KWAZULU-NATAL
B125: DC22 uMgungundlovu | C125: KZN KWAZULU-NATAL
B126: KZN232 Emnambithi/Ladysmith | C126: KZN KWAZULU-NATAL
B127: KZN233 Indaka | C127: KZN KWAZULU-NATAL
B128: KZN234 Umtshezi | C128: KZN KWAZULU-NATAL
B129: KZN235 Okhahlamba | C129: KZN KWAZULU-NATAL
B130: KZN236 Imbabazane | C130: KZN KWAZULU-NATAL
B131: DC23 Uthukela | C131: KZN KWAZULU-NATAL
B132: KZN241 Endumeni | C132: KZN KWAZULU-NATAL
B133: KZN242 Nquthu | C133: KZN KWAZULU-NATAL
B134: KZN244 Msinga | C134: KZN KWAZULU-NATAL
B135: KZN245 Umvoti | C135: KZN KWAZULU-NATAL
B136: DC24 Umzinyathi | C136: KZN KWAZULU-NATAL
B137: KZN252 Newcastle | C137: KZN KWAZULU-NATAL
B138: KZN253 eMadlangeni | C138: KZN KWAZULU-NATAL
B139: KZN254 Dannhauser | C139: KZN KWAZULU-NATAL
B140: DC25 Amajuba | C140: KZN KWAZULU-NATAL
B141: KZN261 eDumbe | C141: KZN KWAZULU-NATAL
B142: KZN262 uPhongolo | C142: KZN KWAZULU-NATAL
B143: KZN263 Abaqulusi | C143: KZN KWAZULU-NATAL
B144: KZN265 Nongoma | C144: KZN KWAZULU-NATAL
B145: KZN266 Ulundi | C145: KZN KWAZULU-NATAL
B146: DC26 Zululand | C146: KZN KWAZULU-NATAL
B147: KZN271 Umhlabuyalingana | C147: KZN KWAZULU-NATAL
B148: KZN272 Jozini | C148: KZN KWAZULU-NATAL
B149: KZN273 The Big 5 False Bay | C149: KZN KWAZULU-NATAL
B150: KZN274 Hlabisa | C150: KZN KWAZULU-NATAL
B151: KZN275 Mtubatuba | C151: KZN KWAZULU-NATAL
B152: DC27 Umkhanyakude | C152: KZN KWAZULU-NATAL
B153: KZN281 Mfolozi | C153: KZN KWAZULU-NATAL
B154: KZN282 uMhlathuze | C154: KZN KWAZULU-NATAL
B155: KZN283 Ntambanana | C155: KZN KWAZULU-NATAL
B156: KZN284 uMlalazi | C156: KZN KWAZULU-NATAL
B157: KZN285 Mthonjaneni | C157: KZN KWAZULU-NATAL
B158: KZN286 Nkandla | C158: KZN KWAZULU-NATAL
B159: DC28 uThungulu | C159: KZN KWAZULU-NATAL
B160: KZN291 Mandeni | C160: KZN KWAZULU-NATAL
B161: KZN292 KwaDukuza | C161: KZN KWAZULU-NATAL
B162: KZN293 Ndwedwe | C162: KZN KWAZULU-NATAL
B163: KZN294 Maphumulo | C163: KZN KWAZULU-NATAL
B164: DC29 iLembe | C164: KZN KWAZULU-NATAL
B165: KZN431 Ingwe | C165: KZN KWAZULU-NATAL
B166: KZN432 Kwa Sani | C166: KZN KWAZULU-NATAL
B167: KZN433 Greater Kokstad | C167: KZN KWAZULU-NATAL
B168: KZN434 Ubuhlebezwe | C168: KZN KWAZULU-NATAL
B169: KZN435 Umzimkhulu | C169: KZN KWAZULU-NATAL
B170: DC43 Sisonke | C170: KZN KWAZULU-NATAL
B171: LIM331 Greater Giyani | C171: LIM LIMPOPO
B172: LIM332 Greater Letaba | C172: LIM LIMPOPO
B173: LIM333 Greater Tzaneen | C173: LIM LIMPOPO
B174: LIM334 Ba-Phalaborwa | C174: LIM LIMPOPO
B175: LIM335 Maruleng | C175: LIM LIMPOPO
B176: DC33 Mopani | C176: LIM LIMPOPO
B177: LIM341 Musina | C177: LIM LIMPOPO
B178: LIM342 Mutale | C178: LIM LIMPOPO
B179: LIM343 Thulamela | C179: LIM LIMPOPO
B180: LIM344 Makhado | C180: LIM LIMPOPO
B181: DC34 Vhembe | C181: LIM LIMPOPO
B182: LIM351 Blouberg | C182: LIM LIMPOPO
B183: LIM352 Aganang | C183: LIM LIMPOPO
B184: LIM353 Molemole | C184: LIM LIMPOPO
B185: LIM354 Polokwane | C185: LIM LIMPOPO
B186: LIM355 Lepelle-Nkumpi | C186: LIM LIMPOPO
B187: DC35 Capricorn | C187: LIM LIMPOPO
B188: LIM361 Thabazimbi | C188: LIM LIMPOPO
B189: LIM362 Lephalale | C189: LIM LIMPOPO
B190: LIM364 Mookgopong | C190: LIM LIMPOPO
B191: LIM365 Modimolle | C191: LIM LIMPOPO
B192: LIM366 Bela Bela | C192: LIM LIMPOPO
B193: LIM367 Mogalakwena | C193: LIM LIMPOPO
B194: DC36 Waterberg | C194: LIM LIMPOPO
B195: LIM471 Ephraim Mogale | C195: LIM LIMPOPO
B196: LIM472 Elias Motsoaledi | C196: LIM LIMPOPO
B197: LIM473 Makhuduthamaga | C197: LIM LIMPOPO
B198: LIM474 Fetakgomo | C198: LIM LIMPOPO
B199: LIM475 Greater Tubatse | C199: LIM LIMPOPO
B200: DC47 Sekhukhune | C200: LIM LIMPOPO
B201: MP301 Albert Luthuli | C201: MP MPUMALANGA
B202: MP302 Msukaligwa | C202: MP MPUMALANGA
B203: MP303 Mkhondo | C203: MP MPUMALANGA
B204: MP304 Pixley Ka Seme (MP) | C204: MP MPUMALANGA
B205: MP305 Lekwa | C205: MP MPUMALANGA
B206: MP306 Dipaleseng | C206: MP MPUMALANGA
B207: MP307 Govan Mbeki | C207: MP MPUMALANGA
B208: DC30 Gert Sibande | C208: MP MPUMALANGA
B209: MP311 Victor Khanye | C209: MP MPUMALANGA
B210: MP312 Emalahleni (Mp) | C210: MP MPUMALANGA
B211: MP313 Steve Tshwete | C211: MP MPUMALANGA
B212: MP314 Emakhazeni | C212: MP MPUMALANGA
B213: MP315 Thembisile Hani | C213: MP MPUMALANGA
... 94 more rows

Sheet Org structure
A1: Organisational Structure Votes | C1: Organisational Structure Sub-Votes | E1: Display Sub-Votes
A2: =B2&" - "&C2 -> Vote 1 - COUNCIL GENERAL | B2: Vote 1 | C2: COUNCIL GENERAL
A3: =B13&" - "& C13 -> Vote 2 - OFFICE OF THE EXECUTIVE MAYOR | B3: 1.1 | C3: Council | D3: =CONCATENATE(B3, " - ", C3) -> 1.1 - Council | E3: 1.1 - Council
A4: =B24&" - "&C24 -> Vote 3 - OFFICE OF THE SPEAKER | B4: 1.2 | C4: [Name of sub-vote] | D4: 1.2 - [Name of sub-vote]
A5: =B35&" - "&C35 -> Vote 4 - OFFICE OF THE MUNICIPAL MANAGER | B5: 1.3 | C5: [Name of sub-vote] | D5: 1.3 - [Name of sub-vote]
A6: =B46&" - "&C46 -> Vote 5 - CORPORATE SUPPORT SERVICES | B6: 1.4 | C6: [Name of sub-vote] | D6: 1.4 - [Name of sub-vote]
A7: =B57&" - "&C57 -> Vote 6 - FINANCE | B7: 1.5 | C7: [Name of sub-vote] | D7: 1.5 - [Name of sub-vote]
A8: =B68&" - "&C68 -> Vote 7 - HUMAN RESOURCES | B8: 1.6 | C8: [Name of sub-vote] | D8: 1.6 - [Name of sub-vote]
A9: =B79&" - "&C79 -> Vote 8 - COMMUNITY SERVICES | B9: 1.7 | C9: [Name of sub-vote] | D9: 1.7 - [Name of sub-vote]
A10: =B90&" - "&C90 -> Vote 9 - PUBLIC SAFETY AND TRANSPORT | B10: 1.8 | C10: [Name of sub-vote] | D10: 1.8 - [Name of sub-vote]
A11: =B101&" - "&C101 -> Vote 10 - ECONOMIC DEVELOPMENT | B11: 1.9 | C11: [Name of sub-vote] | D11: 1.9 - [Name of sub-vote]
A12: =B112&" - "&C112 -> Vote 11 - ENGINEERING SERVICES | B12: 1.10 | C12: [Name of sub-vote] | D12: 1.10 - [Name of sub-vote]
A13: =B123&" - "&C123 -> Vote 12 - WATER | B13: Vote 2 | C13: OFFICE OF THE EXECUTIVE MAYOR
A14: =B134&" - "&C134 -> Vote 13 - ELECTRICITY | B14: 2.1 | C14: Executive Mayor | D14: =CONCATENATE(B14, " - ", C14) -> 2.1 - Executive Mayor | E14: 2.1 - Executive Mayor
A15: =B145&" - "&C145 -> Vote 14 - MECHANICAL WORKSHOP | B15: 2.2 | C15: Mayoral Committee | D15: 2.2 - Mayoral Committee | E15: 2.2 - Mayoral Committee
A16: =B156&" - "&C156 -> Vote 15 - HOUSING SERVICES | B16: 2.3 | C16: [Name of sub-vote] | D16: 2.3 - [Name of sub-vote]
B17: 2.4 | C17: [Name of sub-vote] | D17: 2.4 - [Name of sub-vote]
B18: 2.5 | C18: [Name of sub-vote] | D18: 2.5 - [Name of sub-vote]
B19: 2.6 | C19: [Name of sub-vote] | D19: 2.6 - [Name of sub-vote]
B20: 2.7 | C20: [Name of sub-vote] | D20: 2.7 - [Name of sub-vote]
B21: 2.8 | C21: [Name of sub-vote] | D21: 2.8 - [Name of sub-vote]
B22: 2.9 | C22: [Name of sub-vote] | D22: 2.9 - [Name of sub-vote]
B23: 2.10 | C23: [Name of sub-vote] | D23: 2.10 - [Name of sub-vote]
B24: Vote 3 | C24: OFFICE OF THE SPEAKER
B25: 3.1 | C25: Speaker | D25: =CONCATENATE(B25, " - ", C25) -> 3.1 - Speaker | E25: 3.1 - Speaker
B26: 3.2 | C26: Political Appointments | D26: 3.2 - Political Appointments | E26: 3.2 - Political Appointments
B27: 3.3 | C27: [Name of sub-vote] | D27: 3.3 - [Name of sub-vote]
B28: 3.4 | C28: [Name of sub-vote] | D28: 3.4 - [Name of sub-vote]
B29: 3.5 | C29: [Name of sub-vote] | D29: 3.5 - [Name of sub-vote]
B30: 3.6 | C30: [Name of sub-vote] | D30: 3.6 - [Name of sub-vote]
B31: 3.7 | C31: [Name of sub-vote] | D31: 3.7 - [Name of sub-vote]
B32: 3.8 | C32: [Name of sub-vote] | D32: 3.8 - [Name of sub-vote]
B33: 3.9 | C33: [Name of sub-vote] | D33: 3.9 - [Name of sub-vote]
B34: 3.10 | C34: [Name of sub-vote] | D34: 3.10 - [Name of sub-vote]
B35: Vote 4 | C35: OFFICE OF THE MUNICIPAL MANAGER
B36: 4.1 | C36: Municipal Manager | D36: =CONCATENATE(B36, " - ", C36) -> 4.1 - Municipal Manager | E36: 4.1 - Municipal Manager
B37: 4.2 | C37: IDP | D37: 4.2 - IDP | E37: 4.2 - IDP
B38: 4.3 | C38: Internal Audit | D38: 4.3 - Internal Audit | E38: 4.3 - Internal Audit
B39: 4.4 | C39: Organisation & Workstudy | D39: 4.4 - Organisation & Workstudy | E39: 4.4 - Organisation & Workstudy
B40: 4.5 | C40: IT | D40: 4.5 - IT | E40: 4.5 - IT
B41: 4.6 | C41: Legal Services | D41: 4.6 - Legal Services | E41: 4.6 - Legal Services
B42: 4.7 | C42: [Name of sub-vote] | D42: 4.7 - [Name of sub-vote]
B43: 4.8 | C43: [Name of sub-vote] | D43: 4.8 - [Name of sub-vote]
B44: 4.9 | C44: [Name of sub-vote] | D44: 4.9 - [Name of sub-vote]
B45: 4.10 | C45: [Name of sub-vote] | D45: 4.10 - [Name of sub-vote]
B46: Vote 5 | C46: CORPORATE SUPPORT SERVICES
B47: 5.1 | C47: Corporate Services Admin | D47: =CONCATENATE(B47, " - ", C47) -> 5.1 - Corporate Services Admin | E47: 5.1 - Corporate Services Admin
B48: 5.2 | C48: Libraries | D48: 5.2 - Libraries | E48: 5.2 - Libraries
B49: 5.3 | C49: Halls & Offices | D49: 5.3 - Halls & Offices | E49: 5.3 - Halls & Offices
B50: 5.4 | C50: [Name of sub-vote] | D50: 5.4 - [Name of sub-vote]
B51: 5.5 | C51: [Name of sub-vote] | D51: 5.5 - [Name of sub-vote]
B52: 5.6 | C52: [Name of sub-vote] | D52: 5.6 - [Name of sub-vote]
B53: 5.7 | C53: [Name of sub-vote] | D53: 5.7 - [Name of sub-vote]
B54: 5.8 | C54: [Name of sub-vote] | D54: 5.8 - [Name of sub-vote]
B55: 5.9 | C55: [Name of sub-vote] | D55: 5.9 - [Name of sub-vote]
B56: 5.10 | C56: [Name of sub-vote] | D56: 5.10 - [Name of sub-vote]
B57: Vote 6 | C57: FINANCE
B58: 6.1 | C58: Administration | D58: =CONCATENATE(B58, " - ", C58) -> 6.1 - Administration | E58: 6.1 - Administration
B59: 6.2 | C59: Expenditure | D59: 6.2 - Expenditure | E59: 6.2 - Expenditure
B60: 6.3 | C60: Budget Control & Salaries | D60: 6.3 - Budget Control & Salaries | E60: 6.3 - Budget Control & Salaries
B61: 6.4 | C61: Stores | D61: 6.4 - Stores | E61: 6.4 - Stores
B62: 6.5 | C62: Revenue | D62: 6.5 - Revenue | E62: 6.6 - Revenue
B63: 6.6 | C63: Fresh Produce Market | D63: 6.6 - Fresh Produce Market | E63: 6.7 - Fresh Produce Market
B64: 6.7 | C64: Valuation | D64: 6.7 - Valuation | E64: 6.8 - Valuation
B65: 6.8 | C65: Credit Contol | D65: 6.8 - Credit Contol | E65: 6.8 - Credit Contol
B66: 6.9 | C66: [Name of sub-vote] | D66: 6.9 - [Name of sub-vote]
B67: 6.10 | C67: [Name of sub-vote] | D67: 6.10 - [Name of sub-vote]
B68: Vote 7 | C68: HUMAN RESOURCES
B69: 7.1 | C69: Administration | D69: =CONCATENATE(B69, " - ", C69) -> 7.1 - Administration | E69: 7.1 - Administration
B70: 7.2 | C70: Training | D70: 7.2 - Training | E70: 7.2 - Training
B71: 7.3 | C71: Health and Safety | D71: 7.3 - Health and Safety | E71: 7.3 - Health and Safety
B72: 7.4 | C72: [Name of sub-vote] | D72: 7.4 - [Name of sub-vote]
B73: 7.5 | C73: [Name of sub-vote] | D73: 7.5 - [Name of sub-vote]
B74: 7.6 | C74: [Name of sub-vote] | D74: 7.6 - [Name of sub-vote]
B75: 7.7 | C75: [Name of sub-vote] | D75: 7.7 - [Name of sub-vote]
B76: 7.8 | C76: [Name of sub-vote] | D76: 7.8 - [Name of sub-vote]
B77: 7.9 | C77: [Name of sub-vote] | D77: 7.9 - [Name of sub-vote]
B78: 7.10 | C78: [Name of sub-vote] | D78: 7.10 - [Name of sub-vote]
B79: Vote 8 | C79: COMMUNITY SERVICES
B80: 8.1 | C80: Community Services Admin | D80: =CONCATENATE(B80, " - ", C80) -> 8.1 - Community Services Admin | E80: 8.1 - Community Services Admin
B81: 8.2 | C81: Parks and Recreation | D81: 8.2 - Parks and Recreation | E81: 8.2 - Parks and Recreation
B82: 8.3 | C82: Refuse | D82: 8.3 - Refuse | E82: 8.3 - Refuse
B83: 8.4 | C83: Enviromental Protection | D83: 8.4 - Enviromental Protection | E83: 8.4 - Enviromental Protection
B84: 8.5 | C84: [Name of sub-vote] | D84: 8.5 - [Name of sub-vote]
B85: 8.6 | C85: [Name of sub-vote] | D85: 8.6 - [Name of sub-vote]
B86: 8.7 | C86: [Name of sub-vote] | D86: 8.7 - [Name of sub-vote]
B87: 8.8 | C87: [Name of sub-vote] | D87: 8.8 - [Name of sub-vote]
B88: 8.9 | C88: [Name of sub-vote] | D88: 8.9 - [Name of sub-vote]
B89: 8.10 | C89: [Name of sub-vote] | D89: 8.10 - [Name of sub-vote]
B90: Vote 9 | C90: PUBLIC SAFETY AND TRANSPORT
B91: 9.1 | C91: Traffic | D91: =CONCATENATE(B91, " - ", C91) -> 9.1 - Traffic | E91: 9.1 - Traffic
B92: 9.2 | C92: Disaster Management | D92: 9.2 - Disaster Management | E92: 9.2 - Disaster Management
B93: 9.3 | C93: Security | D93: 9.3 - Security | E93: 9.3 - Security
B94: 9.4 | C94: Fire Services | D94: 9.4 - Fire Services | E94: 9.4 - Fire Services
B95: 9.5 | C95: [Name of sub-vote] | D95: 9.5 - [Name of sub-vote]
B96: 9.6 | C96: [Name of sub-vote] | D96: 9.6 - [Name of sub-vote]
B97: 9.7 | C97: [Name of sub-vote] | D97: 9.7 - [Name of sub-vote]
B98: 9.8 | C98: [Name of sub-vote] | D98: 9.8 - [Name of sub-vote]
B99: 9.9 | C99: [Name of sub-vote] | D99: 9.9 - [Name of sub-vote]
B100: 9.10 | C100: [Name of sub-vote] | D100: 9.10 - [Name of sub-vote]
B101: Vote 10 | C101: ECONOMIC DEVELOPMENT
B102: 10.1 | C102: Economic Development | D102: =CONCATENATE(B102, " - ", C102) -> 10.1 - Economic Development | E102: 10.1 - Economic Development
B103: 10.2 | C103: [Name of sub-vote] | D103: 10.2 - [Name of sub-vote]
B104: 10.3 | C104: [Name of sub-vote] | D104: 10.3 - [Name of sub-vote]
B105: 10.4 | C105: [Name of sub-vote] | D105: 10.4 - [Name of sub-vote]
B106: 10.5 | C106: [Name of sub-vote] | D106: 10.5 - [Name of sub-vote]
B107: 10.6 | C107: [Name of sub-vote] | D107: 10.6 - [Name of sub-vote]
B108: 10.7 | C108: [Name of sub-vote] | D108: 10.7 - [Name of sub-vote]
B109: 10.8 | C109: [Name of sub-vote] | D109: 10.8 - [Name of sub-vote]
B110: 10.9 | C110: [Name of sub-vote] | D110: 10.9 - [Name of sub-vote]
B111: 10.10 | C111: [Name of sub-vote] | D111: 10.10 - [Name of sub-vote]
B112: Vote 11 | C112: ENGINEERING SERVICES
B113: 11.1 | C113: Building | D113: =CONCATENATE(B113, " - ", C113) -> 11.1 - Building | E113: 11.1 - Building
B114: 11.2 | C114: Engineering Administration | D114: 11.2 - Engineering Administration | E114: 11.2 - Engineering Administration
B115: 11.3 | C115: Engineering Planning | D115: 11.3 - Engineering Planning | E115: 11.3 - Engineering Planning
B116: 11.4 | C116: Engineering Surveying | D116: 11.4 - Engineering Surveying | E116: 11.4 - Engineering Surveying
B117: 11.5 | C117: Eng- Intern Serv Building Shop | D117: 11.5 - Eng- Intern Serv Building Shop | E117: 11.5 - Eng- Intern Serv Building Shop
B118: 11.6 | C118: Roads | D118: 11.6 - Roads | E118: 11.6 - Roads
B119: 11.7 | C119: Storm Water | D119: 11.7 - Storm Water | E119: 11.7 - Storm Water
B120: 11.8 | C120: Eng - Roads/ Storm Water | D120: 11.8 - Eng - Roads/ Storm Water | E120: 11.8 - Eng - Roads/ Storm Water
B121: 11.9 | C121: [Name of sub-vote] | D121: 11.9 - [Name of sub-vote]
B122: 11.10 | C122: [Name of sub-vote] | D122: 11.10 - [Name of sub-vote]
B123: Vote 12 | C123: WATER
B124: 12.1 | C124: Eng-Admin: Water and Sewerage | D124: =CONCATENATE(B124, " - ", C124) -> 12.1 - Eng-Admin: Water and Sewerage | E124: 12.1 - Eng-Admin: Water and Sewerage
B125: 12.2 | C125: Eng-Admin: Water Supply | D125: 12.2 - Eng-Admin: Water Supply | E125: 12.2 - Eng-Admin: Water Supply
B126: 12.3 | C126: Water Workshop | D126: 12.3 - Water Workshop | E126: 12.3 - Water Workshop
B127: 12.4 | C127: Sewerage Network | D127: 12.4 - Sewerage Network | E127: 12.4 - Sewerage Network
B128: 12.5 | C128: Purifying Works | D128: 12.5 - Purifying Works | E128: 12.5 - Purifying Works
B129: 12.6 | C129: [Name of sub-vote] | D129: 12.6 - [Name of sub-vote]
B130: 12.7 | C130: [Name of sub-vote] | D130: 12.7 - [Name of sub-vote]
B131: 12.8 | C131: [Name of sub-vote] | D131: 12.8 - [Name of sub-vote]
B132: 12.9 | C132: [Name of sub-vote] | D132: 12.9 - [Name of sub-vote]
B133: 12.10 | C133: [Name of sub-vote] | D133: 12.10 - [Name of sub-vote]
B134: Vote 13 | C134: ELECTRICITY
B135: 13.1 | C135: Elec and Mec Eng Admin | D135: =CONCATENATE(B135, " - ", C135) -> 13.1 - Elec and Mec Eng Admin | E135: 13.1 - Elec and Mec Eng Admin
B136: 13.2 | C136: Distribution | D136: 13.2 - Distribution | E136: 13.2 - Distribution
B137: 13.3 | C137: Distribution 132kVA | D137: 13.3 - Distribution 132kVA | E137: 13.3 - Distribution 132kVA
B138: 13.4 | C138: Streetlights | D138: 13.4 - Streetlights | E138: 13.4 - Streetlights
B139: 13.5 | C139: Electrical Workshop | D139: 13.5 - Electrical Workshop | E139: 13.5 - Electrical Workshop
B140: 13.6 | C140: Revenue Protection | D140: 13.6 - Revenue Protection | E140: 13.6 - Revenue Protection
B141: 13.7 | C141: Eng - Plant | D141: 13.7 - Eng - Plant | E141: 13.7 - Eng - Plant
B142: 13.8 | C142: [Name of sub-vote] | D142: 13.8 - [Name of sub-vote]
B143: 13.9 | C143: [Name of sub-vote] | D143: 13.9 - [Name of sub-vote]
B144: 13.10 | C144: [Name of sub-vote] | D144: 13.10 - [Name of sub-vote]
B145: Vote 14 | C145: MECHANICAL WORKSHOP
B146: 14.1 | C146: Mechanical workshop | D146: =CONCATENATE(B146, " - ", C146) -> 14.1 - Mechanical workshop | E146: 14.1 - Mechanical workshop
B147: 14.2 | C147: [Name of sub-vote] | D147: 14.2 - [Name of sub-vote]
B148: 14.3 | C148: [Name of sub-vote] | D148: 14.3 - [Name of sub-vote]
B149: 14.4 | C149: [Name of sub-vote] | D149: 14.4 - [Name of sub-vote]
B150: 14.5 | C150: [Name of sub-vote] | D150: 14.5 - [Name of sub-vote]
B151: 14.6 | C151: [Name of sub-vote] | D151: 14.6 - [Name of sub-vote]
B152: 14.7 | C152: [Name of sub-vote] | D152: 14.7 - [Name of sub-vote]
B153: 14.8 | C153: [Name of sub-vote] | D153: 14.8 - [Name of sub-vote]
B154: 14.9 | C154: [Name of sub-vote] | D154: 14.9 - [Name of sub-vote]
B155: 14.10 | C155: [Name of sub-vote] | D155: 14.10 - [Name of sub-vote]
B156: Vote 15 | C156: HOUSING SERVICES
B157: 15.1 | C157: Housing services | D157: =CONCATENATE(B157, " - ", C157) -> 15.1 - Housing services | E157: 15.1 - Housing services
B158: 15.2 | C158: [Name of sub-vote] | D158: 15.2 - [Name of sub-vote]
B159: 15.3 | C159: [Name of sub-vote] | D159: 15.3 - [Name of sub-vote]
B160: 15.4 | C160: [Name of sub-vote] | D160: 15.4 - [Name of sub-vote]
B161: 15.5 | C161: [Name of sub-vote] | D161: 15.5 - [Name of sub-vote]
B162: 15.6 | C162: [Name of sub-vote] | D162: 15.6 - [Name of sub-vote]
B163: 15.7 | C163: [Name of sub-vote] | D163: 15.7 - [Name of sub-vote]
B164: 15.8 | C164: [Name of sub-vote] | D164: 15.8 - [Name of sub-vote]
B165: 15.9 | C165: [Name of sub-vote] | D165: 15.9 - [Name of sub-vote]
B166: 15.10 | C166: [Name of sub-vote] | D166: 15.10 - [Name of sub-vote]

Sheet Contacts
A1: =muni&" - "&" Contact Information" -> FS184 Matjhabeng - Contact Information
A3: A. GENERAL INFORMATION
A4: Municipality | B4: =muni -> FS184 Matjhabeng | C4: Set name on 'Instructions' sheet
A6: Grade | B6: 5 | C6: 1 Grade in terms of the Remuneration of Public Office Bearers Act.
A8: Province | B8: =IF(B4>" ",VLOOKUP(B4,'Lookup and lists'!B28:C311,2, FALSE)," ") -> FS FREE STATE
A10: Web Address | B10: www.matjhabeng.fs.gov.za
A12: e-mail Address | B12: mm@matjhabeng.co.za
A14: B. CONTACT INFORMATION
A15: Postal address:
A16: P.O. Box | B16: 708
A17: City / Town | B17: Welkom
A18: Postal Code | B18: 9459
A20: Street address
A21: Building | B21: Civic Building
A22: Street No. & Name | B22: Cnr Ryk & Heeren street
A23: City / Town | B23: Welkom
A24: Postal Code | B24: 9459
A26: General Contacts
A27: Telephone number | B27: 057 3913911
A28: Fax number | B28: 057 3521448
A30: C. POLITICAL LEADERSHIP
A31: Speaker: | C31: Secretary/PA to the Speaker:
A32: Name | B32: Cllr. B. Stofile | C32: Name | D32: Me. M. Mohapi
A33: Telephone number | B33: 057 3913283 | C33: Telephone number | D33: 057 3913283
A34: Cell number | C34: Cell number
A35: Fax number | B35: 057 3521267 | C35: Fax number | D35: 057 3521267
A36: E-mail address | B36: bheke.stofile@matjhabeng.co.za | C36: E-mail address | D36: mapitso.mohapi@matjhabeng.co.za
A38: Mayor/Executive Mayor: | C38: Secretary/PA to the Mayor/Executive Mayor:
A39: Name | B39: Cllr. S. Ngangelizwe | C39: Name | D39: Me. B. Mgxabayi
A40: Telephone number | B40: 057 391 3149 | C40: Telephone number | D40: 057 391 3149
A41: Cell number | B41: 082 8822402 | C41: Cell number | D41: 0734649117
A42: Fax number | B42: 057 3532161 | C42: Fax number | D42: 057 3532161
A43: E-mail address | B43: sebenzile.ngangelizwe@matjhabeng.co.za | C43: E-mail address | D43: bulelwa.mgxabayi@matjhabeng.co.za
A45: Deputy Mayor/Executive Mayor: | C45: Secretary/PA to the Deputy Mayor/Executive Mayor:
A46: Name | C46: Name
A47: Telephone number | C47: Telephone number
A48: Cell number | C48: Cell number
A49: Fax number | C49: Fax number
A50: E-mail address | C50: E-mail address
A52: D. MANAGEMENT LEADERSHIP
A53: Municipal Manager: | C53: Secretary/PA to the Municipal Manager:
A54: Name | B54: MF Lepheana | C54: Name | D54: M Lenong
A55: Telephone number | B55: 057 391 3970 | C55: Telephone number | D55: 057 391 3970
A56: Cell number | B56: 079 898 0891 | C56: Cell number | D56: 082 778 7756
A57: Fax number | B57: 057 357 4393 | C57: Fax number | D57: 057 357 4393
A58: E-mail address | B58: mothusi.lepheana@matjhabeng.co.za | C58: E-mail address | D58: tshidi.lenong@matjhabeng.co.za
A60: Chief Financial Officer | C60: Secretary/PA to the Chief Financial Officer
A61: Name | B61: T Tsoaeli | C61: Name | D61: Mantoa Mahloko
A62: Telephone number | B62: 057 391 3416 | C62: Telephone number | D62: 057 3913416
A63: Cell number | B63: 0796900476 | C63: Cell number | D63: 078 2967898
A64: Fax number | B64: 057 352 1448 | C64: Fax number | D64: 057 3521448
A65: E-mail address | B65: thabiso.tsoaeli@matjhabeng.co.za | C65: E-mail address | D65: mantoa.mahloko@matjhabeng.co.za
A67: Official responsible for submitting financial information
A68: Name | B68: LB De Bruyn
A69: Telephone number | B69: 0573913416
A70: Cell number | B70: 0832352242
A71: Fax number | B71: 0573521448
A72: E-mail address | B72: lb@matjhabeng.co.za
A73: Official responsible for submitting financial information
A74: Name | B74: LB Williams
A75: Telephone number | B75: 0573913339
A76: Cell number | B76: 0762558875
A77: Fax number | B77: 0865360665
A78: E-mail address | B78: lindsey.williams@matjhabeng.co.za
A79: Official responsible for submitting financial information
A80: Name | B80: Kgali Tsie
A81: Telephone number | B81: 0573913223
A82: Cell number | B82: 0766538845
A83: Fax number | B83: 0862152418
A84: E-mail address | B84: kgali.tsie@matjhabeng.co.za

Sheet C1-Sum
A1: =muni& " - "&s71sum& " - "&date -> FS184 Matjhabeng - Table C1 Monthly Budget Statement Summary - M03 September
A2: =desc -> Description | B2: =Head1 -> 2014/15 | C2: =Head2 -> Budget Year 2015/16
B3: =Head5 -> Audited Outcome | C3: =Head6 -> Original Budget | D3: =Head7 -> Adjusted Budget | E3: =Head38 -> Monthly actual | F3: =Head39 -> YearTD actual | G3: =Head40 -> YearTD budget | H3: =Head41 -> YTD variance | I3: =Head41 -> YTD variance | J3: =Head8 -> Full Year Forecast
A4: R thousands | I4: %
A5: Financial Performance
A6: Property rates | B6: =SUM('C4-FinPerf RE'!C6:C7) -> 0 | C6: =SUM('C4-FinPerf RE'!D6:D7) -> 189178890 | D6: =SUM('C4-FinPerf RE'!E6:E7) -> 0 | E6: =SUM('C4-FinPerf RE'!F6:F7) -> 21000000 | F6: =SUM('C4-FinPerf RE'!G6:G7) -> 70589000 | G6: =SUM('C4-FinPerf RE'!H6:H7) -> 47294722.5 | H6: =F6-G6 -> 23294277.5 | I6: =IF(H6=0,"",H6/G6) -> 0.4925343943 | J6: =SUM('C4-FinPerf RE'!K6:K7) -> 282356000
A7: Service charges | B7: =SUM('C4-FinPerf RE'!C8:C12) -> 0 | C7: =SUM('C4-FinPerf RE'!D8:D12) -> 1138823505 | D7: =SUM('C4-FinPerf RE'!E8:E12) -> 0 | E7: =SUM('C4-FinPerf RE'!F8:F12) -> 99210674 | F7: =SUM('C4-FinPerf RE'!G8:G12) -> 280029674 | G7: =SUM('C4-FinPerf RE'!H8:H12) -> 284705876.2 | H7: =F7-G7 -> -4676202.25 | I7: =IF(H7=0,"",H7/G7) -> -0.01642467768 | J7: =SUM('C4-FinPerf RE'!K8:K12) -> 1120118696
A8: Investment revenue | B8: ='C4-FinPerf RE'!C14 -> 0 | C8: ='C4-FinPerf RE'!D14 -> 635000 | D8: ='C4-FinPerf RE'!E14 -> 0 | E8: ='C4-FinPerf RE'!F14 -> 307682 | F8: ='C4-FinPerf RE'!G14 -> 307682 | G8: ='C4-FinPerf RE'!H14 -> 158750 | H8: =F8-G8 -> 148932 | I8: =IF(H8=0,"",H8/G8) -> 0.9381543307 | J8: ='C4-FinPerf RE'!K14 -> 1230728
A9: Transfers recognised - operational | B9: ='C4-FinPerf RE'!C20 -> 0 | C9: ='C4-FinPerf RE'!D20 -> 406586000 | D9: ='C4-FinPerf RE'!E20 -> 0 | E9: ='C4-FinPerf RE'!F20 -> 0 | F9: ='C4-FinPerf RE'!G20 -> 170913000 | G9: ='C4-FinPerf RE'!H20 -> 101646500 | H9: =F9-G9 -> 69266500 | I9: =IF(H9=0,"",H9/G9) -> 0.6814450079 | J9: ='C4-FinPerf RE'!K20 -> 683652000
A10: Other own revenue | B10: ='C4-FinPerf RE'!C13+'C4-FinPerf RE'!C15+'C4-FinPerf RE'!C16+'C4-FinPerf RE'!C17+'C4-FinPerf RE'!C18+'C4-FinPerf RE'!C19+'C4-FinPerf RE'!C21+'C4-FinPerf RE'!C22 -> 0 | C10: ='C4-FinPerf RE'!D13+'C4-FinPerf RE'!D15+'C4-FinPerf RE'!D16+'C4-FinPerf RE'!D17+'C4-FinPerf RE'!D18+'C4-FinPerf RE'!D19+'C4-FinPerf RE'!D21+'C4-FinPerf RE'!D22 -> 217496482 | D10: ='C4-FinPerf RE'!E13+'C4-FinPerf RE'!E15+'C4-FinPerf RE'!E16+'C4-FinPerf RE'!E17+'C4-FinPerf RE'!E18+'C4-FinPerf RE'!E19+'C4-FinPerf RE'!E21+'C4-FinPerf RE'!E22 -> 0 | E10: ='C4-FinPerf RE'!F13+'C4-FinPerf RE'!F15+'C4-FinPerf RE'!F16+'C4-FinPerf RE'!F17+'C4-FinPerf RE'!F18+'C4-FinPerf RE'!F19+'C4-FinPerf RE'!F21+'C4-FinPerf RE'!F22 -> 14443596 | F10: ='C4-FinPerf RE'!G13+'C4-FinPerf RE'!G15+'C4-FinPerf RE'!G16+'C4-FinPerf RE'!G17+'C4-FinPerf RE'!G18+'C4-FinPerf RE'!G19+'C4-FinPerf RE'!G21+'C4-FinPerf RE'!G22 -> 62824596 | G10: ='C4-FinPerf RE'!H13+'C4-FinPerf RE'!H15+'C4-FinPerf RE'!H16+'C4-FinPerf RE'!H17+'C4-FinPerf RE'!H18+'C4-FinPerf RE'!H19+'C4-FinPerf RE'!H21+'C4-FinPerf RE'!H22 -> 54374120.5 | H10: =F10-G10 -> 8450475.5 | I10: =IF(H10=0,"",H10/G10) -> 0.1554135574 | J10: ='C4-FinPerf RE'!K13+'C4-FinPerf RE'!K15+'C4-FinPerf RE'!K16+'C4-FinPerf RE'!K17+'C4-FinPerf RE'!K18+'C4-FinPerf RE'!K19+'C4-FinPerf RE'!K21+'C4-FinPerf RE'!K22 -> 251298384
A11: Total Revenue (excluding capital transfers and contributions) | B11: =SUM(B6:B10) -> 0 | C11: 1952719877 | D11: 0 | E11: 134961952 | F11: 584663952 | G11: 488179969.2 | H11: =F11-G11 -> 96483982.75 | I11: =IF(H11=0,"",H11/G11) -> 0.1976401918 | J11: 2338655808
A12: Employee costs | B12: ='C4-FinPerf RE'!C26 -> 0 | C12: ='C4-FinPerf RE'!D26 -> 569262676 | D12: ='C4-FinPerf RE'!E26 -> 0 | E12: ='C4-FinPerf RE'!F26 -> 52685599 | F12: ='C4-FinPerf RE'!G26 -> 141383599 | G12: ='C4-FinPerf RE'!H26 -> 142315669 | H12: -932070 | I12: -0.006549313976 | J12: ='C4-FinPerf RE'!K26 -> 565534396
A13: Remuneration of Councillors | B13: ='C4-FinPerf RE'!C27 -> 0 | C13: ='C4-FinPerf RE'!D27 -> 26763326 | D13: ='C4-FinPerf RE'!E27 -> 0 | E13: ='C4-FinPerf RE'!F27 -> 2312434 | F13: ='C4-FinPerf RE'!G27 -> 6879434 | G13: ='C4-FinPerf RE'!H27 -> 6690831.5 | H13: 188602.5 | I13: 0.02818820052 | J13: ='C4-FinPerf RE'!K27 -> 27517736
A14: Depreciation & asset impairment | B14: ='C4-FinPerf RE'!C29 -> 0 | C14: ='C4-FinPerf RE'!D29 -> 192680410 | D14: ='C4-FinPerf RE'!E29 -> 0 | E14: ='C4-FinPerf RE'!F29 -> 0 | F14: ='C4-FinPerf RE'!G29 -> 0 | G14: ='C4-FinPerf RE'!H29 -> 48170102.5 | H14: -48170102.5 | I14: -1 | J14: ='C4-FinPerf RE'!K29 -> 0
A15: Finance charges | B15: ='C4-FinPerf RE'!C30 -> 0 | C15: ='C4-FinPerf RE'!D30 -> 168000000 | D15: ='C4-FinPerf RE'!E30 -> 0 | E15: ='C4-FinPerf RE'!F30 -> 0 | F15: ='C4-FinPerf RE'!G30 -> 0 | G15: ='C4-FinPerf RE'!H30 -> 42000000 | H15: -42000000 | I15: -1 | J15: ='C4-FinPerf RE'!K30 -> 0
A16: Materials and bulk purchases | B16: =SUM('C4-FinPerf RE'!C31:C32) -> 0 | C16: =SUM('C4-FinPerf RE'!D31:D32) -> 764123980 | D16: =SUM('C4-FinPerf RE'!E31:E32) -> 0 | E16: =SUM('C4-FinPerf RE'!F31:F32) -> 2913551 | F16: =SUM('C4-FinPerf RE'!G31:G32) -> 58283551 | G16: =SUM('C4-FinPerf RE'!H31:H32) -> 191030995 | H16: -132747444 | I16: -0.6949000292 | J16: =SUM('C4-FinPerf RE'!K31:K32) -> 233134204
A17: Transfers and grants | B17: ='C4-FinPerf RE'!C34 -> 0 | C17: ='C4-FinPerf RE'!D34 -> 32850000 | D17: ='C4-FinPerf RE'!E34 -> 0 | E17: ='C4-FinPerf RE'!F34 -> 0 | F17: ='C4-FinPerf RE'!G34 -> 0 | G17: ='C4-FinPerf RE'!H34 -> 8212500 | H17: -8212500 | I17: -1 | J17: ='C4-FinPerf RE'!K34 -> 0
A18: Other expenditure | B18: ='C4-FinPerf RE'!C37-SUM('C1-Sum'!B12:B17) -> 0 | C18: ='C4-FinPerf RE'!D37-SUM('C1-Sum'!C12:C17) -> 314992129 | D18: ='C4-FinPerf RE'!E37-SUM('C1-Sum'!D12:D17) -> 0 | E18: ='C4-FinPerf RE'!F37-SUM('C1-Sum'!E12:E17) -> 20862833 | F18: ='C4-FinPerf RE'!G37-SUM('C1-Sum'!F12:F17) -> 64295833 | G18: ='C4-FinPerf RE'!H37-SUM('C1-Sum'!G12:G17) -> 78748032.25 | H18: -14452199.25 | I18: -0.1835245763 | J18: ='C4-FinPerf RE'!K37-SUM('C1-Sum'!J12:J17) -> 257183332
A19: Total Expenditure | B19: =SUM(B12:B18) -> 0 | C19: 2068672521 | D19: 0 | E19: 78774417 | F19: 270842417 | G19: 517168130.2 | H19: -246325713.2 | I19: -0.476297163 | J19: =SUM(J12:J18) -> 1083369668
A20: Surplus/(Deficit) | B20: =B11-B19 -> 0 | C20: -115952644 | D20: 0 | E20: 56187535 | F20: 313821535 | G20: -28988161 | H20: 342809696 | I20: -11.8258518 | J20: =J11-J19 -> 1255286140
A21: Transfers recognised - capital | B21: ='C4-FinPerf RE'!C40 -> 0 | C21: ='C4-FinPerf RE'!D40 -> 116450997 | D21: ='C4-FinPerf RE'!E40 -> 0 | E21: ='C4-FinPerf RE'!F40 -> 600000 | F21: ='C4-FinPerf RE'!G40 -> 41335000 | G21: ='C4-FinPerf RE'!H40 -> 29112749.25 | H21: 12222250.75 | I21: 0.4198246839 | J21: ='C4-FinPerf RE'!K40 -> 165340000
A22: Contributions & Contributed assets | B22: =SUM('C4-FinPerf RE'!C41:C42) -> 0 | C22: =SUM('C4-FinPerf RE'!D41:D42) -> 0 | D22: =SUM('C4-FinPerf RE'!E41:E42) -> 0 | E22: =SUM('C4-FinPerf RE'!F41:F42) -> 0 | F22: =SUM('C4-FinPerf RE'!G41:G42) -> 0 | G22: =SUM('C4-FinPerf RE'!H41:H42) -> 0 | H22: 0 | J22: =SUM('C4-FinPerf RE'!K41:K42) -> 0
A23: Surplus/(Deficit) after capital transfers & contributions | B23: =B20+B21+B22 -> 0 | C23: 498353 | D23: 0 | E23: 56787535 | F23: 355156535 | G23: 124588.25 | H23: 355031946.8 | I23: 2849.642296 | J23: =J20+J21+J22 -> 1420626140
A24: Share of surplus/ (deficit) of associate | B24: ='C4-FinPerf RE'!C48 -> 0 | C24: ='C4-FinPerf RE'!D48 -> 0 | D24: ='C4-FinPerf RE'!E48 -> 0 | E24: ='C4-FinPerf RE'!F48 -> 0 | F24: ='C4-FinPerf RE'!G48 -> 0 | G24: ='C4-FinPerf RE'!H48 -> 0 | H24: 0 | J24: ='C4-FinPerf RE'!K48 -> 0
A25: Surplus/ (Deficit) for the year | B25: =B23+B24 -> 0 | C25: 498353 | D25: 0 | E25: 56787535 | F25: 355156535 | G25: 124588.25 | H25: 355031946.8 | I25: 2849.642296 | J25: =J23+J24 -> 1420626140
A27: Capital expenditure & funds sources
A28: Capital expenditure | B28: ='C5-Capex'!C40 -> 0 | C28: ='C5-Capex'!D40 -> 146450997 | D28: ='C5-Capex'!E40 -> 0 | E28: ='C5-Capex'!F40 -> 8086254 | F28: ='C5-Capex'!G40 -> 19515254 | G28: ='C5-Capex'!H40 -> 36612749.25 | H28: =F28-G28 -> -17097495.25 | I28: =IF(H28=0,"",H28/G28) -> -0.4669820104 | J28: ='C5-Capex'!K40 -> 78061016
A29: Capital transfers recognised | B29: ='C5-Capex'!C70 -> 0 | C29: ='C5-Capex'!D70 -> 116451000 | D29: ='C5-Capex'!E70 -> 0 | E29: ='C5-Capex'!F70 -> 8067104 | F29: ='C5-Capex'!G70 -> 19496104 | G29: ='C5-Capex'!H70 -> 29112750 | H29: -9616646 | I29: -0.330324205 | J29: ='C5-Capex'!K70 -> 77984416
A30: Public contributions & donations | B30: ='C5-Capex'!C71 -> 0 | C30: ='C5-Capex'!D71 -> 0 | D30: ='C5-Capex'!E71 -> 0 | E30: ='C5-Capex'!F71 -> 0 | F30: ='C5-Capex'!G71 -> 0 | G30: ='C5-Capex'!H71 -> 0 | H30: 0 | J30: ='C5-Capex'!K71 -> 0
A31: Borrowing | B31: ='C5-Capex'!C72 -> 0 | C31: ='C5-Capex'!D72 -> 0 | D31: ='C5-Capex'!E72 -> 0 | E31: ='C5-Capex'!F72 -> 0 | F31: ='C5-Capex'!G72 -> 0 | G31: ='C5-Capex'!H72 -> 0 | H31: 0 | J31: ='C5-Capex'!K72 -> 0
A32: Internally generated funds | B32: ='C5-Capex'!C73 -> 0 | C32: ='C5-Capex'!D73 -> 30000000 | D32: ='C5-Capex'!E73 -> 0 | E32: ='C5-Capex'!F73 -> 19150 | F32: ='C5-Capex'!G73 -> 19150 | G32: ='C5-Capex'!H73 -> 7500000 | H32: -7480850 | I32: -0.9974466667 | J32: ='C5-Capex'!K73 -> 76600
A33: Total sources of capital funds | B33: =SUM(B29:B32) -> 0 | C33: 146451000 | D33: 0 | E33: =SUM(E29:E32) -> 8086254 | F33: =SUM(F29:F32) -> 19515254 | G33: =SUM(G29:G32) -> 36612750 | H33: -17097496 | I33: -0.4669820213 | J33: 78061016
A35: Financial position
A36: Total current assets | B36: ='C6-FinPos'!C13 -> 0 | C36: ='C6-FinPos'!D13 -> 2287118657 | D36: ='C6-FinPos'!E13 -> 0 | F36: ='C6-FinPos'!F13 -> 240084167 | J36: ='C6-FinPos'!G13 -> 960336668
A37: Total non current assets | B37: ='C6-FinPos'!C25 -> 0 | C37: ='C6-FinPos'!D25 -> 5480777435 | D37: ='C6-FinPos'!E25 -> 0 | F37: ='C6-FinPos'!F25 -> 20000043 | J37: ='C6-FinPos'!G25 -> 80000172
A38: Total current liabilities | B38: ='C6-FinPos'!C35 -> 0 | C38: ='C6-FinPos'!D35 -> 1483000000 | D38: ='C6-FinPos'!E35 -> 0 | F38: ='C6-FinPos'!F35 -> -43566753 | J38: ='C6-FinPos'!G35 -> -174267012
A39: Total non current liabilities | B39: ='C6-FinPos'!C40 -> 0 | C39: ='C6-FinPos'!D40 -> 318000000 | D39: ='C6-FinPos'!E40 -> 0 | F39: ='C6-FinPos'!F40 -> 0 | J39: ='C6-FinPos'!G40 -> 0
A40: Community wealth/Equity | B40: ='C6-FinPos'!C48 -> 0 | C40: ='C6-FinPos'!D48 -> 5966896092 | D40: ='C6-FinPos'!E48 -> 0 | F40: ='C6-FinPos'!F48 -> 303651000 | J40: ='C6-FinPos'!G48 -> 1214604000
A42: Cash flows
A43: Net cash from (used) operating | B43: ='C7-CFlow'!C18 -> 0 | C43: ='C7-CFlow'!D18 -> 3907924480 | D43: ='C7-CFlow'!E18 -> 0 | E43: ='C7-CFlow'!F18 -> 180067777 | F43: ='C7-CFlow'!G18 -> 715494777 | G43: ='C7-CFlow'!H18 -> 976981120 | H43: =G43-F43 -> 261486343 | I43: =IF(H43=0,"",H43/G43) -> 0.2676472837 | J43: ='C7-CFlow'!K18 -> 2861979108
A44: Net cash from (used) investing | B44: ='C7-CFlow'!C28 -> 0 | C44: ='C7-CFlow'!D28 -> 146450997 | D44: ='C7-CFlow'!E28 -> 0 | E44: ='C7-CFlow'!F28 -> 8086254 | F44: ='C7-CFlow'!G28 -> 19515254 | G44: ='C7-CFlow'!H28 -> 36612749.25 | H44: =G44-F44 -> 17097495.25 | I44: =IF(H44=0,"",H44/G44) -> 0.4669820104 | J44: ='C7-CFlow'!K28 -> 78061016
A45: Net cash from (used) financing | B45: ='C7-CFlow'!C37 -> 0 | C45: ='C7-CFlow'!D37 -> 0 | D45: ='C7-CFlow'!E37 -> 0 | E45: ='C7-CFlow'!F37 -> 0 | F45: ='C7-CFlow'!G37 -> 0 | G45: ='C7-CFlow'!H37 -> 0 | H45: =G45-F45 -> 0 | I45: =IF(H45=0,"",H45/G45) ->  | J45: ='C7-CFlow'!K37 -> 0
A46: Cash/cash equivalents at the month/year end | B46: ='C7-CFlow'!C41 -> 0 | C46: ='C7-CFlow'!D41 -> 4054375477 | D46: ='C7-CFlow'!E41 -> 0 | E46: ='C7-CFlow'!F41 -> 0 | F46: ='C7-CFlow'!G41 -> 735010031 | G46: ='C7-CFlow'!H41 -> 1013593869 | H46: =G46-F46 -> 278583838.2 | I46: =IF(H46=0,"",H46/G46) -> 0.274847596 | J46: ='C7-CFlow'!K41 -> 2940040124
A48: Debtors & creditors analysis | B48: ='SC3'!C3 -> 0-30 Days | C48: ='SC3'!D3 -> 31-60 Days | D48: ='SC3'!E3 -> 61-90 Days | E48: ='SC3'!F3 -> 91-120 Days | F48: ='SC3'!G3 -> 121-150 Dys | G48: ='SC3'!H3 -> 151-180 Dys | H48: ='SC3'!I3 -> 181 Dys-1 Yr | I48: ='SC3'!J3 -> Over 1Yr | J48: Total
A49: =LEFT('SC3'!A4,20) -> Debtors Age Analysis
A50: ='SC3'!A14 -> Total By Income Source | B50: ='SC3'!C14 -> 123042603 | C50: ='SC3'!D14 -> 70392491.29 | D50: ='SC3'!E14 -> 66190137.2 | E50: ='SC3'!F14 -> 60439524.92 | F50: ='SC3'!G14 -> 55509050.11 | G50: ='SC3'!H14 -> 41460225.81 | H50: ='SC3'!I14 -> 273867437.7 | I50: ='SC3'!J14 -> 1140642733 | J50: ='SC3'!K14 -> 1831544203
A51: =LEFT('SC4'!A5,22) -> Creditors Age Analysis
A52: Total Creditors | B52: ='SC4'!C15 -> 79909029 | C52: ='SC4'!D15 -> 117601732 | D52: ='SC4'!E15 -> 162082772 | E52: ='SC4'!F15 -> 49525833 | F52: ='SC4'!G15 -> 1601353438 | G52: ='SC4'!H15 -> 53325321 | H52: ='SC4'!I15 -> 0 | I52: ='SC4'!J15 -> 0 | J52: ='SC4'!K15 -> 2063798125

Sheet C2-FinPerf SC
A1: =muni& " - "&S71A& " - "&date -> FS184 Matjhabeng - Table C2 Monthly Budget Statement - Financial Performance (standard classification) - M03 September
A2: =desc -> Description | B2: =head27 -> Ref | C2: =Head1 -> 2014/15 | D2: =Head2 -> Budget Year 2015/16
C3: =Head5 -> Audited Outcome | D3: =Head6 -> Original Budget | E3: =Head7 -> Adjusted Budget | F3: =Head38 -> Monthly actual | G3: =Head39 -> YearTD actual | H3: =Head40 -> YearTD budget | I3: =Head41 -> YTD variance | J3: =Head41 -> YTD variance | K3: =Head8 -> Full Year Forecast
A4: R thousands | B4: 1 | J4: %
A5: Revenue - Standard
A6: Governance and administration | C6: =SUM(C7:C9) -> 0 | D6: 792404519 | E6: 0 | F6: 32403000 | G6: 338864000 | H6: 198101129.8 | I6: =G6-H6 -> 140762870.2 | J6: =IF(I6=0,"",I6/H6) -> 0.7105606638 | K6: =SUM(K7:K9) -> 1355456000
A7: Executive and council | C7: ='C2C'!C7 -> 0 | D7: ='C2C'!D7 -> 524153000 | E7: ='C2C'!E7 -> 0 | F7: ='C2C'!F7 -> 10139000 | G7: ='C2C'!G7 -> 237274000 | H7: ='C2C'!H7 -> 131038250 | I7: 106235750 | J7: =IF(I7=0,"",I7/H7) -> 0.8107232049 | K7: ='C2C'!K7 -> 949096000
A8: Budget and treasury office | C8: ='C2C'!C10 -> 0 | D8: ='C2C'!D10 -> 268251519 | E8: ='C2C'!E10 -> 0 | F8: ='C2C'!F10 -> 22264000 | G8: ='C2C'!G10 -> 101590000 | H8: ='C2C'!H10 -> 67062879.75 | I8: 34527120.25 | J8: 0.5148469672 | K8: ='C2C'!K10 -> 406360000
A9: Corporate services | C9: ='C2C'!C11 -> 0 | D9: ='C2C'!D11 -> 0 | E9: ='C2C'!E11 -> 0 | F9: ='C2C'!F11 -> 0 | G9: ='C2C'!G11 -> 0 | H9: ='C2C'!H11 -> 0 | I9: 0 | K9: ='C2C'!K11 -> 0
A10: Community and public safety | C10: =SUM(C11:C15) -> 0 | D10: 15503617 | E10: 0 | F10: 3081000 | G10: 4775000 | H10: 3875904.25 | I10: 899095.75 | J10: 0.2319705782 | K10: =SUM(K11:K15) -> 19100000
A11: Community and social services | C11: ='C2C'!C17 -> 0 | D11: ='C2C'!D17 -> 0 | E11: ='C2C'!E17 -> 0 | F11: ='C2C'!F17 -> 0 | G11: ='C2C'!G17 -> 0 | H11: ='C2C'!H17 -> 0 | I11: 0 | K11: ='C2C'!K17 -> 0
A12: Sport and recreation | C12: ='C2C'!C26 -> 0 | D12: ='C2C'!D26 -> 0 | E12: ='C2C'!E26 -> 0 | F12: ='C2C'!F26 -> 0 | G12: ='C2C'!G26 -> 0 | H12: ='C2C'!H26 -> 0 | I12: 0 | K12: ='C2C'!K26 -> 0
A13: Public safety | C13: ='C2C'!C27 -> 0 | D13: ='C2C'!D27 -> 4744531 | E13: ='C2C'!E27 -> 0 | F13: ='C2C'!F27 -> 208000 | G13: ='C2C'!G27 -> 661000 | H13: ='C2C'!H27 -> 1186132.75 | I13: -525132.75 | J13: -0.4427267943 | K13: ='C2C'!K27 -> 2644000
A14: Housing | C14: ='C2C'!C33 -> 0 | D14: ='C2C'!D33 -> 10759086 | E14: ='C2C'!E33 -> 0 | F14: ='C2C'!F33 -> 2873000 | G14: ='C2C'!G33 -> 4114000 | H14: ='C2C'!H33 -> 2689771.5 | I14: =G14-H14 -> 1424228.5 | J14: =IF(I14=0,"",I14/H14) -> 0.5294979518 | K14: ='C2C'!K33 -> 16456000
A15: Health | C15: ='C2C'!C34 -> 0 | D15: ='C2C'!D34 -> 0 | E15: ='C2C'!E34 -> 0 | F15: ='C2C'!F34 -> 0 | G15: ='C2C'!G34 -> 0 | H15: ='C2C'!H34 -> 0 | I15: 0 | K15: ='C2C'!K34 -> 0
A16: Economic and environmental services | C16: =SUM(C17:C19) -> 0 | D16: 31751136 | E16: 0 | F16: 0 | G16: 0 | H16: 7937784 | I16: -7937784 | J16: -1 | K16: =SUM(K17:K19) -> 0
A17: Planning and development | C17: ='C2C'!C39 -> 0 | D17: ='C2C'!D39 -> 14643021 | E17: ='C2C'!E39 -> 0 | F17: ='C2C'!F39 -> 0 | G17: ='C2C'!G39 -> 0 | H17: ='C2C'!H39 -> 3660755.25 | I17: -3660755.25 | J17: -1 | K17: ='C2C'!K39 -> 0
A18: Road transport | C18: ='C2C'!C43 -> 0 | D18: ='C2C'!D43 -> 17108115 | E18: ='C2C'!E43 -> 0 | F18: ='C2C'!F43 -> 0 | G18: ='C2C'!G43 -> 0 | H18: ='C2C'!H43 -> 4277028.75 | I18: -4277028.75 | J18: -1 | K18: ='C2C'!K43 -> 0
A19: Environmental protection | C19: ='C2C'!C49 -> 0 | D19: ='C2C'!D49 -> 0 | E19: ='C2C'!E49 -> 0 | F19: ='C2C'!F49 -> 0 | G19: ='C2C'!G49 -> 0 | H19: ='C2C'!H49 -> 0 | I19: 0 | K19: ='C2C'!K49 -> 0
A20: Trading services | C20: =SUM(C21:C24) -> 0 | D20: =SUM(D21:D24) -> 1218976839 | E20: 0 | F20: 99211000 | G20: 280029000 | H20: 304744209.8 | I20: -24715209.75 | J20: -0.08110149089 | K20: =SUM(K21:K24) -> 1037584000
A21: Electricity | C21: ='C2C'!C54 -> 0 | D21: ='C2C'!D54 -> 748264548 | E21: ='C2C'!E54 -> 0 | F21: ='C2C'!F54 -> 53084000 | G21: ='C2C'!G54 -> 152365000 | H21: ='C2C'!H54 -> 187066137 | I21: =G21-H21 -> -34701137 | J21: -0.1855019704 | K21: ='C2C'!K54 -> 609460000
A22: Water | C22: ='C2C'!C57 -> 0 | D22: ='C2C'!D57 -> 203889265 | E22: ='C2C'!E57 -> 0 | F22: ='C2C'!F57 -> 26392000 | G22: ='C2C'!G57 -> 73367000 | H22: ='C2C'!H57 -> 50972316.25 | I22: =G22-H22 -> 22394683.75 | J22: 0.4393499334 | K22: ='C2C'!K57 -> 293468000
A23: Waste water management | C23: ='C2C'!C60 -> 0 | D23: ='C2C'!D60 -> 151663419 | E23: ='C2C'!E60 -> 0 | F23: ='C2C'!F60 -> 12219000 | G23: ='C2C'!G60 -> 33664000 | H23: ='C2C'!H60 -> 37915854.75 | I23: =G23-H23 -> -4251854.75 | J23: -0.1121392298 | K23: ='C2C'!K60 -> 134656000
A24: Waste management | C24: ='C2C'!C64 -> 0 | D24: ='C2C'!D64 -> 115159607 | E24: ='C2C'!E64 -> 0 | F24: ='C2C'!F64 -> 7516000 | G24: ='C2C'!G64 -> 20633000 | H24: ='C2C'!H64 -> 28789901.75 | I24: =G24-H24 -> -8156901.75 | J24: -0.2833250985 | K24: ='C2C'!K64 -> 0
A25: Other | B25: 4 | C25: ='C2C'!C66 -> 0 | D25: ='C2C'!D66 -> 10535024 | E25: ='C2C'!E66 -> 0 | F25: ='C2C'!F66 -> 867000 | G25: ='C2C'!G66 -> 2331000 | H25: ='C2C'!H66 -> 2633756 | I25: =G25-H25 -> -302756 | J25: -0.1149521824 | K25: ='C2C'!K66 -> 9324000
A26: Total Revenue - Standard | B26: 2 | C26: =C6+C10+C16+C20+C25 -> 0 | D26: =D6+D10+D16+D20+D25 -> 2069171135 | E26: 0 | F26: 135562000 | G26: 625999000 | H26: 517292783.8 | I26: 108706216.2 | J26: 0.2101444669 | K26: =K6+K10+K16+K20+K25 -> 2421464000
A28: Expenditure - Standard
A29: =A6 -> Governance and administration | C29: =SUM(C30:C32) -> 0 | D29: 276334673 | E29: 0 | F29: 24298000 | G29: 71540000 | H29: 69083668.25 | I29: =G29-H29 -> 2456331.75 | J29: =IF(I29=0,"",I29/H29) -> 0.03555589638 | K29: =SUM(K30:K32) -> 286160000
A30: =A7 -> Executive and council | C30: ='C2C'!C76 -> 0 | D30: ='C2C'!D76 -> 142974437 | E30: ='C2C'!E76 -> 0 | F30: ='C2C'!F76 -> 13200000 | G30: ='C2C'!G76 -> 33898000 | H30: ='C2C'!H76 -> 35743609.25 | I30: -1845609.25 | J30: =IF(I30=0,"",I30/H30) -> -0.05163466389 | K30: ='C2C'!K76 -> 135592000
A31: Budget and treasury office | C31: ='C2C'!C79 -> 0 | D31: ='C2C'!D79 -> 63922738 | E31: ='C2C'!E79 -> 0 | F31: ='C2C'!F79 -> 5220000 | G31: ='C2C'!G79 -> 22908000 | H31: ='C2C'!H79 -> 15980684.5 | I31: 6927315.5 | J31: 0.4334805246 | K31: ='C2C'!K79 -> 91632000
A32: Corporate services | C32: ='C2C'!C80 -> 0 | D32: ='C2C'!D80 -> 69437498 | E32: ='C2C'!E80 -> 0 | F32: ='C2C'!F80 -> 5878000 | G32: ='C2C'!G80 -> 14734000 | H32: ='C2C'!H80 -> 17359374.5 | I32: -2625374.5 | J32: -0.1512366992 | K32: ='C2C'!K80 -> 58936000
A33: Community and public safety | C33: =SUM(C34:C38) -> 0 | D33: 359204295 | E33: 0 | F33: 27795000 | G33: 74618000 | H33: 89801073.75 | I33: -15183073.75 | J33: -0.1690745235 | K33: =SUM(K34:K38) -> 298472000
A34: Community and social services | C34: ='C2C'!C86 -> 0 | D34: ='C2C'!D86 -> 42187866 | E34: ='C2C'!E86 -> 0 | F34: ='C2C'!F86 -> 3123000 | G34: ='C2C'!G86 -> 9075000 | H34: ='C2C'!H86 -> 10546966.5 | I34: -1471966.5 | J34: -0.1395630203 | K34: ='C2C'!K86 -> 36300000
A35: Sport and recreation | C35: ='C2C'!C95 -> 0 | D35: ='C2C'!D95 -> 131385165 | E35: ='C2C'!E95 -> 0 | F35: ='C2C'!F95 -> 8427000 | G35: ='C2C'!G95 -> 21626000 | H35: ='C2C'!H95 -> 32846291.25 | I35: -11220291.25 | J35: -0.341599944 | K35: ='C2C'!K95 -> 86504000
A36: Public safety | C36: ='C2C'!C96 -> 0 | D36: ='C2C'!D96 -> 162614466 | E36: ='C2C'!E96 -> 0 | F36: ='C2C'!F96 -> 14167000 | G36: ='C2C'!G96 -> 35728000 | H36: ='C2C'!H96 -> 40653616.5 | I36: -4925616.5 | J36: -0.1211605983 | K36: ='C2C'!K96 -> 142912000
A37: Housing | C37: ='C2C'!C102 -> 0 | D37: ='C2C'!D102 -> 23016798 | E37: ='C2C'!E102 -> 0 | F37: ='C2C'!F102 -> 2078000 | G37: ='C2C'!G102 -> 8189000 | H37: ='C2C'!H102 -> 5754199.5 | I37: 2434800.5 | J37: 0.4231345298 | K37: ='C2C'!K102 -> 32756000
A38: Health | C38: ='C2C'!C103 -> 0 | D38: ='C2C'!D103 -> 0 | E38: ='C2C'!E103 -> 0 | F38: ='C2C'!F103 -> 0 | G38: ='C2C'!G103 -> 0 | H38: ='C2C'!H103 -> 0 | I38: 0 | K38: ='C2C'!K103 -> 0
A39: Economic and environmental services | C39: =SUM(C40:C42) -> 0 | D39: 159103672 | E39: 0 | F39: 7048000 | G39: 16397000 | H39: 39775918 | I39: -23378918 | J39: -0.5877656425 | K39: =SUM(K40:K42) -> 65588000
A40: Planning and development | C40: ='C2C'!C108 -> 0 | D40: ='C2C'!D108 -> 34187490 | E40: ='C2C'!E108 -> 0 | F40: ='C2C'!F108 -> 2102000 | G40: ='C2C'!G108 -> 4115000 | H40: ='C2C'!H108 -> 8546872.5 | I40: -4431872.5 | J40: -0.5185373363 | K40: ='C2C'!K108 -> 16460000
A41: Road transport | C41: ='C2C'!C112 -> 0 | D41: ='C2C'!D112 -> 124916182 | E41: ='C2C'!E112 -> 0 | F41: ='C2C'!F112 -> 4444000 | G41: ='C2C'!G112 -> 11012000 | H41: ='C2C'!H112 -> 31229045.5 | I41: -20217045.5 | J41: -0.6473795525 | K41: ='C2C'!K112 -> 44048000
A42: Environmental protection | C42: ='C2C'!C118 -> 0 | D42: ='C2C'!D118 -> 0 | E42: ='C2C'!E118 -> 0 | F42: ='C2C'!F118 -> 502000 | G42: ='C2C'!G118 -> 1270000 | H42: ='C2C'!H118 -> 0 | I42: 1270000 | K42: ='C2C'!K118 -> 5080000
A43: Trading services | C43: =SUM(C44:C47) -> 0 | D43: =SUM(D44:D47) -> 1268684438 | E43: 0 | F43: 19149000 | G43: 106940000 | H43: 317171109.5 | I43: -210231109.5 | J43: -0.6628318381 | K43: =SUM(K44:K47) -> 462240000
A44: Electricity | C44: ='C2C'!C123 -> 0 | D44: ='C2C'!D123 -> 572453401 | E44: ='C2C'!E123 -> 0 | F44: ='C2C'!F123 -> 3996000 | G44: ='C2C'!G123 -> 54161000 | H44: ='C2C'!H123 -> 143113350.2 | I44: -88952350.25 | J44: -0.6215517287 | K44: ='C2C'!K123 -> 216644000
A45: Water | C45: ='C2C'!C126 -> 0 | D45: ='C2C'!D126 -> 474514794 | E45: ='C2C'!E126 -> 0 | F45: ='C2C'!F126 -> 4298000 | G45: ='C2C'!G126 -> 23800000 | H45: ='C2C'!H126 -> 118628698.5 | I45: -94828698.5 | J45: -0.7993740107 | K45: ='C2C'!K126 -> 95200000
A46: Waste water management | C46: ='C2C'!C129 -> 0 | D46: ='C2C'!D129 -> 120576463 | E46: ='C2C'!E129 -> 0 | F46: ='C2C'!F129 -> 4343000 | G46: ='C2C'!G129 -> 11739000 | H46: ='C2C'!H129 -> 30144115.75 | I46: -18405115.75 | J46: -0.6105707629 | K46: ='C2C'!K129 -> 46956000
A47: Waste management | C47: ='C2C'!C133 -> 0 | D47: ='C2C'!D133 -> 101139780 | E47: ='C2C'!E133 -> 0 | F47: ='C2C'!F133 -> 6512000 | G47: ='C2C'!G133 -> 17240000 | H47: ='C2C'!H133 -> 25284945 | I47: -8044945 | J47: -0.3181713466 | K47: ='C2C'!K133 -> 103440000
A48: Other | C48: ='C2C'!C135 -> 0 | D48: ='C2C'!D135 -> 5345438 | E48: ='C2C'!E135 -> 0 | F48: ='C2C'!F135 -> 484000 | G48: ='C2C'!G135 -> 1347000 | H48: ='C2C'!H135 -> 1336359.5 | I48: 10640.5 | J48: 0.007962303557 | K48: ='C2C'!K135 -> 5388000
A49: Total Expenditure - Standard | B49: 3 | C49: =C29+C33+C39+C43+C48 -> 0 | D49: =D29+D33+D39+D43+D48 -> 2068672516 | E49: 0 | F49: 78774000 | G49: 270842000 | H49: 517168129 | I49: -246326129 | J49: -0.4762979681 | K49: =K29+K33+K39+K43+K48 -> 1117848000
A50: Surplus/ (Deficit) for the year | C50: =C26-C49 -> 0 | D50: 498619 | E50: 0 | F50: 56788000 | G50: 355157000 | H50: 124654.75 | I50: =I26-I49 -> 355032345.2 | J50: =IF(I50=0,"",I50/H50) -> 2848.125284 | K50: =K26-K49 -> 1303616000
A51: =head27a -> References
A52: 1. Government Finance Statistics Functions and Sub-functions are standardised to assist the compilation of national and international accounts for comparison purposes
A53: 2. Total Revenue by standard classification must reconcile to Total Operating Revenue shown in the Financial Performance Statement
A54: 3. Total Expenditure by standard classification must reconcile to total operating expenditure shown in 'Financial Performance Statement'
A55: 4. All amounts must be classified under a standard classification (modified GFS). The GFS function 'Other' is only for Abbatoirs, Air Transport, Markets and Tourism - and if used must be supported by footnotes. Nothing else may be placed under 'Other'. Assign associate share to relevant classification

Sheet C2C
A1: =muni& " - "&S71A& " - "&date -> FS184 Matjhabeng - Table C2 Monthly Budget Statement - Financial Performance (standard classification) - M03 September
A2: =desc -> Description | B2: =head27 -> Ref | C2: =Head1 -> 2014/15 | D2: =Head2 -> Budget Year 2015/16
C3: =Head5 -> Audited Outcome | D3: =Head6 -> Original Budget | E3: =Head7 -> Adjusted Budget | F3: =Head38 -> Monthly actual | G3: =Head39 -> YearTD actual | H3: =Head40 -> YearTD budget | I3: =Head41 -> YTD variance | J3: =Head41 -> YTD variance | K3: =Head8 -> Full Year Forecast
A4: R thousands | B4: 1 | J4: %
A5: Revenue - Standard
A6: Municipal governance and administration | C6: =C7+C10+C11 -> 0 | D6: =D7+D10+D11 -> 792404519 | E6: 0 | F6: 32403000 | G6: 338864000 | H6: 198101129.8 | I6: =G6-H6 -> 140762870.2 | J6: =IF(I6=0,"",I6/H6) -> 0.7105606638 | K6: 1355456000
A7: Executive and council | C7: =SUM(C8:C9) -> 0 | D7: =SUM(D8:D9) -> 524153000 | E7: 0 | F7: 10139000 | G7: 237274000 | H7: 131038250 | I7: =G7-H7 -> 106235750 | J7: =IF(I7=0,"",I7/H7) -> 0.8107232049 | K7: 949096000
A8: Mayor and Council | D8: ='C3C'!D6+'C3C'!D17+'C3C'!D28 -> 406586000 | F8: ='C3C'!F6+'C3C'!F17+'C3C'!F28 -> 600000 | G8: ='C3C'!G6+'C3C'!G17+'C3C'!G28 -> 212248000 | H8: =D8/12*3 -> 101646500 | I8: 110601500 | J8: 1.088099443 | K8: =G8*12/3 -> 848992000
A9: Municipal Manager | D9: ='C3C'!D39-'C3C'!D44 -> 117567000 | F9: ='C3C'!F39-'C3C'!F44 -> 9539000 | G9: ='C3C'!G39-'C3C'!G44 -> 25026000 | H9: =D9/12*3 -> 29391750 | I9: -4365750 | J9: -0.1485365791 | K9: =G9*12/3 -> 100104000
A10: Budget and treasury office | D10: ='C3C'!D61-'C3C'!D67 -> 268251519 | F10: ='C3C'!F61-'C3C'!F67 -> 22264000 | G10: ='C3C'!G61-'C3C'!G67 -> 101590000 | H10: =D10/12*3 -> 67062879.75 | I10: 34527120.25 | J10: 0.5148469672 | K10: 406360000
A11: Corporate services | C11: =SUM(C12:C15) -> 0 | D11: =SUM(D12:D15) -> 0 | E11: 0 | F11: 0 | G11: 0 | H11: 0 | I11: 0 | K11: 0
A12: Human Resources | D12: ='C3C'!D72 -> 0 | F12: ='C3C'!F72 -> 0 | G12: ='C3C'!G72 -> 0 | H12: =D12/12*3 -> 0 | I12: 0 | K12: =G12*12/3 -> 0
A13: Information Technology | D13: ='C3C'!D44 -> 0 | F13: ='C3C'!F44 -> 0 | G13: ='C3C'!G44 -> 0 | H13: =D13/12*3 -> 0 | I13: 0 | K13: 0
A14: Property Services | H14: =D14/12*3 -> 0 | I14: 0 | K14: 0
A15: Other Admin | D15: ='C3C'!D51 -> 0 | F15: ='C3C'!F51 -> 0 | G15: ='C3C'!G51 -> 0 | H15: =D15/12*3 -> 0 | I15: 0 | K15: 0
A16: Community and public safety | C16: =C17+C26+C27+C33+C34 -> 0 | D16: =D17+D26+D27+D33+D34 -> 15503617 | E16: 0 | F16: 3081000 | G16: 4775000 | H16: 3875904.25 | I16: 899095.75 | J16: 0.2319705782 | K16: 19100000
A17: Community and social services | C17: =SUM(C18:C25) -> 0 | D17: =SUM(D18:D25) -> 0 | E17: 0 | F17: 0 | G17: 0 | H17: 0 | I17: 0 | K17: 0
A18: Libraries and Archives | D18: ='C3C'!D52 -> 0 | F18: ='C3C'!F52 -> 0 | G18: ='C3C'!G52 -> 0 | H18: =D18/12*3 -> 0 | I18: 0 | K18: =G18*12/3 -> 0
A19: Museums & Art Galleries etc | H19: 0 | I19: 0 | K19: 0
A20: Community halls and Facilities | D20: ='C3C'!D53 -> 0 | F20: ='C3C'!F53 -> 0 | G20: ='C3C'!G53 -> 0 | H20: 0 | I20: 0 | K20: 0
A21: Cemeteries & Crematoriums | H21: 0 | I21: 0 | K21: 0
A22: Child Care | H22: 0 | I22: 0 | K22: 0
A23: Aged Care | H23: 0 | I23: 0 | K23: 0
A24: Other Community | D24: ='C3C'!D84 -> 0 | F24: ='C3C'!F84 -> 0 | G24: ='C3C'!G84 -> 0 | H24: 0 | I24: 0 | K24: 0
A25: Other Social | H25: 0 | I25: 0 | K25: 0
A26: Sport and recreation | D26: ='C3C'!D85 -> 0 | F26: ='C3C'!F85 -> 0 | G26: ='C3C'!G85 -> 0 | H26: 0 | I26: 0 | K26: 0
A27: Public safety | C27: =SUM(C28:C32) -> 0 | D27: =SUM(D28:D32) -> 4744531 | E27: 0 | F27: 208000 | G27: 661000 | H27: 1186132.75 | I27: -525132.75 | J27: -0.4427267943 | K27: 2644000
A28: Police | D28: ='C3C'!D95+'C3C'!D96 -> 4744531 | F28: ='C3C'!F95+'C3C'!F96 -> 208000 | G28: ='C3C'!G95+'C3C'!G96 -> 661000 | H28: =D28/12*3 -> 1186132.75 | I28: -525132.75 | J28: -0.4427267943 | K28: =G28*12/3 -> 2644000
A29: Fire | D29: ='C3C'!D98 -> 0 | F29: ='C3C'!F98 -> 0 | G29: ='C3C'!G98 -> 0 | H29: 0 | I29: 0 | K29: 0
A30: Civil Defence | D30: ='C3C'!D97 -> 0 | F30: ='C3C'!F97 -> 0 | G30: ='C3C'!G97 -> 0 | H30: 0 | I30: 0 | K30: 0
A31: Street Lighting | D31: ='C3C'!D142 -> 0 | F31: ='C3C'!F142 -> 0 | G31: ='C3C'!G142 -> 0 | H31: 0 | I31: 0 | K31: 0
A32: Other | D32: ='C3C'!D150 -> 0 | F32: ='C3C'!F150 -> 0 | G32: ='C3C'!G150 -> 0 | H32: 0 | I32: 0 | K32: 0
A33: Housing | D33: ='C3C'!D161 -> 10759086 | F33: ='C3C'!F161 -> 2873000 | G33: ='C3C'!G161 -> 4114000 | H33: 2689771.5 | I33: 1424228.5 | J33: 0.5294979518 | K33: 16456000
A34: Health | C34: =SUM(C35:C37) -> 0 | D34: =SUM(D35:D37) -> 0 | E34: 0 | F34: 0 | G34: 0 | H34: 0 | I34: 0 | K34: 0
A35: Clinics | I35: 0
A36: Ambulance | I36: 0
A37: Other | I37: 0
A38: Economic and environmental services | C38: =C39+C43+C49 -> 0 | D38: =D39+D43+D49 -> 31751136 | E38: 0 | F38: 0 | G38: 0 | H38: 7937784 | I38: -7937784 | J38: -1 | K38: 0
A39: Planning and development | C39: =SUM(C40:C42) -> 0 | D39: =SUM(D40:D42) -> 14643021 | E39: 0 | F39: 0 | G39: 0 | H39: 3660755.25 | I39: -3660755.25 | J39: -1 | K39: 0
A40: Economic Development/Planning | D40: ='C3C'!D106 -> 14643021 | F40: ='C3C'!F106 -> 0 | G40: ='C3C'!G106 -> 0 | H40: =D40/12*3 -> 3660755.25 | I40: -3660755.25 | J40: -1 | K40: =G40*12/3 -> 0
A41: Town Planning/Building enforcement | I41: 0
A42: Licensing & Regulation | I42: 0
A43: Road transport | C43: =SUM(C44:C48) -> 0 | D43: =SUM(D44:D48) -> 17108115 | E43: 0 | F43: 0 | G43: 0 | H43: 4277028.75 | I43: -4277028.75 | J43: -1 | K43: 0
A44: Roads | D44: ='C3C'!D122 -> 17108115 | F44: ='C3C'!F122 -> 0 | G44: ='C3C'!G122 -> 0 | H44: =D44/12*3 -> 4277028.75 | I44: -4277028.75 | J44: -1 | K44: =G44*12/3 -> 0
A45: Public Buses | H45: =D45/12*3 -> 0 | I45: 0
A46: Parking Garages | H46: =D46/12*3 -> 0 | I46: 0
A47: Vehicle Licensing and Testing | H47: =D47/12*3 -> 0 | I47: 0
A48: Other | D48: ='C3C'!D117+'C3C'!D118+'C3C'!D119+'C3C'!D120+'C3C'!D121 -> 0 | F48: ='C3C'!F117+'C3C'!F118+'C3C'!F119+'C3C'!F120+'C3C'!F121 -> 0 | G48: ='C3C'!G117+'C3C'!G118+'C3C'!G119+'C3C'!G120+'C3C'!G121 -> 0 | H48: =D48/12*3 -> 0 | I48: 0
A49: Environmental protection | C49: =SUM(C50:C52) -> 0 | D49: =SUM(D50:D52) -> 0 | E49: 0 | F49: 0 | G49: 0 | H49: 0 | I49: 0 | K49: 0
A50: Pollution Control | I50: 0
A51: Biodiversity & Landscape | I51: 0
A52: Other | D52: ='C3C'!D87 -> 0 | F52: ='C3C'!F87 -> 0 | G52: ='C3C'!G87 -> 0 | H52: =D52/12*3 -> 0 | I52: 0
A53: Trading services | C53: =C54+C57+C60+C64 -> 0 | D53: =D54+D57+D60+D64 -> 1218976839 | E53: 0 | F53: 99211000 | G53: 280029000 | H53: 304744209.8 | I53: -24715209.75 | J53: -0.08110149089 | K53: =K54+K57+K60+K64 -> 1037584000
A54: Electricity | C54: =SUM(C55:C56) -> 0 | D54: =SUM(D55:D56) -> 748264548 | E54: 0 | F54: 53084000 | G54: 152365000 | H54: 187066137 | I54: -34701137 | J54: -0.1855019704 | K54: 609460000
A55: Electricity Distribution | D55: ='C3C'!D138-'C3C'!D142 -> 748264548 | F55: ='C3C'!F138-'C3C'!F142 -> 53084000 | G55: ='C3C'!G138-'C3C'!G142 -> 152365000 | H55: =D55/12*3 -> 187066137 | I55: -34701137 | J55: -0.1855019704 | K55: =G55*12/3 -> 609460000
A56: Electricity Generation | I56: 0
A57: Water | C57: =SUM(C58:C59) -> 0 | D57: =SUM(D58:D59) -> 203889265 | E57: 0 | F57: 26392000 | G57: 73367000 | H57: 50972316.25 | I57: 22394683.75 | J57: 0.4393499334 | K57: 293468000
A58: Water Distribution | D58: ='C3C'!D128+'C3C'!D129+'C3C'!D130 -> 203889265 | F58: ='C3C'!F128+'C3C'!F129+'C3C'!F130 -> 26392000 | G58: ='C3C'!G128+'C3C'!G129+'C3C'!G130 -> 73367000 | H58: =D58/12*3 -> 50972316.25 | I58: 22394683.75 | J58: 0.4393499334 | K58: =G58*12/3 -> 293468000
A59: Water Storage | H59: =D59/12*3 -> 0 | I59: 0 | K59: 0
A60: Waste water management | C60: =SUM(C61:C63) -> 0 | D60: =SUM(D61:D63) -> 151663419 | E60: 0 | F60: 12219000 | G60: 33664000 | H60: 37915854.75 | I60: -4251854.75 | J60: -0.1121392298 | K60: 134656000
A61: Sewerage | D61: ='C3C'!D131+'C3C'!D132 -> 151663419 | F61: ='C3C'!F131+'C3C'!F132 -> 12219000 | G61: ='C3C'!G131+'C3C'!G132 -> 33664000 | H61: =D61/12*3 -> 37915854.75 | I61: -4251854.75 | J61: -0.1121392298 | K61: =G61*12/3 -> 134656000
A62: Storm Water Management | I62: 0
A63: Public Toilets | I63: 0
A64: Waste management | C64: =SUM(C65) -> 0 | D64: =SUM(D65) -> 115159607 | E64: 0 | F64: 7516000 | G64: 20633000 | H64: 28789901.75 | I64: -8156901.75 | J64: -0.2833250985 | K64: 0
A65: Solid Waste | D65: ='C3C'!D86 -> 115159607 | F65: ='C3C'!F86 -> 7516000 | G65: ='C3C'!G86 -> 20633000 | H65: =D65/12*3 -> 28789901.75 | I65: -8156901.75 | J65: -0.2833250985
A66: Other | C66: =SUM(C67:C71) -> 0 | D66: =SUM(D67:D71) -> 10535024 | E66: 0 | F66: 867000 | G66: 2331000 | H66: 2633756 | I66: -302756 | J66: -0.1149521824 | K66: 9324000
A67: Air Transport | I67: 0
A68: Abattoirs | I68: 0
A69: Tourism | I69: 0
A70: Forestry | I70: 0
A71: Markets | D71: ='C3C'!D67 -> 10535024 | F71: ='C3C'!F67 -> 867000 | G71: ='C3C'!G67 -> 2331000 | H71: =D71/12*3 -> 2633756 | I71: =G71-H71 -> -302756 | J71: =IF(I71=0,"",I71/H71) -> -0.1149521824 | K71: =G71*12/3 -> 9324000
A72: ="Total "&A5 -> Total Revenue - Standard | B72: 2 | C72: =C6+C16+C38+C53+C66 -> 0 | D72: 2069171135 | E72: 0 | F72: 135562000 | G72: 625999000 | H72: 517292783.8 | I72: =G72-H72 -> 108706216.2 | J72: =IF(I72=0,"",I72/H72) -> 0.2101444669 | K72: =K6+K16+K38+K53+K66 -> 2421464000
A74: Expenditure - Standard
A75: =A6 -> Municipal governance and administration | C75: =C76+C79+C80 -> 0 | D75: 276334673 | E75: 0 | F75: 24298000 | G75: 71540000 | H75: 69083668.25 | I75: =G75-H75 -> 2456331.75 | J75: =IF(I75=0,"",I75/H75) -> 0.03555589638 | K75: 286160000
A76: =A7 -> Executive and council | C76: =SUM(C77:C78) -> 0 | D76: 142974437 | E76: 0 | F76: 13200000 | G76: 33898000 | H76: 35743609.25 | I76: -1845609.25 | J76: -0.05163466389 | K76: 135592000
A77: Mayor and Council | D77: ='C3C'!D174+'C3C'!D185+'C3C'!D196 -> 105292437 | F77: ='C3C'!F174+'C3C'!F185+'C3C'!F196 -> 9641000 | G77: ='C3C'!G174+'C3C'!G185+'C3C'!G196 -> 21613000 | H77: =D77/12*3 -> 26323109.25 | I77: -4710109.25 | J77: -0.1789343806 | K77: =G77*12/3 -> 86452000
A78: Municipal Manager | D78: ='C3C'!D207-'C3C'!D212 -> 37682000 | F78: ='C3C'!F207-'C3C'!F212 -> 3559000 | G78: ='C3C'!G207-'C3C'!G212 -> 12285000 | H78: =D78/12*3 -> 9420500 | I78: 2864500 | J78: 0.3040709092 | K78: 49140000
A79: Budget and treasury office | D79: ='C3C'!D229-'C3C'!D235 -> 63922738 | F79: ='C3C'!F229-'C3C'!F235 -> 5220000 | G79: ='C3C'!G229-'C3C'!G235 -> 22908000 | H79: =D79/12*3 -> 15980684.5 | I79: 6927315.5 | J79: 0.4334805246 | K79: 91632000
A80: Corporate services | C80: =SUM(C81:C84) -> 0 | D80: 69437498 | E80: 0 | F80: 5878000 | G80: 14734000 | H80: 17359374.5 | I80: -2625374.5 | J80: -0.1512366992 | K80: 58936000
A81: Human Resources | D81: ='C3C'!D240 -> 15261743 | F81: ='C3C'!F240 -> 1241000 | G81: ='C3C'!G240 -> 3212000 | H81: =D81/12*3 -> 3815435.75 | I81: -603435.75 | J81: -0.1581564439 | K81: =G81*12/3 -> 12848000
A82: Information Technology | D82: ='C3C'!D212 -> 24155678 | F82: ='C3C'!F212 -> 533000 | G82: ='C3C'!G212 -> 2650000 | H82: =D82/12*3 -> 6038919.5 | I82: -3388919.5 | J82: -0.5611797773 | K82: 10600000
A83: Property Services | H83: =D83/12*3 -> 0 | I83: 0 | K83: 0
A84: Other Admin | D84: ='C3C'!D219 -> 30020077 | F84: ='C3C'!F219 -> 4104000 | G84: ='C3C'!G219 -> 8872000 | H84: =D84/12*3 -> 7505019.25 | I84: 1366980.75 | J84: 0.1821422044 | K84: 35488000
A85: Community and public safety | C85: =C86+C95+C96+C102+C103 -> 0 | D85: 359204295 | E85: 0 | F85: 27795000 | G85: 74618000 | H85: 89801073.75 | I85: -15183073.75 | J85: -0.1690745235 | K85: 298472000
A86: Community and social services | C86: =SUM(C87:C94) -> 0 | D86: 42187866 | E86: 0 | F86: 3123000 | G86: 9075000 | H86: 10546966.5 | I86: -1471966.5 | J86: -0.1395630203 | K86: 36300000
A87: Libraries and Archives | D87: ='C3C'!D220 -> 16320906 | F87: ='C3C'!F220 -> 1324000 | G87: ='C3C'!G220 -> 3730000 | H87: =D87/12*3 -> 4080226.5 | I87: -350226.5 | J87: -0.08583506332 | K87: =G87*12/3 -> 14920000
A88: Museums & Art Galleries etc | H88: 0 | I88: 0 | K88: 0
A89: Community halls and Facilities | D89: ='C3C'!D221 -> 13478728 | F89: ='C3C'!F221 -> 1309000 | G89: ='C3C'!G221 -> 3963000 | H89: 3369682 | I89: 593318 | J89: 0.1760753685 | K89: 15852000
A90: Cemeteries & Crematoriums | H90: 0 | I90: 0 | K90: 0
A91: Child Care | H91: 0 | I91: 0 | K91: 0
A92: Aged Care | H92: 0 | I92: 0 | K92: 0
A93: Other Community | D93: ='C3C'!D252 -> 12388232 | F93: ='C3C'!F252 -> 490000 | G93: ='C3C'!G252 -> 1382000 | H93: 3097058 | I93: -1715058 | J93: -0.5537700618 | K93: 5528000
A94: Other Social | H94: 0 | I94: 0 | K94: 0
A95: Sport and recreation | D95: ='C3C'!D253 -> 131385165 | F95: ='C3C'!F253 -> 8427000 | G95: ='C3C'!G253 -> 21626000 | H95: 32846291.25 | I95: -11220291.25 | J95: -0.341599944 | K95: 86504000
A96: Public safety | C96: =SUM(C97:C101) -> 0 | D96: 162614466 | E96: 0 | F96: 14167000 | G96: 35728000 | H96: 40653616.5 | I96: -4925616.5 | J96: -0.1211605983 | K96: 142912000
A97: Police | D97: ='C3C'!D263+'C3C'!D264 -> 57366839 | F97: ='C3C'!F263+'C3C'!F264 -> 4832000 | G97: ='C3C'!G263+'C3C'!G264 -> 12887000 | H97: =D97/12*3 -> 14341709.75 | I97: -1454709.75 | J97: -0.1014321009 | K97: =G97*12/3 -> 51548000
A98: Fire | D98: ='C3C'!D266 -> 39064484 | F98: ='C3C'!F266 -> 2720000 | G98: ='C3C'!G266 -> 8913000 | H98: 9766121 | I98: -853121 | J98: -0.0873551536 | K98: 35652000
A99: Civil Defence | D99: ='C3C'!D265 -> 46975269 | F99: ='C3C'!F265 -> 5487000 | G99: ='C3C'!G265 -> 11031000 | H99: 11743817.25 | I99: -712817.25 | J99: -0.06069723624 | K99: 44124000
A100: Street Lighting | D100: ='C3C'!D310 -> 10871920 | F100: ='C3C'!F310 -> 432000 | G100: ='C3C'!G310 -> 910000 | H100: 2717980 | I100: -1807980 | J100: -0.6651925327 | K100: 3640000
A101: Other | D101: ='C3C'!D318 -> 8335954 | F101: ='C3C'!F318 -> 696000 | G101: ='C3C'!G318 -> 1987000 | H101: 2083988.5 | I101: -96988.5 | J101: -0.04653984415 | K101: 7948000
A102: Housing | D102: ='C3C'!D329 -> 23016798 | F102: ='C3C'!F329 -> 2078000 | G102: ='C3C'!G329 -> 8189000 | H102: 5754199.5 | I102: 2434800.5 | J102: 0.4231345298 | K102: 32756000
A103: Health | C103: =SUM(C104:C106) -> 0 | D103: 0 | E103: 0 | F103: 0 | G103: 0 | H103: 0 | I103: 0 | K103: 0
A104: Clinics | H104: =D104/12*3 -> 0 | I104: 0 | K104: =G104*12/3 -> 0
A105: Ambulance | H105: =D105/12*3 -> 0 | I105: 0 | K105: 0
A106: Other | H106: =D106/12*3 -> 0 | I106: 0 | K106: 0
A107: Economic and environmental services | C107: =C108+C112+C118 -> 0 | D107: 159103672 | E107: 0 | F107: 7048000 | G107: 16397000 | H107: 39775918 | I107: -23378918 | J107: -0.5877656425 | K107: 65588000
A108: Planning and development | C108: =SUM(C109:C111) -> 0 | D108: 34187490 | E108: 0 | F108: 2102000 | G108: 4115000 | H108: 8546872.5 | I108: -4431872.5 | J108: -0.5185373363 | K108: 16460000
A109: Economic Development/Planning | D109: ='C3C'!D274 -> 34187490 | F109: ='C3C'!F274 -> 2102000 | G109: ='C3C'!G274 -> 4115000 | H109: =D109/12*3 -> 8546872.5 | I109: -4431872.5 | J109: -0.5185373363 | K109: =G109*12/3 -> 16460000
A110: Town Planning/Building enforcement | H110: =D110/12*3 -> 0 | I110: 0 | K110: 0
A111: Licensing & Regulation | H111: =D111/12*3 -> 0 | I111: 0 | K111: 0
A112: Road transport | C112: =SUM(C113:C117) -> 0 | D112: 124916182 | E112: 0 | F112: 4444000 | G112: 11012000 | H112: 31229045.5 | I112: -20217045.5 | J112: -0.6473795525 | K112: 44048000
A113: Roads | D113: ='C3C'!D290 -> 102278797 | F113: ='C3C'!F290 -> 1629000 | G113: ='C3C'!G290 -> 4144000 | H113: =D113/12*3 -> 25569699.25 | I113: -21425699.25 | J113: -0.837933174 | K113: =G113*12/3 -> 16576000
A114: Public Buses | H114: =D114/12*3 -> 0 | I114: 0 | K114: 0
A115: Parking Garages | H115: =D115/12*3 -> 0 | I115: 0 | K115: 0
A116: Vehicle Licensing and Testing | H116: =D116/12*3 -> 0 | I116: 0 | K116: 0
A117: Other | D117: ='C3C'!D285+'C3C'!D286+'C3C'!D287+'C3C'!D288+'C3C'!D289 -> 22637385 | F117: ='C3C'!F285+'C3C'!F286+'C3C'!F287+'C3C'!F288+'C3C'!F289 -> 2815000 | G117: ='C3C'!G285+'C3C'!G286+'C3C'!G287+'C3C'!G288+'C3C'!G289 -> 6868000 | H117: =D117/12*3 -> 5659346.25 | I117: 1208653.75 | J117: 0.2135677332 | K117: 27472000
A118: Environmental protection | C118: =SUM(C119:C121) -> 0 | D118: 0 | E118: 0 | F118: 502000 | G118: 1270000 | H118: 0 | I118: 1270000 | K118: 5080000
A119: Pollution Control | I119: 0 | K119: =G119*12/3 -> 0
A120: Biodiversity & Landscape | I120: 0 | K120: 0
A121: Other | D121: ='C3C'!D255 -> 0 | F121: ='C3C'!F255 -> 502000 | G121: ='C3C'!G255 -> 1270000 | H121: =D121/12*3 -> 0 | I121: 1270000 | K121: 5080000
A122: Trading services | C122: =C123+C126+C129+C133 -> 0 | D122: =D123+D126+D129+D133 -> 1268684438 | E122: 0 | F122: 19149000 | G122: 106940000 | H122: 317171109.5 | I122: -210231109.5 | J122: -0.6628318381 | K122: =K123+K126+K129+K133 -> 462240000
A123: Electricity | C123: =SUM(C124:C125) -> 0 | D123: 572453401 | E123: 0 | F123: 3996000 | G123: 54161000 | H123: 143113350.2 | I123: -88952350.25 | J123: -0.6215517287 | K123: 216644000
A124: Electricity Distribution | D124: ='C3C'!D306-'C3C'!D310 -> 572453401 | F124: ='C3C'!F306-'C3C'!F310 -> 3996000 | G124: ='C3C'!G306-'C3C'!G310 -> 54161000 | H124: =D124/12*3 -> 143113350.2 | I124: -88952350.25 | J124: -0.6215517287 | K124: =G124*12/3 -> 216644000
A125: Electricity Generation | I125: 0 | K125: 0
A126: Water | C126: =SUM(C127:C128) -> 0 | D126: 474514794 | E126: 0 | F126: 4298000 | G126: 23800000 | H126: 118628698.5 | I126: -94828698.5 | J126: -0.7993740107 | K126: 95200000
A127: Water Distribution | D127: ='C3C'!D296+'C3C'!D297+'C3C'!D298 -> 474514794 | F127: ='C3C'!F296+'C3C'!F297+'C3C'!F298 -> 4298000 | G127: ='C3C'!G296+'C3C'!G297+'C3C'!G298 -> 23800000 | H127: =D127/12*3 -> 118628698.5 | I127: -94828698.5 | J127: -0.7993740107 | K127: =G127*12/3 -> 95200000
A128: Water Storage | I128: 0 | K128: 0
A129: Waste water management | C129: =SUM(C130:C132) -> 0 | D129: 120576463 | E129: 0 | F129: 4343000 | G129: 11739000 | H129: 30144115.75 | I129: -18405115.75 | J129: -0.6105707629 | K129: 46956000
A130: Sewerage | D130: ='C3C'!D299+'C3C'!D300 -> 100278797 | F130: ='C3C'!F299+'C3C'!F300 -> 3313000 | G130: ='C3C'!G299+'C3C'!G300 -> 8622000 | H130: =D130/12*3 -> 25069699.25 | I130: -16447699.25 | J130: -0.6560788419 | K130: =G130*12/3 -> 34488000
A131: Storm Water Management | D131: ='C3C'!D291+'C3C'!D292 -> 20297666 | F131: ='C3C'!F291+'C3C'!F292 -> 1030000 | G131: ='C3C'!G291+'C3C'!G292 -> 3117000 | H131: =D131/12*3 -> 5074416.5 | I131: -1957416.5 | J131: -0.3857421834 | K131: 12468000
A132: Public Toilets | I132: 0 | K132: 0
A133: Waste management | C133: =SUM(C134) -> 0 | D133: 101139780 | E133: 0 | F133: 6512000 | G133: 17240000 | H133: 25284945 | I133: -8044945 | J133: -0.3181713466 | K133: 103440000
A134: Solid Waste | D134: ='C3C'!D254 -> 101139780 | F134: ='C3C'!F254 -> 6512000 | G134: ='C3C'!G254 -> 17240000 | H134: =D134/12*3 -> 25284945 | I134: -8044945 | J134: -0.3181713466 | K134: =G134*12/2 -> 103440000
A135: Other | C135: =SUM(C136:C140) -> 0 | D135: 5345438 | E135: 0 | F135: 484000 | G135: 1347000 | H135: 1336359.5 | I135: 10640.5 | J135: 0.007962303557 | K135: 5388000
A136: Air Transport | I136: 0 | K136: =G136*12/3 -> 0
A137: Abattoirs | I137: 0 | K137: 0
A138: Tourism | I138: 0 | K138: 0
A139: Forestry | I139: =G139-H139 -> 0 | J139: =IF(I139=0,"",I139/H139) ->  | K139: 0
A140: =A71 -> Markets | D140: ='C3C'!D235 -> 5345438 | F140: ='C3C'!F235 -> 484000 | G140: ='C3C'!G235 -> 1347000 | H140: =D140/12*3 -> 1336359.5 | I140: =G140-H140 -> 10640.5 | J140: =IF(I140=0,"",I140/H140) -> 0.007962303557 | K140: 5388000
A141: ="Total "&A74 -> Total Expenditure - Standard | B141: 3 | C141: =C75+C85+C107+C122+C135 -> 0 | D141: =D75+D85+D107+D122+D135 -> 2068672516 | E141: 0 | F141: 78774000 | G141: 270842000 | H141: 517168129 | I141: -246326129 | J141: =IF(I141=0,"",I141/H141) -> -0.4762979681 | K141: =K75+K85+K107+K122+K135 -> 1117848000
A142: =result -> Surplus/ (Deficit) for the year | C142: =C72-C141 -> 0 | D142: 498619 | E142: 0 | F142: 56788000 | G142: 355157000 | H142: 124654.75 | I142: =G142-H142 -> 355032345.2 | J142: =IF(I142=0,"",I142/H142) -> 2848.125284 | K142: 1303616000
A143: =head27a -> References
A144: 1. Government Finance Statistics Functions and Sub-functions are standardised to assist national and international accounts and comparison
A145: 2. Total Revenue by Standard Classification must reconcile to total operating revenue shown in Financial Performance (revenue and expenditure)
A146: 3. Total Expenditure by Standard Classification must reconcile to total operating expenditure shown in Financial Performance (revenue and expenditure)
A147: 4. All amounts must be classified under a Standard (modified GFS) classification. The GFS function 'Other' is only for Abbatoirs, Air Transport, Markets and Tourism - and if used must be supported by footnotes. Nothing else may be placed under 'Other'. Assign associate share to relevant classification
A150: check oprev balance | C150: =C72 -> 0 | D150: 0 | E150: 0 | F150: 0 | G150: 0 | H150: 0 | I150: 0 | K150: 0
A151: check opexp balance | C151: 0 | D151: 0 | E151: 0 | F151: 0 | G151: 0 | H151: 0 | I151: 0 | K151: 0

Sheet C3-FinPerf V
A1: =muni& " - "&S71C& " - "&date -> FS184 Matjhabeng - Table C3 Monthly Budget Statement - Financial Performance (revenue and expenditure by municipal vote) - M03 September
A2: =Vdesc -> Vote Description | B2: =head27 -> Ref | C2: =Head1 -> 2014/15 | D2: =Head2 -> Budget Year 2015/16
C3: =Head5 -> Audited Outcome | D3: =Head6 -> Original Budget | E3: =Head7 -> Adjusted Budget | F3: =Head38 -> Monthly actual | G3: =Head39 -> YearTD actual | H3: =Head40 -> YearTD budget | I3: =Head41 -> YTD variance | J3: =Head41 -> YTD variance | K3: =Head8 -> Full Year Forecast
A4: R thousands | J4: %
A5: Revenue by Vote | B5: 1
A6: ='Org structure'!A2 -> Vote 1 - COUNCIL GENERAL | C6: ='C3C'!C6 -> 0 | D6: ='C3C'!D6 -> 406586000 | E6: ='C3C'!E6 -> 0 | F6: ='C3C'!F6 -> 600000 | G6: ='C3C'!G6 -> 212248000 | H6: ='C3C'!H6 -> 101646500 | I6: =G6-H6 -> 110601500 | J6: =IF(I6=0,"",I6/H6) -> 1.088099443 | K6: ='C3C'!K6 -> 848992000
A7: ='Org structure'!A3 -> Vote 2 - OFFICE OF THE EXECUTIVE MAYOR | C7: ='C3C'!C17 -> 0 | D7: ='C3C'!D17 -> 0 | E7: ='C3C'!E17 -> 0 | F7: ='C3C'!F17 -> 0 | G7: ='C3C'!G17 -> 0 | H7: ='C3C'!H17 -> 0 | I7: =G7-H7 -> 0 | J7: =IF(I7=0,"",I7/H7) ->  | K7: ='C3C'!K17 -> 0
A8: ='Org structure'!A4 -> Vote 3 - OFFICE OF THE SPEAKER | C8: ='C3C'!C28 -> 0 | D8: ='C3C'!D28 -> 0 | E8: ='C3C'!E28 -> 0 | F8: ='C3C'!F28 -> 0 | G8: ='C3C'!G28 -> 0 | H8: ='C3C'!H28 -> 0 | I8: 0 | K8: ='C3C'!K28 -> 0
A9: ='Org structure'!A5 -> Vote 4 - OFFICE OF THE MUNICIPAL MANAGER | C9: ='C3C'!C39 -> 0 | D9: ='C3C'!D39 -> 117567000 | E9: ='C3C'!E39 -> 0 | F9: ='C3C'!F39 -> 9539000 | G9: ='C3C'!G39 -> 25026000 | H9: ='C3C'!H39 -> 29391750 | I9: -4365750 | J9: -0.1485365791 | K9: ='C3C'!K39 -> 100104000
A10: ='Org structure'!A6 -> Vote 5 - CORPORATE SUPPORT SERVICES | C10: ='C3C'!C50 -> 0 | D10: ='C3C'!D50 -> 0 | E10: ='C3C'!E50 -> 0 | F10: ='C3C'!F50 -> 0 | G10: ='C3C'!G50 -> 0 | H10: ='C3C'!H50 -> 0 | I10: 0 | K10: ='C3C'!K50 -> 0
A11: ='Org structure'!A7 -> Vote 6 - FINANCE | C11: ='C3C'!C61 -> 0 | D11: ='C3C'!D61 -> 278786543 | E11: ='C3C'!E61 -> 0 | F11: ='C3C'!F61 -> 23131000 | G11: ='C3C'!G61 -> 103921000 | H11: ='C3C'!H61 -> 69696635.75 | I11: 34224364.25 | J11: 0.491047579 | K11: ='C3C'!K61 -> 415684000
A12: ='Org structure'!A8 -> Vote 7 - HUMAN RESOURCES | C12: ='C3C'!C72 -> 0 | D12: ='C3C'!D72 -> 0 | E12: ='C3C'!E72 -> 0 | F12: ='C3C'!F72 -> 0 | G12: ='C3C'!G72 -> 0 | H12: ='C3C'!H72 -> 0 | I12: 0 | K12: ='C3C'!K72 -> 0
A13: ='Org structure'!A9 -> Vote 8 - COMMUNITY SERVICES | C13: ='C3C'!C83 -> 0 | D13: ='C3C'!D83 -> 115159607 | E13: ='C3C'!E83 -> 0 | F13: ='C3C'!F83 -> 7516000 | G13: ='C3C'!G83 -> 20633000 | H13: ='C3C'!H83 -> 28789901.75 | I13: -8156901.75 | J13: -0.2833250985 | K13: ='C3C'!K83 -> 82532000
A14: ='Org structure'!A10 -> Vote 9 - PUBLIC SAFETY AND TRANSPORT | C14: ='C3C'!C94 -> 0 | D14: ='C3C'!D94 -> 4744531 | E14: ='C3C'!E94 -> 0 | F14: ='C3C'!F94 -> 208000 | G14: ='C3C'!G94 -> 661000 | H14: ='C3C'!H94 -> 1186132.75 | I14: -525132.75 | J14: -0.4427267943 | K14: ='C3C'!K94 -> 2644000
A15: ='Org structure'!A11 -> Vote 10 - ECONOMIC DEVELOPMENT | C15: ='C3C'!C105 -> 0 | D15: ='C3C'!D105 -> 14643021 | E15: ='C3C'!E105 -> 0 | F15: ='C3C'!F105 -> 0 | G15: ='C3C'!G105 -> 0 | H15: ='C3C'!H105 -> 3660755.25 | I15: -3660755.25 | J15: -1 | K15: ='C3C'!K105 -> 0
A16: ='Org structure'!A12 -> Vote 11 - ENGINEERING SERVICES | C16: ='C3C'!C116 -> 0 | D16: ='C3C'!D116 -> 17108115 | E16: ='C3C'!E116 -> 0 | F16: ='C3C'!F116 -> 0 | G16: ='C3C'!G116 -> 0 | H16: ='C3C'!H116 -> 4277028.75 | I16: -4277028.75 | J16: -1 | K16: ='C3C'!K116 -> 0
A17: ='Org structure'!A13 -> Vote 12 - WATER | C17: ='C3C'!C127 -> 0 | D17: ='C3C'!D127 -> 355552684 | E17: ='C3C'!E127 -> 0 | F17: ='C3C'!F127 -> 38611000 | G17: ='C3C'!G127 -> 107031000 | H17: ='C3C'!H127 -> 88888171 | I17: 18142829 | J17: 0.2041084747 | K17: ='C3C'!K127 -> 428124000
A18: ='Org structure'!A14 -> Vote 13 - ELECTRICITY | C18: ='C3C'!C138 -> 0 | D18: ='C3C'!D138 -> 748264548 | E18: ='C3C'!E138 -> 0 | F18: ='C3C'!F138 -> 53084000 | G18: ='C3C'!G138 -> 152365000 | H18: ='C3C'!H138 -> 187066137 | I18: -34701137 | J18: -0.1855019704 | K18: ='C3C'!K138 -> 609460000
A19: ='Org structure'!A15 -> Vote 14 - MECHANICAL WORKSHOP | C19: ='C3C'!C149 -> 0 | D19: ='C3C'!D149 -> 0 | E19: ='C3C'!E149 -> 0 | F19: ='C3C'!F149 -> 0 | G19: ='C3C'!G149 -> 0 | H19: ='C3C'!H149 -> 0 | I19: 0 | K19: ='C3C'!K149 -> 0
A20: ='Org structure'!A16 -> Vote 15 - HOUSING SERVICES | C20: ='C3C'!C160 -> 0 | D20: ='C3C'!D160 -> 10759086 | E20: ='C3C'!E160 -> 0 | F20: ='C3C'!F160 -> 2873000 | G20: ='C3C'!G160 -> 4114000 | H20: ='C3C'!H160 -> 2689771.5 | I20: 1424228.5 | J20: 0.5294979518 | K20: ='C3C'!K160 -> 16456000
A21: Total Revenue by Vote | B21: 2 | C21: =SUM(C6:C20) -> 0 | D21: =SUM(D6:D20) -> 2069171135 | E21: 0 | F21: 135562000 | G21: 625999000 | H21: 517292783.8 | I21: 108706216.2 | J21: 0.2101444669 | K21: =SUM(K6:K20) -> 2503996000
A23: Expenditure by Vote | B23: 1
A24: ='Org structure'!A2 -> Vote 1 - COUNCIL GENERAL | C24: ='C3C'!C174 -> 0 | D24: ='C3C'!D174 -> 61938606 | E24: ='C3C'!E174 -> 0 | F24: ='C3C'!F174 -> 3695000 | G24: ='C3C'!G174 -> 9507000 | H24: ='C3C'!H174 -> 15484651.5 | I24: =G24-H24 -> -5977651.5 | J24: =IF(I24=0,"",I24/H24) -> -0.3860371995 | K24: ='C3C'!K174 -> 38028000
A25: ='Org structure'!A3 -> Vote 2 - OFFICE OF THE EXECUTIVE MAYOR | C25: ='C3C'!C185 -> 0 | D25: ='C3C'!D185 -> 20142109 | E25: ='C3C'!E185 -> 0 | F25: ='C3C'!F185 -> 2802000 | G25: ='C3C'!G185 -> 4170000 | H25: ='C3C'!H185 -> 5035527.25 | I25: -865527.25 | J25: -0.1718841359 | K25: ='C3C'!K185 -> 16680000
A26: ='Org structure'!A4 -> Vote 3 - OFFICE OF THE SPEAKER | C26: ='C3C'!C196 -> 0 | D26: ='C3C'!D196 -> 23211722 | E26: ='C3C'!E196 -> 0 | F26: ='C3C'!F196 -> 3144000 | G26: ='C3C'!G196 -> 7936000 | H26: ='C3C'!H196 -> 5802930.5 | I26: 2133069.5 | J26: 0.367584878 | K26: ='C3C'!K196 -> 31744000
A27: ='Org structure'!A5 -> Vote 4 - OFFICE OF THE MUNICIPAL MANAGER | C27: ='C3C'!C207 -> 0 | D27: ='C3C'!D207 -> 61837678 | E27: ='C3C'!E207 -> 0 | F27: ='C3C'!F207 -> 4092000 | G27: ='C3C'!G207 -> 14935000 | H27: ='C3C'!H207 -> 15459419.5 | I27: -524419.5 | J27: -0.03392232807 | K27: ='C3C'!K207 -> 29156000
A28: ='Org structure'!A6 -> Vote 5 - CORPORATE SUPPORT SERVICES | C28: ='C3C'!C218 -> 0 | D28: ='C3C'!D218 -> 59819711 | E28: ='C3C'!E218 -> 0 | F28: ='C3C'!F218 -> 6737000 | G28: ='C3C'!G218 -> 16565000 | H28: ='C3C'!H218 -> 14954927.75 | I28: 1610072.25 | J28: 0.1076616535 | K28: ='C3C'!K218 -> 66260000
A29: ='Org structure'!A7 -> Vote 6 - FINANCE | C29: ='C3C'!C229 -> 0 | D29: ='C3C'!D229 -> 69268176 | E29: ='C3C'!E229 -> 0 | F29: ='C3C'!F229 -> 5704000 | G29: ='C3C'!G229 -> 24255000 | H29: ='C3C'!H229 -> 17317044 | I29: 6937956 | J29: 0.4006432045 | K29: ='C3C'!K229 -> 97020000
A30: ='Org structure'!A8 -> Vote 7 - HUMAN RESOURCES | C30: ='C3C'!C240 -> 0 | D30: ='C3C'!D240 -> 15261743 | E30: ='C3C'!E240 -> 0 | F30: ='C3C'!F240 -> 1241000 | G30: ='C3C'!G240 -> 3212000 | H30: ='C3C'!H240 -> 3815435.75 | I30: -603435.75 | J30: =IF(I30=0,"",I30/H30) -> -0.1581564439 | K30: ='C3C'!K240 -> 12848000
A31: ='Org structure'!A9 -> Vote 8 - COMMUNITY SERVICES | C31: ='C3C'!C251 -> 0 | D31: ='C3C'!D251 -> 244913177 | E31: ='C3C'!E251 -> 0 | F31: ='C3C'!F251 -> 15931000 | G31: ='C3C'!G251 -> 41518000 | H31: ='C3C'!H251 -> 61228294.25 | I31: -19710294.25 | J31: -0.3219148025 | K31: ='C3C'!K251 -> 166072000
A32: ='Org structure'!A10 -> Vote 9 - PUBLIC SAFETY AND TRANSPORT | C32: ='C3C'!C262 -> 0 | D32: ='C3C'!D262 -> 143406592 | E32: ='C3C'!E262 -> 0 | F32: ='C3C'!F262 -> 13039000 | G32: ='C3C'!G262 -> 32831000 | H32: ='C3C'!H262 -> 35851648 | I32: -3020648 | J32: -0.08425409063 | K32: ='C3C'!K262 -> 131324000
A33: ='Org structure'!A11 -> Vote 10 - ECONOMIC DEVELOPMENT | C33: ='C3C'!C273 -> 0 | D33: ='C3C'!D273 -> 34187490 | E33: ='C3C'!E273 -> 0 | F33: ='C3C'!F273 -> 2102000 | G33: ='C3C'!G273 -> 4115000 | H33: ='C3C'!H273 -> 8546872.5 | I33: -4431872.5 | J33: =IF(I33=0,"",I33/H33) -> -0.5185373363 | K33: ='C3C'!K273 -> 16460000
A34: ='Org structure'!A12 -> Vote 11 - ENGINEERING SERVICES | C34: ='C3C'!C284 -> 0 | D34: ='C3C'!D284 -> 145213848 | E34: ='C3C'!E284 -> 0 | F34: ='C3C'!F284 -> 5474000 | G34: ='C3C'!G284 -> 14129000 | H34: ='C3C'!H284 -> 36303462 | I34: -22174462 | J34: =IF(I34=0,"",I34/H34) -> -0.6108084678 | K34: ='C3C'!K284 -> 56516000
A35: ='Org structure'!A13 -> Vote 12 - WATER | C35: ='C3C'!C295 -> 0 | D35: ='C3C'!D295 -> 574793591 | E35: ='C3C'!E295 -> 0 | F35: ='C3C'!F295 -> 7611000 | G35: ='C3C'!G295 -> 32422000 | H35: ='C3C'!H295 -> 143698397.8 | I35: -111276397.8 | J35: =IF(I35=0,"",I35/H35) -> -0.774374659 | K35: ='C3C'!K295 -> 129688000
A36: ='Org structure'!A14 -> Vote 13 - ELECTRICITY | C36: ='C3C'!C306 -> 0 | D36: ='C3C'!D306 -> 583325321 | E36: ='C3C'!E306 -> 0 | F36: ='C3C'!F306 -> 4428000 | G36: ='C3C'!G306 -> 55071000 | H36: ='C3C'!H306 -> 145831330.2 | I36: -90760330.25 | J36: =IF(I36=0,"",I36/H36) -> -0.6223650987 | K36: ='C3C'!K306 -> 220284000
A37: ='Org structure'!A15 -> Vote 14 - MECHANICAL WORKSHOP | C37: ='C3C'!C317 -> 0 | D37: ='C3C'!D317 -> 8335954 | E37: ='C3C'!E317 -> 0 | F37: ='C3C'!F317 -> 696000 | G37: ='C3C'!G317 -> 1987000 | H37: ='C3C'!H317 -> 2083988.5 | I37: -96988.5 | J37: =IF(I37=0,"",I37/H37) -> -0.04653984415 | K37: ='C3C'!K317 -> 7948000
A38: ='Org structure'!A16 -> Vote 15 - HOUSING SERVICES | C38: ='C3C'!C328 -> 0 | D38: ='C3C'!D328 -> 23016798 | E38: ='C3C'!E328 -> 0 | F38: ='C3C'!F328 -> 2078000 | G38: ='C3C'!G328 -> 8189000 | H38: ='C3C'!H328 -> 5754199.5 | I38: 2434800.5 | J38: 0.4231345298 | K38: ='C3C'!K328 -> 32756000
A39: Total Expenditure by Vote | B39: 2 | C39: =SUM(C24:C38) -> 0 | D39: =SUM(D24:D38) -> 2068672516 | E39: 0 | F39: 78774000 | G39: 270842000 | H39: 517168129 | I39: -246326129 | J39: =IF(I39=0,"",I39/H39) -> -0.4762979681 | K39: =SUM(K24:K38) -> 1052784000
A40: =result -> Surplus/ (Deficit) for the year | B40: 2 | C40: =C21-C39 -> 0 | D40: 498619 | E40: 0 | F40: 56788000 | G40: 355157000 | H40: 124654.75 | I40: =I21-I39 -> 355032345.2 | J40: =IF(I40=0,"",I40/H40) -> 2848.125284 | K40: =K21-K39 -> 1451212000
A41: =head27a -> References
A42: 1. Insert 'Vote'; e.g. Department, if different to standard classification structure
A43: 2. Must reconcile to Monthly Budget Statement - Financial Performance Statement (standard classification)

Sheet C3C
A1: =muni& " - "&S71C& " - "&"A"& " - "&date -> FS184 Matjhabeng - Table C3 Monthly Budget Statement - Financial Performance (revenue and expenditure by municipal vote) - A - M03 September
A2: =Vdesc -> Vote Description | B2: =head27 -> Ref | C2: =Head1 -> 2014/15 | D2: =Head2 -> Budget Year 2015/16 | L2: =Head4 -> 
A3: R thousand | C3: =Head5 -> Audited Outcome | D3: =Head6 -> Original Budget | E3: =Head7 -> Adjusted Budget | F3: =Head38 -> Monthly actual | G3: =Head39 -> YearTD actual | H3: =Head40 -> YearTD budget | I3: =Head41 -> YTD variance | J3: =Head41 -> YTD variance | K3: =Head8 -> Full Year Forecast | L3: =Head12 -> Forecast 2010/11 | M3: =Head13 -> Forecast 2011/12 | N3: =Head14 -> Forecast 2012/13 | O3: =Head15 -> Forecast 2013/14 | P3: =Head16 -> Forecast 2014/15 | Q3: =Head17 -> Forecast 2015/16 | R3: =Head18 -> Forecast 2016/17 | S3: =Head19 -> Forecast 2017/18 | T3: =Head20 -> Forecast 2018/19 | U3: =Head21 -> Forecast 2019/20 | V3: =Head22 -> Forecast 2020/21 | W3: =Head23 -> Forecast 2021/22
J4: %
A5: Revenue by Vote | B5: 1
A6: ='Org structure'!A2 -> Vote 1 - COUNCIL GENERAL | C6: =SUM(C7:C16) -> 0 | D6: =SUM(D7:D16) -> 406586000 | E6: 0 | F6: 600000 | G6: 212248000 | H6: 101646500 | I6: =G6-H6 -> 110601500 | J6: =IF(I6=0,"",I6/H6) -> 1.088099443 | K6: 848992000
A7: ='Org structure'!E3 -> 1.1 - Council | D7: 406586000 | F7: 600000 | G7: =F7+211219000+429000 -> 212248000 | H7: =D7/12*3 -> 101646500 | I7: 110601500 | J7: 1.088099443 | K7: =G7*12/3 -> 848992000
A8: ='Org structure'!E4 -> 0 | I8: 0
A9: ='Org structure'!E5 -> 0 | I9: 0
A10: ='Org structure'!E6 -> 0 | I10: 0
A11: ='Org structure'!E7 -> 0 | I11: 0
A12: ='Org structure'!E8 -> 0 | I12: 0
A13: ='Org structure'!E9 -> 0 | I13: 0
A14: ='Org structure'!E10 -> 0 | I14: 0
A15: ='Org structure'!E11 -> 0 | I15: 0
A16: ='Org structure'!E12 -> 0 | I16: 0
A17: ='Org structure'!A3 -> Vote 2 - OFFICE OF THE EXECUTIVE MAYOR | C17: =SUM(C18:C27) -> 0 | D17: =SUM(D18:D27) -> 0 | E17: 0 | F17: 0 | G17: 0 | H17: 0 | I17: 0 | K17: 0
A18: ='Org structure'!E14 -> 2.1 - Executive Mayor | G18: =F18 -> 0 | H18: =D18/12*3 -> 0 | I18: 0 | K18: =G18*12/3 -> 0
A19: ='Org structure'!E15 -> 2.2 - Mayoral Committee | G19: 0 | H19: =D19/12*3 -> 0 | I19: 0 | K19: =G19*12/3 -> 0
A20: ='Org structure'!E16 -> 0 | I20: 0
A21: ='Org structure'!E17 -> 0 | I21: 0
A22: ='Org structure'!E18 -> 0 | I22: 0
A23: ='Org structure'!E19 -> 0 | I23: 0
A24: ='Org structure'!E20 -> 0 | I24: 0
A25: ='Org structure'!E21 -> 0 | I25: 0
A26: ='Org structure'!E22 -> 0 | I26: 0
A27: ='Org structure'!E23 -> 0 | I27: 0
A28: ='Org structure'!A4 -> Vote 3 - OFFICE OF THE SPEAKER | C28: =SUM(C29:C38) -> 0 | D28: 0 | E28: 0 | F28: 0 | G28: 0 | H28: 0 | I28: 0 | K28: 0
A29: ='Org structure'!E25 -> 3.1 - Speaker | G29: =F29 -> 0 | H29: =D29/12*3 -> 0 | I29: 0 | K29: =G29*12/3 -> 0
A30: ='Org structure'!E26 -> 3.2 - Political Appointments | G30: 0 | H30: =D30/12*3 -> 0 | I30: 0 | K30: =G30*12/3 -> 0
A31: ='Org structure'!E27 -> 0 | I31: 0
A32: ='Org structure'!E28 -> 0 | I32: 0
A33: ='Org structure'!E29 -> 0 | I33: 0
A34: ='Org structure'!E30 -> 0 | I34: 0
A35: ='Org structure'!E31 -> 0 | I35: 0
A36: ='Org structure'!E32 -> 0 | I36: 0
A37: ='Org structure'!E33 -> 0 | I37: 0
A38: ='Org structure'!E34 -> 0 | I38: 0
A39: ='Org structure'!A5 -> Vote 4 - OFFICE OF THE MUNICIPAL MANAGER | C39: =SUM(C40:C49) -> 0 | D39: 117567000 | E39: 0 | F39: 9539000 | G39: 25026000 | H39: 29391750 | I39: -4365750 | J39: -0.1485365791 | K39: 100104000
A40: ='Org structure'!E36 -> 4.1 - Municipal Manager | D40: 117567000 | F40: 9539000 | G40: =F40+8338000+7149000 -> 25026000 | H40: =D40/12*3 -> 29391750 | I40: -4365750 | J40: -0.1485365791 | K40: =G40*12/3 -> 100104000
A41: ='Org structure'!E37 -> 4.2 - IDP | G41: =F41 -> 0 | H41: 0 | I41: 0 | K41: 0
A42: ='Org structure'!E38 -> 4.3 - Internal Audit | G42: 0 | H42: 0 | I42: 0 | K42: 0
A43: ='Org structure'!E39 -> 4.4 - Organisation & Workstudy | G43: 0 | H43: 0 | I43: 0 | K43: 0
A44: ='Org structure'!E40 -> 4.5 - IT | G44: 0 | H44: 0 | I44: 0 | K44: 0
A45: ='Org structure'!E41 -> 4.6 - Legal Services | G45: 0 | H45: 0 | I45: 0 | K45: 0
A46: ='Org structure'!E42 -> 0 | I46: 0
A47: ='Org structure'!E43 -> 0 | I47: 0
A48: ='Org structure'!E44 -> 0 | I48: 0
A49: ='Org structure'!E45 -> 0 | I49: 0
A50: ='Org structure'!A6 -> Vote 5 - CORPORATE SUPPORT SERVICES | C50: =SUM(C51:C60) -> 0 | D50: =SUM(D51:D60) -> 0 | E50: 0 | F50: 0 | G50: 0 | H50: 0 | I50: 0 | K50: 0
A51: ='Org structure'!E47 -> 5.1 - Corporate Services Admin | G51: =F51 -> 0 | H51: =D51/12*3 -> 0 | I51: 0 | K51: =G51*12/3 -> 0
A52: ='Org structure'!E48 -> 5.2 - Libraries | G52: 0 | H52: =D52/12*3 -> 0 | I52: 0 | K52: =G52*12/3 -> 0
A53: ='Org structure'!E49 -> 5.3 - Halls & Offices | G53: 0 | H53: =D53/12*3 -> 0 | I53: 0 | K53: =G53*12/3 -> 0
A54: ='Org structure'!E50 -> 0 | I54: 0
A55: ='Org structure'!E51 -> 0 | I55: 0
A56: ='Org structure'!E52 -> 0 | I56: 0
A57: ='Org structure'!E53 -> 0 | I57: 0
A58: ='Org structure'!E54 -> 0 | I58: 0
A59: ='Org structure'!E55 -> 0 | I59: 0
A60: ='Org structure'!E56 -> 0 | I60: 0
A61: ='Org structure'!A7 -> Vote 6 - FINANCE | C61: =SUM(C62:C71) -> 0 | D61: =SUM(D62:D71) -> 278786543 | E61: 0 | F61: 23131000 | G61: 103921000 | H61: 69696635.75 | I61: 34224364.25 | J61: 0.491047579 | K61: 415684000
A62: ='Org structure'!E58 -> 6.1 - Administration | G62: =F62 -> 0 | H62: =D62/12*3 -> 0 | I62: 0 | K62: =G62*12/3 -> 0
A63: ='Org structure'!E59 -> 6.2 - Expenditure | G63: 0 | H63: 0 | I63: 0 | K63: 0
A64: ='Org structure'!E60 -> 6.3 - Budget Control & Salaries | G64: 0 | H64: 0 | I64: 0 | K64: 0
A65: ='Org structure'!E61 -> 6.4 - Stores | G65: 0 | H65: 0 | I65: 0 | K65: 0
A66: ='Org structure'!E62 -> 6.6 - Revenue | D66: 268251519 | F66: 22264000 | G66: =F66+56865000+22461000 -> 101590000 | H66: 67062879.75 | I66: 34527120.25 | J66: 0.5148469672 | K66: 406360000
A67: ='Org structure'!E63 -> 6.7 - Fresh Produce Market | D67: 10535024 | F67: 867000 | G67: =F67+730000+734000 -> 2331000 | H67: 2633756 | I67: -302756 | J67: -0.1149521824 | K67: 9324000
A68: ='Org structure'!E64 -> 6.8 - Valuation | G68: 0 | H68: 0 | I68: 0 | K68: 0
A69: ='Org structure'!E65 -> 6.8 - Credit Contol | G69: 0 | H69: 0 | I69: 0 | K69: 0
A70: ='Org structure'!E66 -> 0 | I70: =G70-H70 -> 0 | J70: =IF(I70=0,"",I70/H70) -> 
A71: ='Org structure'!E67 -> 0 | I71: 0
A72: ='Org structure'!A8 -> Vote 7 - HUMAN RESOURCES | C72: =SUM(C73:C82) -> 0 | D72: 0 | E72: 0 | F72: 0 | G72: 0 | H72: 0 | I72: 0 | K72: 0
A73: ='Org structure'!E69 -> 7.1 - Administration | G73: =F73 -> 0 | H73: =D73/12*3 -> 0 | I73: 0 | K73: =G73*12/3 -> 0
A74: ='Org structure'!E70 -> 7.2 - Training | G74: 0 | H74: =D74/12*3 -> 0 | I74: 0 | K74: =G74*12/3 -> 0
A75: ='Org structure'!E71 -> 7.3 - Health and Safety | G75: 0 | H75: =D75/12*3 -> 0 | I75: 0 | K75: =G75*12/3 -> 0
A76: ='Org structure'!E72 -> 0 | I76: 0
A77: ='Org structure'!E73 -> 0 | I77: 0
A78: ='Org structure'!E74 -> 0 | I78: 0
A79: ='Org structure'!E75 -> 0 | I79: 0
A80: ='Org structure'!E76 -> 0 | I80: 0
A81: ='Org structure'!E77 -> 0 | I81: 0
A82: ='Org structure'!E78 -> 0 | I82: 0
A83: ='Org structure'!A9 -> Vote 8 - COMMUNITY SERVICES | C83: =SUM(C84:C93) -> 0 | D83: =SUM(D84:D93) -> 115159607 | E83: 0 | F83: 7516000 | G83: 20633000 | H83: 28789901.75 | I83: -8156901.75 | J83: -0.2833250985 | K83: 82532000
A84: ='Org structure'!E80 -> 8.1 - Community Services Admin | G84: =F84 -> 0 | H84: =D84/12*3 -> 0 | I84: 0 | K84: =G84*12/3 -> 0
A85: ='Org structure'!E81 -> 8.2 - Parks and Recreation | G85: 0 | H85: =D85/12*3 -> 0 | I85: 0 | K85: =G85*12/3 -> 0
A86: ='Org structure'!E82 -> 8.3 - Refuse | D86: 115159607 | F86: 7516000 | G86: =F86+5603000+7514000 -> 20633000 | H86: =D86/12*3 -> 28789901.75 | I86: -8156901.75 | J86: -0.2833250985 | K86: =G86*12/3 -> 82532000
A87: ='Org structure'!E83 -> 8.4 - Enviromental Protection | G87: 0 | H87: =D87/12*3 -> 0 | I87: 0 | K87: =G87*12/3 -> 0
A88: ='Org structure'!E84 -> 0 | I88: 0
A89: ='Org structure'!E85 -> 0 | I89: 0
A90: ='Org structure'!E86 -> 0 | I90: 0
A91: ='Org structure'!E87 -> 0 | I91: 0
A92: ='Org structure'!E88 -> 0 | I92: 0
A93: ='Org structure'!E89 -> 0 | I93: 0
A94: ='Org structure'!A10 -> Vote 9 - PUBLIC SAFETY AND TRANSPORT | C94: =SUM(C95:C104) -> 0 | D94: =SUM(D95:D104) -> 4744531 | E94: 0 | F94: 208000 | G94: 661000 | H94: 1186132.75 | I94: -525132.75 | J94: -0.4427267943 | K94: 2644000
A95: ='Org structure'!E91 -> 9.1 - Traffic | D95: 4744531 | F95: 208000 | G95: =F95+183000+270000 -> 661000 | H95: =D95/12*3 -> 1186132.75 | I95: -525132.75 | J95: -0.4427267943 | K95: =G95*12/3 -> 2644000
A96: ='Org structure'!E92 -> 9.2 - Disaster Management | G96: =F96 -> 0 | H96: =D96/12*3 -> 0 | I96: 0 | K96: =G96*12/3 -> 0
A97: ='Org structure'!E93 -> 9.3 - Security | G97: 0 | H97: =D97/12*3 -> 0 | I97: 0 | K97: =G97*12/3 -> 0
A98: ='Org structure'!E94 -> 9.4 - Fire Services | G98: 0 | H98: =D98/12*3 -> 0 | I98: 0 | K98: =G98*12/3 -> 0
A99: ='Org structure'!E95 -> 0 | I99: 0
A100: ='Org structure'!E96 -> 0 | I100: 0
A101: ='Org structure'!E97 -> 0 | I101: 0
A102: ='Org structure'!E98 -> 0 | I102: 0
A103: ='Org structure'!E99 -> 0 | I103: 0
A104: ='Org structure'!E100 -> 0 | I104: 0
A105: ='Org structure'!A11 -> Vote 10 - ECONOMIC DEVELOPMENT | C105: =SUM(C106:C115) -> 0 | D105: =SUM(D106:D115) -> 14643021 | E105: 0 | F105: 0 | G105: 0 | H105: 3660755.25 | I105: -3660755.25 | J105: -1 | K105: 0
A106: ='Org structure'!E102 -> 10.1 - Economic Development | D106: 14643021 | G106: =F106 -> 0 | H106: =D106/12*3 -> 3660755.25 | I106: -3660755.25 | J106: -1 | K106: =G106*12/3 -> 0
A107: ='Org structure'!E103 -> 0 | I107: 0
A108: ='Org structure'!E104 -> 0 | I108: 0
A109: ='Org structure'!E105 -> 0 | I109: 0
A110: ='Org structure'!E106 -> 0 | I110: 0
A111: ='Org structure'!E107 -> 0 | I111: 0
A112: ='Org structure'!E108 -> 0 | I112: 0
A113: ='Org structure'!E109 -> 0 | I113: 0
A114: ='Org structure'!E110 -> 0 | I114: 0
A115: ='Org structure'!E111 -> 0 | I115: 0
A116: ='Org structure'!A12 -> Vote 11 - ENGINEERING SERVICES | C116: =SUM(C117:C126) -> 0 | D116: =SUM(D117:D126) -> 17108115 | E116: 0 | F116: 0 | G116: 0 | H116: 4277028.75 | I116: -4277028.75 | J116: -1 | K116: 0
A117: ='Org structure'!E113 -> 11.1 - Building | G117: =F117 -> 0 | H117: =D117/12*3 -> 0 | I117: 0 | K117: =G117*12/3 -> 0
A118: ='Org structure'!E114 -> 11.2 - Engineering Administration | G118: 0 | H118: 0 | I118: 0 | K118: 0
A119: ='Org structure'!E115 -> 11.3 - Engineering Planning | G119: 0 | H119: 0 | I119: 0 | K119: 0
A120: ='Org structure'!E116 -> 11.4 - Engineering Surveying | G120: 0 | H120: 0 | I120: 0 | K120: 0
A121: ='Org structure'!E117 -> 11.5 - Eng- Intern Serv Building Shop | G121: 0 | H121: 0 | I121: 0 | K121: 0
A122: ='Org structure'!E118 -> 11.6 - Roads | D122: 17108115 | G122: 0 | H122: 4277028.75 | I122: -4277028.75 | J122: -1 | K122: 0
A123: ='Org structure'!E119 -> 11.7 - Storm Water | G123: 0 | H123: 0 | I123: 0 | K123: 0
A124: ='Org structure'!E120 -> 11.8 - Eng - Roads/ Storm Water | G124: 0 | H124: 0 | I124: 0 | K124: 0
A125: ='Org structure'!E121 -> 0 | I125: 0
A126: ='Org structure'!E122 -> 0 | I126: 0
A127: ='Org structure'!A13 -> Vote 12 - WATER | C127: =SUM(C128:C137) -> 0 | D127: =SUM(D128:D137) -> 355552684 | E127: 0 | F127: 38611000 | G127: 107031000 | H127: 88888171 | I127: 18142829 | J127: 0.2041084747 | K127: 428124000
A128: ='Org structure'!E124 -> 12.1 - Eng-Admin: Water and Sewerage | G128: =F128 -> 0 | H128: =D128/12*3 -> 0 | I128: 0 | K128: =G128*12/3 -> 0
A129: ='Org structure'!E125 -> 12.2 - Eng-Admin: Water Supply | D129: 203889265 | F129: 26392000 | G129: =F129+21132000+25843000 -> 73367000 | H129: =D129/12*3 -> 50972316.25 | I129: 22394683.75 | J129: 0.4393499334 | K129: =G129*12/3 -> 293468000
A130: ='Org structure'!E126 -> 12.3 - Water Workshop | G130: 0 | H130: =D130/12*3 -> 0 | I130: 0 | K130: =G130*12/3 -> 0
A131: ='Org structure'!E127 -> 12.4 - Sewerage Network | D131: 151663419 | F131: 12219000 | G131: =F131+9227000+12218000 -> 33664000 | H131: =D131/12*3 -> 37915854.75 | I131: -4251854.75 | J131: -0.1121392298 | K131: =G131*12/3 -> 134656000
A132: ='Org structure'!E128 -> 12.5 - Purifying Works | G132: 0 | H132: =D132/12*3 -> 0 | I132: 0 | K132: =G132*12/3 -> 0
A133: ='Org structure'!E129 -> 0 | I133: 0
A134: ='Org structure'!E130 -> 0 | I134: =G134-H134 -> 0 | J134: =IF(I134=0,"",I134/H134) -> 
A135: ='Org structure'!E131 -> 0 | I135: 0
A136: ='Org structure'!E132 -> 0 | I136: 0
A137: ='Org structure'!E133 -> 0 | I137: 0
A138: ='Org structure'!A14 -> Vote 13 - ELECTRICITY | C138: =SUM(C139:C148) -> 0 | D138: =SUM(D139:D148) -> 748264548 | E138: 0 | F138: 53084000 | G138: 152365000 | H138: 187066137 | I138: -34701137 | J138: -0.1855019704 | K138: 609460000
A139: ='Org structure'!E135 -> 13.1 - Elec and Mec Eng Admin | G139: =F139 -> 0 | H139: =D139/12*3 -> 0 | I139: 0 | K139: =G139*12/3 -> 0
A140: ='Org structure'!E136 -> 13.2 - Distribution | D140: 748264548 | F140: 53084000 | G140: =F140+34381000+64900000 -> 152365000 | H140: 187066137 | I140: -34701137 | J140: -0.1855019704 | K140: 609460000
A141: ='Org structure'!E137 -> 13.3 - Distribution 132kVA | G141: 0 | H141: 0 | I141: 0 | K141: 0
A142: ='Org structure'!E138 -> 13.4 - Streetlights | G142: 0 | H142: 0 | I142: 0 | K142: 0
A143: ='Org structure'!E139 -> 13.5 - Electrical Workshop | G143: 0 | H143: 0 | I143: 0 | K143: 0
A144: ='Org structure'!E140 -> 13.6 - Revenue Protection | G144: 0 | H144: 0 | I144: 0 | K144: 0
A145: ='Org structure'!E141 -> 13.7 - Eng - Plant | G145: 0 | H145: 0 | I145: 0 | K145: 0
A146: ='Org structure'!E142 -> 0 | I146: 0
A147: ='Org structure'!E143 -> 0 | I147: 0
A148: ='Org structure'!E144 -> 0 | I148: 0
A149: ='Org structure'!A15 -> Vote 14 - MECHANICAL WORKSHOP | C149: =SUM(C150:C159) -> 0 | D149: =SUM(D150:D159) -> 0 | E149: 0 | F149: 0 | G149: 0 | H149: 0 | I149: 0 | K149: 0
A150: ='Org structure'!E146 -> 14.1 - Mechanical workshop | G150: =F150 -> 0 | H150: =D150/12*3 -> 0 | I150: 0 | K150: =G150*12/3 -> 0
A151: ='Org structure'!E147 -> 0 | I151: 0
A152: ='Org structure'!E148 -> 0 | I152: 0
A153: ='Org structure'!E149 -> 0 | I153: 0
A154: ='Org structure'!E150 -> 0 | I154: 0
A155: ='Org structure'!E151 -> 0 | I155: 0
A156: ='Org structure'!E152 -> 0 | I156: 0
A157: ='Org structure'!E153 -> 0 | I157: 0
A158: ='Org structure'!E154 -> 0 | I158: 0
A159: ='Org structure'!E155 -> 0 | I159: 0
A160: ='Org structure'!A16 -> Vote 15 - HOUSING SERVICES | C160: =SUM(C161:C170) -> 0 | D160: =SUM(D161:D170) -> 10759086 | E160: 0 | F160: 2873000 | G160: 4114000 | H160: 2689771.5 | I160: 1424228.5 | J160: 0.5294979518 | K160: 16456000
A161: ='Org structure'!E157 -> 15.1 - Housing services | D161: 10759086 | F161: 2873000 | G161: =F161+3000+1238000 -> 4114000 | H161: =D161/12*3 -> 2689771.5 | I161: 1424228.5 | J161: 0.5294979518 | K161: =G161*12/3 -> 16456000
A162: ='Org structure'!E158 -> 0 | I162: 0
A163: ='Org structure'!E159 -> 0 | I163: 0
A164: ='Org structure'!E160 -> 0 | I164: 0
A165: ='Org structure'!E161 -> 0 | I165: 0
A166: ='Org structure'!E162 -> 0 | I166: 0
A167: ='Org structure'!E163 -> 0 | I167: 0
A168: ='Org structure'!E164 -> 0 | I168: 0
A169: ='Org structure'!E165 -> 0 | I169: 0
A170: ='Org structure'!E166 -> 0 | I170: 0 | L170: =SUM(L78:L81) -> 0 | M170: 0 | N170: 0 | O170: 0 | P170: 0 | Q170: 0 | R170: 0 | S170: 0 | T170: 0 | U170: 0 | V170: 0 | W170: 0
A171: Total Revenue by Vote | B171: 2 | C171: =C6+C17+C28+C39+C50+C61+C72+C83+C94+C105+C116+C127+C138+C149+C160 -> 0 | D171: =D6+D17+D28+D39+D50+D61+D72+D83+D94+D105+D116+D127+D138+D149+D160 -> 2069171135 | E171: 0 | F171: 135562000 | G171: 625999000 | H171: 517292783.8 | I171: 108706216.2 | J171: 0.2101444669 | K171: 2503996000
I172: 0
A173: Expenditure by Vote | B173: 1 | I173: 0
A174: ='Org structure'!A2 -> Vote 1 - COUNCIL GENERAL | C174: =SUM(C175:C184) -> 0 | D174: 61938606 | E174: 0 | F174: 3695000 | G174: 9507000 | H174: 15484651.5 | I174: -5977651.5 | J174: -0.3860371995 | K174: 38028000
A175: ='Org structure'!E3 -> 1.1 - Council | D175: 61938606 | F175: =9641000-F185-F196 -> 3695000 | G175: =F175+1056000+4756000 -> 9507000 | H175: =D175/12*3 -> 15484651.5 | I175: -5977651.5 | J175: -0.3860371995 | K175: =G175*12/3 -> 38028000
A176: ='Org structure'!E4 -> 0 | I176: 0
A177: ='Org structure'!E5 -> 0 | I177: 0
A178: ='Org structure'!E6 -> 0 | I178: 0
A179: ='Org structure'!E7 -> 0 | I179: 0
A180: ='Org structure'!E8 -> 0 | I180: 0
A181: ='Org structure'!E9 -> 0 | I181: 0
A182: ='Org structure'!E10 -> 0 | I182: 0
A183: ='Org structure'!E11 -> 0 | I183: 0
A184: ='Org structure'!E12 -> 0 | I184: 0
A185: ='Org structure'!A3 -> Vote 2 - OFFICE OF THE EXECUTIVE MAYOR | C185: =SUM(C186:C195) -> 0 | D185: =SUM(D186:D195) -> 20142109 | E185: =SUM(E186:E195) -> 0 | F185: 2802000 | G185: 4170000 | H185: 5035527.25 | I185: -865527.25 | J185: -0.1718841359 | K185: 16680000
A186: ='Org structure'!E14 -> 2.1 - Executive Mayor | D186: 10052158 | F186: =119000+641000 -> 760000 | G186: =F186+696000+1007000 -> 2463000 | H186: =D186/12*3 -> 2513039.5 | I186: -50039.5 | J186: -0.01991194329 | K186: =G186*12/3 -> 9852000
A187: ='Org structure'!E15 -> 2.2 - Mayoral Committee | D187: 10089951 | F187: =2042000 -> 2042000 | G187: =F187+572000-907000 -> 1707000 | H187: =D187/12*3 -> 2522487.75 | I187: -815487.75 | J187: -0.3232871002 | K187: =G187*12/3 -> 6828000
A188: ='Org structure'!E16 -> 0 | I188: 0
A189: ='Org structure'!E17 -> 0 | I189: 0
A190: ='Org structure'!E18 -> 0 | I190: 0
A191: ='Org structure'!E19 -> 0 | I191: 0
A192: ='Org structure'!E20 -> 0 | I192: 0
A193: ='Org structure'!E21 -> 0 | I193: 0
A194: ='Org structure'!E22 -> 0 | I194: 0
A195: ='Org structure'!E23 -> 0 | I195: 0
A196: ='Org structure'!A4 -> Vote 3 - OFFICE OF THE SPEAKER | C196: =SUM(C197:C206) -> 0 | D196: 23211722 | E196: 0 | F196: 3144000 | G196: 7936000 | H196: 5802930.5 | I196: 2133069.5 | J196: 0.367584878 | K196: 31744000
A197: ='Org structure'!E25 -> 3.1 - Speaker | D197: 23211722 | F197: =1178000+194000 -> 1372000 | G197: =F197+178000+185000 -> 1735000 | H197: =D197/12*3 -> 5802930.5 | I197: -4067930.5 | J197: -0.7010131347 | K197: =G197*12/3 -> 6940000
A198: ='Org structure'!E26 -> 3.2 - Political Appointments | F198: =1754000+18000 -> 1772000 | G198: =F198+2956000+1473000 -> 6201000 | H198: =D198/12*3 -> 0 | I198: =G198-H198 -> 6201000 | J198: =IF(I198=0,"",I198/H198) ->  | K198: =G198*12/3 -> 24804000
A199: ='Org structure'!E27 -> 0 | I199: 0
A200: ='Org structure'!E28 -> 0 | I200: 0
... 147 more rows

Sheet C4-FinPerf RE
A1: =muni& " - "&S71B& " - "&date -> FS184 Matjhabeng - Table C4 Monthly Budget Statement - Financial Performance (revenue and expenditure) - M03 September
A2: =desc -> Description | B2: =head27 -> Ref | C2: =Head1 -> 2014/15 | D2: =Head2 -> Budget Year 2015/16
C3: =Head5 -> Audited Outcome | D3: =Head6 -> Original Budget | E3: =Head7 -> Adjusted Budget | F3: =Head38 -> Monthly actual | G3: =Head39 -> YearTD actual | H3: =Head40 -> YearTD budget | I3: =Head41 -> YTD variance | J3: =Head41 -> YTD variance | K3: =Head8 -> Full Year Forecast
A4: R thousands | J4: %
A5: Revenue By Source
A6: Property rates | D6: 189178890 | F6: 21000000 | G6: =F6+27998000+21591000 -> 70589000 | H6: =D6/12*3 -> 47294722.5 | I6: =G6-H6 -> 23294277.5 | J6: =IF(I6=0,"",I6/H6) -> 0.4925343943 | K6: =G6*12/3 -> 282356000
A7: Property rates - penalties & collection charges | G7: =F7 -> 0 | H7: 0 | I7: 0 | K7: 0
A8: Service charges - electricity revenue | D8: 746024548 | F8: 53084000 | G8: =F8+34382000+64900000 -> 152366000 | H8: 186506137 | I8: -34140137 | J8: -0.1830510113 | K8: 609464000
A9: Service charges - water revenue | D9: 203889265 | F9: 26391750 | G9: =F9+21132000+25843000 -> 73366750 | H9: 50972316.25 | I9: 22394433.75 | J9: 0.4393450288 | K9: 293467000
A10: Service charges - sanitation revenue | D10: 120882381 | F10: 12218713 | G10: =F10+9227000+12218000 -> 33663713 | H10: 30220595.25 | I10: 3443117.75 | J10: 0.1139328237 | K10: 134654852
A11: Service charges - refuse revenue | D11: 68027311 | F11: 7516211 | G11: =F11+5603000+7514000 -> 20633211 | H11: 17006827.75 | I11: 3626383.25 | J11: 0.2132310213 | K11: 82532844
A12: Service charges - other | F12: 0 | G12: 0 | H12: 0 | I12: 0 | K12: 0
A13: Rental of facilities and equipment | D13: 10759086 | F13: 2872891 | G13: =F13+3000+1238000 -> 4113891 | H13: 2689771.5 | I13: 1424119.5 | J13: 0.5294574279 | K13: 16455564
A14: Interest earned - external investments | D14: 635000 | F14: 307682 | G14: 307682 | H14: 158750 | I14: 148932 | J14: 0.9381543307 | K14: 1230728
A15: Interest earned - outstanding debtors | D15: 112971000 | F15: 9231020 | G15: =F15+8338000+7149000 -> 24718020 | H15: 28242750 | I15: -3524730 | J15: -0.1248012322 | K15: 98872080
A16: Dividends received | D16: 16000 | F16: 0 | G16: 0 | H16: 4000 | I16: -4000 | J16: -1 | K16: 0
A17: Fines | D17: 4103202 | F17: 202633 | G17: =F17+178000+260000 -> 640633 | H17: 1025800.5 | I17: -385167.5 | J17: -0.3754799301 | K17: 2562532
A18: Licences and permits | D18: 39541 | F18: 4982 | G18: =F18+5000+10000 -> 19982 | H18: 9885.25 | I18: 10096.75 | J18: 1.021395514 | K18: 79928
A19: Agency services | D19: 10535024 | F19: 0 | G19: 0 | H19: 2633756 | I19: -2633756 | J19: -1 | K19: 0
A20: Transfers recognised - operational | D20: 406586000 | F20: 0 | G20: =F20+170484000+429000 -> 170913000 | H20: 101646500 | I20: 69266500 | J20: 0.6814450079 | K20: 683652000
A21: Other revenue | D21: 79072629 | F21: 2132070 | G21: =F21+29597000+1603000 -> 33332070 | H21: 19768157.25 | I21: 13563912.75 | J21: 0.6861495778 | K21: 133328280
A22: Gains on disposal of PPE | I22: 0
A23: Total Revenue (excluding capital transfers and contributions) | C23: =SUM(C6:C22) -> 0 | D23: 1952719877 | E23: 0 | F23: 134961952 | G23: 584663952 | H23: 488179969.2 | I23: 96483982.75 | J23: 0.1976401918 | K23: =SUM(K6:K22) -> 2338655808
A25: Expenditure By Type
A26: Employee related costs | D26: 569262676 | F26: 52685599 | G26: =F26+43127000+45571000 -> 141383599 | H26: =D26/12*3 -> 142315669 | I26: =G26-H26 -> -932070 | J26: =IF(I26=0,"",I26/H26) -> -0.006549313976 | K26: =G26*12/3 -> 565534396
A27: Remuneration of councillors | D27: 26763326 | F27: 2312434 | G27: =F27+2274000+2293000 -> 6879434 | H27: 6690831.5 | I27: 188602.5 | J27: 0.02818820052 | K27: 27517736
A28: Debt impairment | D28: 87982527 | F28: 0 | G28: =F28 -> 0 | H28: 21995631.75 | I28: -21995631.75 | J28: -1 | K28: 0
A29: Depreciation & asset impairment | D29: 192680410 | F29: 0 | G29: 0 | H29: 48170102.5 | I29: -48170102.5 | J29: -1 | K29: 0
A30: Finance charges | D30: 168000000 | F30: 0 | G30: 0 | H30: 42000000 | I30: -42000000 | J30: -1 | K30: 0
A31: Bulk purchases | D31: 617809916 | F31: 454103 | G31: =F31+454000+52753000 -> 53661103 | H31: 154452479 | I31: -100791376 | J31: -0.6525720834 | K31: 214644412
A32: Other materials | D32: 146314064 | F32: 2459448 | G32: =F32+949000+1214000 -> 4622448 | H32: 36578516 | I32: -31956068 | J32: -0.8736294277 | K32: 18489792
A33: Contracted services | D33: 89089602 | F33: 0 | G33: =F33+4019000 -> 4019000 | H33: 22272400.5 | I33: -18253400.5 | J33: -0.8195524546 | K33: 16076000
A34: Transfers and grants | D34: 32850000 | F34: 0 | G34: 0 | H34: 8212500 | I34: -8212500 | J34: -1 | K34: 0
A35: Other expenditure | D35: 137920000 | F35: 20862833 | G35: =F35+13467000+25947000 -> 60276833 | H35: 34480000 | I35: 25796833 | J35: 0.7481680104 | K35: 241107332
A36: Loss on disposal of PPE | I36: 0
A37: Total Expenditure | C37: =SUM(C26:C36) -> 0 | D37: =SUM(D26:D36) -> 2068672521 | E37: =SUM(E26:E36) -> 0 | F37: 78774417 | G37: 270842417 | H37: 517168130.2 | I37: -246325713.2 | J37: -0.476297163 | K37: 1083369668
A39: Surplus/(Deficit) | C39: =C23-C37 -> 0 | D39: -115952644 | E39: 0 | F39: 56187535 | G39: 313821535 | H39: -28988161 | I39: =I23-I37 -> 342809696 | J39: -11.8258518 | K39: =K23-K37 -> 1255286140
A40: Transfers recognised - capital | D40: 116450997 | F40: 600000 | G40: =F40+40735000 -> 41335000 | H40: =D40/12*3 -> 29112749.25 | I40: =G40-H40 -> 12222250.75 | J40: 0.4198246839 | K40: =G40*12/3 -> 165340000
A41: Contributions recognised - capital | I41: =G41-H41 -> 0
A42: Contributed assets | I42: =G42-H42 -> 0
A43: Surplus/(Deficit) after capital transfers & contributions | C43: =C39+SUM(C40:C42) -> 0 | D43: 498353 | E43: 0 | F43: 56787535 | G43: 355156535 | H43: 124588.25 | K43: =K39+SUM(K40:K42) -> 1420626140
A44: Taxation | I44: =G44-H44 -> 0 | J44: =IF(I44=0,"",I44/H44) -> 
A45: Surplus/(Deficit) after taxation | C45: =C43-C44 -> 0 | D45: 498353 | E45: 0 | F45: 56787535 | G45: 355156535 | H45: 124588.25 | K45: =K43-K44 -> 1420626140
A46: Attributable to minorities
A47: Surplus/(Deficit) attributable to municipality | C47: =SUM(C45:C46) -> 0 | D47: 498353 | E47: 0 | F47: 56787535 | G47: 355156535 | H47: 124588.25 | K47: =SUM(K45:K46) -> 1420626140
A48: Share of surplus/ (deficit) of associate
A49: Surplus/ (Deficit) for the year | C49: =C47+C48 -> 0 | D49: 498353 | E49: 0 | F49: 56787535 | G49: 355156535 | H49: 124588.25 | K49: =K47+K48 -> 1420626140
A50: =head27a -> References
A51: 1. Material variances to be explained on Table SC1
A54: =A23&" including capital transfers/contributions etc" -> Total Revenue (excluding capital transfers and contributions) including capital transfers/contributions etc | C54: =C23+SUM(C40:C42) -> 0 | D54: 2069170874 | E54: 0 | F54: 135561952 | G54: 625998952 | H54: 517292718.5 | K54: =K23+SUM(K40:K42) -> 2503995808

Sheet C5-Capex
A1: =muni& " - "&S71D& " - "&date -> FS184 Matjhabeng - Table C5 Monthly Budget Statement - Capital Expenditure (municipal vote, standard classification and funding) - M03 September
A2: =Vdesc -> Vote Description | B2: =head27 -> Ref | C2: =Head1 -> 2014/15 | D2: =Head2 -> Budget Year 2015/16
C3: =Head5 -> Audited Outcome | D3: =Head6 -> Original Budget | E3: =Head7 -> Adjusted Budget | F3: =Head38 -> Monthly actual | G3: =Head39 -> YearTD actual | H3: =Head40 -> YearTD budget | I3: =Head41 -> YTD variance | J3: =Head41 -> YTD variance | K3: =Head8 -> Full Year Forecast
A4: R thousands | B4: 1 | J4: %
A5: Multi-Year expenditure appropriation | B5: 2
A6: ='Org structure'!A2 -> Vote 1 - COUNCIL GENERAL | C6: ='C5C'!C7 -> 0 | D6: ='C5C'!D7 -> 30000000 | E6: ='C5C'!E7 -> 0 | F6: ='C5C'!F7 -> 19150 | G6: ='C5C'!G7 -> 19150 | H6: ='C5C'!H7 -> 7500000 | I6: =G6-H6 -> -7480850 | J6: =IF(I6=0,"",I6/H6) -> -0.9974466667 | K6: ='C5C'!K7 -> 76600
A7: ='Org structure'!A3 -> Vote 2 - OFFICE OF THE EXECUTIVE MAYOR | C7: ='C5C'!C18 -> 0 | D7: ='C5C'!D18 -> 0 | E7: ='C5C'!E18 -> 0 | F7: ='C5C'!F18 -> 0 | G7: ='C5C'!G18 -> 0 | H7: ='C5C'!H18 -> 0 | I7: =G7-H7 -> 0 | J7: =IF(I7=0,"",I7/H7) ->  | K7: ='C5C'!K18 -> 0
A8: ='Org structure'!A4 -> Vote 3 - OFFICE OF THE SPEAKER | C8: ='C5C'!C29 -> 0 | D8: ='C5C'!D29 -> 0 | E8: ='C5C'!E29 -> 0 | F8: ='C5C'!F29 -> 0 | G8: ='C5C'!G29 -> 0 | H8: ='C5C'!H29 -> 0 | I8: =G8-H8 -> 0 | J8: =IF(I8=0,"",I8/H8) ->  | K8: ='C5C'!K29 -> 0
A9: ='Org structure'!A5 -> Vote 4 - OFFICE OF THE MUNICIPAL MANAGER | C9: ='C5C'!C40 -> 0 | D9: ='C5C'!D40 -> 3944739 | E9: ='C5C'!E40 -> 0 | F9: ='C5C'!F40 -> 0 | G9: ='C5C'!G40 -> 0 | H9: ='C5C'!H40 -> 986184.75 | I9: -986184.75 | J9: -1 | K9: ='C5C'!K40 -> 0
A10: ='Org structure'!A6 -> Vote 5 - CORPORATE SUPPORT SERVICES | C10: ='C5C'!C51 -> 0 | D10: ='C5C'!D51 -> 0 | E10: ='C5C'!E51 -> 0 | F10: ='C5C'!F51 -> 0 | G10: ='C5C'!G51 -> 0 | H10: ='C5C'!H51 -> 0 | I10: 0 | K10: ='C5C'!K51 -> 0
A11: ='Org structure'!A7 -> Vote 6 - FINANCE | C11: ='C5C'!C62 -> 0 | D11: ='C5C'!D62 -> 0 | E11: ='C5C'!E62 -> 0 | F11: ='C5C'!F62 -> 0 | G11: ='C5C'!G62 -> 0 | H11: ='C5C'!H62 -> 0 | I11: 0 | K11: ='C5C'!K62 -> 0
A12: ='Org structure'!A8 -> Vote 7 - HUMAN RESOURCES | C12: ='C5C'!C73 -> 0 | D12: ='C5C'!D73 -> 0 | E12: ='C5C'!E73 -> 0 | F12: ='C5C'!F73 -> 0 | G12: ='C5C'!G73 -> 0 | H12: ='C5C'!H73 -> 0 | I12: 0 | K12: ='C5C'!K73 -> 0
A13: ='Org structure'!A9 -> Vote 8 - COMMUNITY SERVICES | C13: ='C5C'!C84 -> 0 | D13: ='C5C'!D84 -> 47132296 | E13: ='C5C'!E84 -> 0 | F13: ='C5C'!F84 -> 1061795 | G13: ='C5C'!G84 -> 1597795 | H13: ='C5C'!H84 -> 11783074 | I13: -10185279 | J13: -0.8643991373 | K13: ='C5C'!K84 -> 6391180
A14: ='Org structure'!A10 -> Vote 9 - PUBLIC SAFETY AND TRANSPORT | C14: ='C5C'!C95 -> 0 | D14: ='C5C'!D95 -> 601788 | E14: ='C5C'!E95 -> 0 | F14: ='C5C'!F95 -> 0 | G14: ='C5C'!G95 -> 0 | H14: ='C5C'!H95 -> 150447 | I14: -150447 | J14: -1 | K14: ='C5C'!K95 -> 0
A15: ='Org structure'!A11 -> Vote 10 - ECONOMIC DEVELOPMENT | C15: ='C5C'!C106 -> 0 | D15: ='C5C'!D106 -> 14643021 | E15: ='C5C'!E106 -> 0 | F15: ='C5C'!F106 -> 150661 | G15: ='C5C'!G106 -> 3404661 | H15: ='C5C'!H106 -> 3660755.25 | I15: -256094.25 | J15: -0.06995667083 | K15: ='C5C'!K106 -> 13618644
A16: ='Org structure'!A12 -> Vote 11 - ENGINEERING SERVICES | C16: ='C5C'!C117 -> 0 | D16: ='C5C'!D117 -> 17108115 | E16: ='C5C'!E117 -> 0 | F16: ='C5C'!F117 -> 288736 | G16: ='C5C'!G117 -> 5686736 | H16: ='C5C'!H117 -> 4277028.75 | I16: 1409707.25 | J16: 0.3295996666 | K16: ='C5C'!K117 -> 22746944
A17: ='Org structure'!A13 -> Vote 12 - WATER | C17: ='C5C'!C128 -> 0 | D17: ='C5C'!D128 -> 30781038 | E17: ='C5C'!E128 -> 0 | F17: ='C5C'!F128 -> 6565912 | G17: ='C5C'!G128 -> 8133912 | H17: ='C5C'!H128 -> 7695259.5 | I17: 438652.5 | J17: 0.05700295097 | K17: ='C5C'!K128 -> 32535648
A18: ='Org structure'!A14 -> Vote 13 - ELECTRICITY | C18: ='C5C'!C139 -> 0 | D18: ='C5C'!D139 -> 2240000 | E18: ='C5C'!E139 -> 0 | F18: ='C5C'!F139 -> 0 | G18: ='C5C'!G139 -> 673000 | H18: ='C5C'!H139 -> 560000 | I18: =G18-H18 -> 113000 | J18: =IF(I18=0,"",I18/H18) -> 0.2017857143 | K18: ='C5C'!K139 -> 2692000
A19: ='Org structure'!A15 -> Vote 14 - MECHANICAL WORKSHOP | C19: ='C5C'!C150 -> 0 | D19: ='C5C'!D150 -> 0 | E19: ='C5C'!E150 -> 0 | F19: ='C5C'!F150 -> 0 | G19: ='C5C'!G150 -> 0 | H19: ='C5C'!H150 -> 0 | I19: =G19-H19 -> 0 | J19: =IF(I19=0,"",I19/H19) ->  | K19: ='C5C'!K150 -> 0
A20: ='Org structure'!A16 -> Vote 15 - HOUSING SERVICES | C20: ='C5C'!C161 -> 0 | D20: ='C5C'!D161 -> 0 | E20: ='C5C'!E161 -> 0 | F20: ='C5C'!F161 -> 0 | G20: ='C5C'!G161 -> 0 | H20: ='C5C'!H161 -> 0 | I20: =G20-H20 -> 0 | J20: =IF(I20=0,"",I20/H20) ->  | K20: ='C5C'!K161 -> 0
A21: Total Capital Multi-year expenditure | B21: 4,7 | C21: =SUM(C6:C20) -> 0 | D21: =SUM(D6:D20) -> 146450997 | E21: 0 | F21: 8086254 | G21: 19515254 | H21: 36612749.25 | I21: -17097495.25 | J21: =IF(I21=0,"",I21/H21) -> -0.4669820104 | K21: =SUM(K6:K20) -> 78061016
A23: Single Year expenditure appropriation | B23: 2
A24: ='Org structure'!A2 -> Vote 1 - COUNCIL GENERAL | C24: ='C5C'!C176 -> 0 | D24: ='C5C'!D176 -> 0 | E24: ='C5C'!E176 -> 0 | F24: ='C5C'!F176 -> 0 | G24: ='C5C'!G176 -> 0 | H24: ='C5C'!H176 -> 0 | I24: ='C5C'!I176 -> 0 | J24: =IF(I24=0,"",I24/H24) ->  | K24: ='C5C'!K176 -> 0
A25: ='Org structure'!A3 -> Vote 2 - OFFICE OF THE EXECUTIVE MAYOR | C25: ='C5C'!C187 -> 0 | D25: ='C5C'!D187 -> 0 | E25: ='C5C'!E187 -> 0 | F25: ='C5C'!F187 -> 0 | G25: ='C5C'!G187 -> 0 | H25: ='C5C'!H187 -> 0 | I25: ='C5C'!I187 -> 0 | J25: =IF(I25=0,"",I25/H25) ->  | K25: ='C5C'!K187 -> 0
A26: ='Org structure'!A4 -> Vote 3 - OFFICE OF THE SPEAKER | C26: ='C5C'!C198 -> 0 | D26: ='C5C'!D198 -> 0 | E26: ='C5C'!E198 -> 0 | F26: ='C5C'!F198 -> 0 | G26: ='C5C'!G198 -> 0 | H26: ='C5C'!H198 -> 0 | I26: ='C5C'!I198 -> 0 | K26: ='C5C'!K198 -> 0
A27: ='Org structure'!A5 -> Vote 4 - OFFICE OF THE MUNICIPAL MANAGER | C27: ='C5C'!C209 -> 0 | D27: ='C5C'!D209 -> 0 | E27: ='C5C'!E209 -> 0 | F27: ='C5C'!F209 -> 0 | G27: ='C5C'!G209 -> 0 | H27: ='C5C'!H209 -> 0 | I27: ='C5C'!I209 -> 0 | K27: ='C5C'!K209 -> 0
A28: ='Org structure'!A6 -> Vote 5 - CORPORATE SUPPORT SERVICES | C28: ='C5C'!C220 -> 0 | D28: ='C5C'!D220 -> 0 | E28: ='C5C'!E220 -> 0 | F28: ='C5C'!F220 -> 0 | G28: ='C5C'!G220 -> 0 | H28: ='C5C'!H220 -> 0 | I28: ='C5C'!I220 -> 0 | K28: ='C5C'!K220 -> 0
A29: ='Org structure'!A7 -> Vote 6 - FINANCE | C29: ='C5C'!C231 -> 0 | D29: ='C5C'!D231 -> 0 | E29: ='C5C'!E231 -> 0 | F29: ='C5C'!F231 -> 0 | G29: ='C5C'!G231 -> 0 | H29: ='C5C'!H231 -> 0 | I29: ='C5C'!I231 -> 0 | K29: ='C5C'!K231 -> 0
A30: ='Org structure'!A8 -> Vote 7 - HUMAN RESOURCES | C30: ='C5C'!C242 -> 0 | D30: ='C5C'!D242 -> 0 | E30: ='C5C'!E242 -> 0 | F30: ='C5C'!F242 -> 0 | G30: ='C5C'!G242 -> 0 | H30: ='C5C'!H242 -> 0 | I30: ='C5C'!I242 -> 0 | K30: ='C5C'!K242 -> 0
A31: ='Org structure'!A9 -> Vote 8 - COMMUNITY SERVICES | C31: ='C5C'!C253 -> 0 | D31: ='C5C'!D253 -> 0 | E31: ='C5C'!E253 -> 0 | F31: ='C5C'!F253 -> 0 | G31: ='C5C'!G253 -> 0 | H31: ='C5C'!H253 -> 0 | I31: ='C5C'!I253 -> 0 | K31: ='C5C'!K253 -> 0
A32: ='Org structure'!A10 -> Vote 9 - PUBLIC SAFETY AND TRANSPORT | C32: ='C5C'!C264 -> 0 | D32: ='C5C'!D264 -> 0 | E32: ='C5C'!E264 -> 0 | F32: ='C5C'!F264 -> 0 | G32: ='C5C'!G264 -> 0 | H32: ='C5C'!H264 -> 0 | I32: ='C5C'!I264 -> 0 | K32: ='C5C'!K264 -> 0
A33: ='Org structure'!A11 -> Vote 10 - ECONOMIC DEVELOPMENT | C33: ='C5C'!C275 -> 0 | D33: ='C5C'!D275 -> 0 | E33: ='C5C'!E275 -> 0 | F33: ='C5C'!F275 -> 0 | G33: ='C5C'!G275 -> 0 | H33: ='C5C'!H275 -> 0 | I33: ='C5C'!I275 -> 0 | K33: ='C5C'!K275 -> 0
A34: ='Org structure'!A12 -> Vote 11 - ENGINEERING SERVICES | C34: ='C5C'!C286 -> 0 | D34: ='C5C'!D286 -> 0 | E34: ='C5C'!E286 -> 0 | F34: ='C5C'!F286 -> 0 | G34: ='C5C'!G286 -> 0 | H34: ='C5C'!H286 -> 0 | I34: ='C5C'!I286 -> 0 | K34: ='C5C'!K286 -> 0
A35: ='Org structure'!A13 -> Vote 12 - WATER | C35: ='C5C'!C297 -> 0 | D35: ='C5C'!D297 -> 0 | E35: ='C5C'!E297 -> 0 | F35: ='C5C'!F297 -> 0 | G35: ='C5C'!G297 -> 0 | H35: ='C5C'!H297 -> 0 | I35: ='C5C'!I297 -> 0 | K35: ='C5C'!K297 -> 0
A36: ='Org structure'!A14 -> Vote 13 - ELECTRICITY | C36: ='C5C'!C308 -> 0 | D36: ='C5C'!D308 -> 0 | E36: ='C5C'!E308 -> 0 | F36: ='C5C'!F308 -> 0 | G36: ='C5C'!G308 -> 0 | H36: ='C5C'!H308 -> 0 | I36: ='C5C'!I308 -> 0 | K36: ='C5C'!K308 -> 0
A37: ='Org structure'!A15 -> Vote 14 - MECHANICAL WORKSHOP | C37: ='C5C'!C319 -> 0 | D37: ='C5C'!D319 -> 0 | E37: ='C5C'!E319 -> 0 | F37: ='C5C'!F319 -> 0 | G37: ='C5C'!G319 -> 0 | H37: ='C5C'!H319 -> 0 | I37: ='C5C'!I319 -> 0 | K37: ='C5C'!K319 -> 0
A38: ='Org structure'!A16 -> Vote 15 - HOUSING SERVICES | C38: ='C5C'!C330 -> 0 | D38: ='C5C'!D330 -> 0 | E38: ='C5C'!E330 -> 0 | F38: ='C5C'!F330 -> 0 | G38: ='C5C'!G330 -> 0 | H38: ='C5C'!H330 -> 0 | I38: ='C5C'!I330 -> 0 | K38: ='C5C'!K330 -> 0
A39: Total Capital single-year expenditure | B39: 4 | C39: =SUM(C24:C38) -> 0 | D39: 0 | E39: 0 | F39: 0 | G39: 0 | H39: 0 | I39: 0 | K39: =SUM(K24:K38) -> 0
A40: Total Capital Expenditure | C40: =C39+C21 -> 0 | D40: 146450997 | E40: 0 | F40: 8086254 | G40: 19515254 | H40: 36612749.25 | I40: -17097495.25 | J40: =IF(I40=0,"",I40/H40) -> -0.4669820104 | K40: =K39+K21 -> 78061016
A42: Capital Expenditure - Standard Classification
A43: ='C2-FinPerf SC'!A29 -> Governance and administration | C43: =SUM(C44:C46) -> 0 | D43: 33944739 | E43: 0 | F43: 19150 | G43: 19150 | H43: 8486184.75 | I43: =G43-H43 -> -8467034.75 | J43: =IF(I43=0,"",I43/H43) -> -0.9977433911 | K43: =SUM(K44:K46) -> 76600
A44: ='C2-FinPerf SC'!A30 -> Executive and council | D44: ='C5C'!D8+'C5C'!D40 -> 33944739 | F44: ='C5C'!F8+'C5C'!F40 -> 19150 | G44: ='C5C'!G8+'C5C'!G40 -> 19150 | H44: =D44/12*3 -> 8486184.75 | I44: -8467034.75 | J44: =IF(I44=0,"",I44/H44) -> -0.9977433911 | K44: =G44*12/3 -> 76600
A45: ='C2-FinPerf SC'!A31 -> Budget and treasury office | I45: 0
A46: ='C2-FinPerf SC'!A32 -> Corporate services | I46: 0
A47: ='C2-FinPerf SC'!A33 -> Community and public safety | C47: =SUM(C48:C52) -> 0 | D47: 47734084 | E47: 0 | F47: 1061795 | G47: 1597795 | H47: 11933521 | I47: -10335726 | J47: -0.8661086699 | K47: =SUM(K48:K52) -> 6391180
A48: ='C2-FinPerf SC'!A34 -> Community and social services | D48: ='C5C'!D85 -> 0 | F48: ='C5C'!F85 -> 0 | G48: ='C5C'!G85 -> 0 | H48: =D48/12*3 -> 0 | I48: 0
A49: ='C2-FinPerf SC'!A35 -> Sport and recreation | D49: ='C5C'!D86 -> 47132296 | F49: ='C5C'!F86 -> 1061795 | G49: ='C5C'!G86 -> 1597795 | H49: =D49/12*3 -> 11783074 | I49: -10185279 | J49: -0.8643991373 | K49: =G49*12/3 -> 6391180
A50: ='C2-FinPerf SC'!A36 -> Public safety | D50: ='C5C'!D95 -> 601788 | F50: ='C5C'!F95 -> 0 | G50: ='C5C'!G95 -> 0 | H50: =D50/12*3 -> 150447 | I50: -150447 | J50: -1 | K50: =G50*12/3 -> 0
A51: ='C2-FinPerf SC'!A37 -> Housing | I51: 0
A52: ='C2-FinPerf SC'!A38 -> Health | I52: 0
A53: ='C2-FinPerf SC'!A39 -> Economic and environmental services | C53: =SUM(C54:C56) -> 0 | D53: 18993919 | E53: 0 | F53: 274620 | G53: 4339620 | H53: 4748479.75 | I53: -408859.75 | J53: -0.08610329443 | K53: =SUM(K54:K56) -> 17358480
A54: ='C2-FinPerf SC'!A40 -> Planning and development | D54: ='C5C'!D107 -> 14643021 | F54: ='C5C'!F107 -> 150661 | G54: ='C5C'!G107 -> 3404661 | H54: =D54/12*3 -> 3660755.25 | I54: -256094.25 | J54: -0.06995667083 | K54: =G54*12/3 -> 13618644
A55: ='C2-FinPerf SC'!A41 -> Road transport | D55: ='C5C'!D123 -> 4350898 | F55: ='C5C'!F123 -> 123959 | G55: ='C5C'!G123 -> 934959 | H55: =D55/12*3 -> 1087724.5 | I55: -152765.5 | J55: -0.14044503 | K55: =G55*12/3 -> 3739836
A56: ='C2-FinPerf SC'!A42 -> Environmental protection | I56: 0
A57: ='C2-FinPerf SC'!A43 -> Trading services | C57: =SUM(C58:C61) -> 0 | D57: 33021038 | E57: 0 | F57: 6565912 | G57: 8806912 | H57: 8255259.5 | I57: 551652.5 | J57: 0.06682436815 | K57: =SUM(K58:K61) -> 35227648
A58: ='C2-FinPerf SC'!A44 -> Electricity | D58: ='C5C'!D139 -> 2240000 | F58: ='C5C'!F139 -> 0 | G58: ='C5C'!G139 -> 673000 | H58: =D58/12*3 -> 560000 | I58: 113000 | J58: 0.2017857143 | K58: =G58*12/3 -> 2692000
A59: ='C2-FinPerf SC'!A45 -> Water | D59: ='C5C'!D130 -> 40000 | F59: ='C5C'!F130 -> 5993033 | G59: ='C5C'!G130 -> 6370033 | H59: =D59/12*3 -> 10000 | I59: 6360033 | J59: 636.0033 | K59: =G59*12/3 -> 25480132
A60: ='C2-FinPerf SC'!A46 -> Waste water management | D60: ='C5C'!D132 -> 30741038 | F60: ='C5C'!F132 -> 572879 | G60: ='C5C'!G132 -> 1763879 | H60: =D60/12*3 -> 7685259.5 | I60: -5921380.5 | J60: -0.7704854338 | K60: =G60*12/3 -> 7055516
A61: ='C2-FinPerf SC'!A47 -> Waste management | H61: =D61/12*3 -> 0 | I61: 0 | K61: =G61*12/3 -> 0
A62: ='C2-FinPerf SC'!A48 -> Other | D62: ='C5C'!D124 -> 12757217 | F62: ='C5C'!F124 -> 164777 | G62: ='C5C'!G124 -> 4751777 | H62: =D62/12*3 -> 3189304.25 | I62: 1562472.75 | J62: 0.489910221 | K62: =G62*12/3 -> 19007108
A63: Total Capital Expenditure - Standard Classification | B63: 3 | C63: =C43+C47+C53+C57+C62 -> 0 | D63: =D43+D47+D53+D57+D62 -> 146450997 | E63: 0 | F63: 8086254 | G63: 19515254 | H63: 36612749.25 | I63: -17097495.25 | J63: -0.4669820104 | K63: =K43+K47+K53+K57+K62 -> 78061016
A65: Funded by:
A66: National Government | D66: 116451000 | F66: =F47+F53+F57+F62 -> 8067104 | G66: =G47+G53+G57+G62 -> 19496104 | H66: =D66/12*3 -> 29112750 | I66: =G66-H66 -> -9616646 | J66: =IF(I66=0,"",I66/H66) -> -0.330324205 | K66: =G66*12/3 -> 77984416
A67: Provincial Government | I67: 0
A68: District Municipality | I68: 0
A69: Other transfers and grants | I69: 0
A70: Transfers recognised - capital | C70: =SUM(C66:C69) -> 0 | D70: 116451000 | E70: 0 | F70: 8067104 | G70: 19496104 | H70: 29112750 | I70: -9616646 | J70: -0.330324205 | K70: =SUM(K66:K69) -> 77984416
A71: Public contributions & donations | B71: 5 | I71: 0
A72: Borrowing | B72: 6 | I72: 0
A73: Internally generated funds | D73: 30000000 | F73: =F43 -> 19150 | G73: =G43 -> 19150 | H73: =D73/12*3 -> 7500000 | I73: -7480850 | J73: -0.9974466667 | K73: =G73*12/3 -> 76600
A74: Total Capital Funding | C74: =SUM(C70:C73) -> 0 | D74: 146451000 | E74: 0 | F74: =SUM(F70:F73) -> 8086254 | G74: =SUM(G70:G73) -> 19515254 | H74: =SUM(H70:H73) -> 36612750 | I74: -17097496 | J74: -0.4669820213 | K74: 78061016
A75: =head27a -> References
A76: 1. Municipalities may choose to appropriate for capital expenditure for three years or for one year (if one year appropriation projected expenditure required for yr2 and yr3).
A77: 2. Include capital component of PPP unitary payment
A78: 3. Capital expenditure by standard classification must reconcile to the total of multi-year and single year appropriations
A79: 4. Include expenditure on investment property, intangible and biological assets
A80: 5. Must reconcile to Monthly Budget Statement Financial Performance (revenue and expenditure)
A81: 6. Include finance leases and PPP capital funding component of unitary payment - total borrowing/repayments to reconcile to changes in Table SA17
A86: check balance | C86: =C40-C74 -> 0 | D86: =D40-D74 -> -3 | E86: 0 | F86: 0 | G86: 0 | H86: -0.75 | K86: 0

Sheet C5C
A1: =muni& " - "&S71D& " - "&"A"& " - "&date -> FS184 Matjhabeng - Table C5 Monthly Budget Statement - Capital Expenditure (municipal vote, standard classification and funding) - A - M03 September
A2: =Vdesc -> Vote Description | B2: =head27 -> Ref | C2: =Head1 -> 2014/15 | D2: =Head2 -> Budget Year 2015/16 | L2: =Head4 -> 
A3: R thousand | C3: =Head5 -> Audited Outcome | D3: =Head6 -> Original Budget | E3: =Head7 -> Adjusted Budget | F3: =Head38 -> Monthly actual | G3: =Head39 -> YearTD actual | H3: =Head40 -> YearTD budget | I3: =Head41 -> YTD variance | J3: =Head41 -> YTD variance | K3: =Head8 -> Full Year Forecast | L3: =Head12 -> Forecast 2010/11 | M3: =Head13 -> Forecast 2011/12 | N3: =Head14 -> Forecast 2012/13 | O3: =Head15 -> Forecast 2013/14 | P3: =Head16 -> Forecast 2014/15 | Q3: =Head17 -> Forecast 2015/16 | R3: =Head18 -> Forecast 2016/17 | S3: =Head19 -> Forecast 2017/18 | T3: =Head20 -> Forecast 2018/19 | U3: =Head21 -> Forecast 2019/20 | V3: =Head22 -> Forecast 2020/21 | W3: =Head23 -> Forecast 2021/22
J4: %
A5: Capital expenditure - Municipal Vote
A6: Expenditure of multi-year capital appropriation | B6: 1
A7: ='Org structure'!A2 -> Vote 1 - COUNCIL GENERAL | C7: =SUM(C8:C17) -> 0 | D7: =SUM(D8:D17) -> 30000000 | E7: 0 | F7: 19150 | G7: 19150 | H7: 7500000 | I7: =G7-H7 -> -7480850 | J7: =IF(I7=0,"",I7/H7) -> -0.9974466667 | K7: 76600
A8: ='Org structure'!E3 -> 1.1 - Council | D8: 30000000 | F8: 19150 | G8: =F8 -> 19150 | H8: =D8/12*3 -> 7500000 | I8: -7480850 | J8: -0.9974466667 | K8: =G8*12/3 -> 76600
A9: ='Org structure'!E4 -> 0 | I9: 0
A10: ='Org structure'!E5 -> 0 | I10: 0
A11: ='Org structure'!E6 -> 0 | I11: 0
A12: ='Org structure'!E7 -> 0 | I12: 0
A13: ='Org structure'!E8 -> 0 | I13: 0
A14: ='Org structure'!E9 -> 0 | I14: 0
A15: ='Org structure'!E10 -> 0 | I15: 0
A16: ='Org structure'!E11 -> 0 | I16: 0
A17: ='Org structure'!E12 -> 0 | I17: 0
A18: ='Org structure'!A3 -> Vote 2 - OFFICE OF THE EXECUTIVE MAYOR | C18: =SUM(C19:C28) -> 0 | D18: =SUM(D19:D28) -> 0 | E18: 0 | F18: 0 | G18: 0 | H18: 0 | I18: 0 | K18: 0
A19: ='Org structure'!E14 -> 2.1 - Executive Mayor | I19: 0
A20: ='Org structure'!E15 -> 2.2 - Mayoral Committee | I20: 0
A21: ='Org structure'!E16 -> 0 | I21: 0
A22: ='Org structure'!E17 -> 0 | I22: 0
A23: ='Org structure'!E18 -> 0 | I23: 0
A24: ='Org structure'!E19 -> 0 | I24: 0
A25: ='Org structure'!E20 -> 0 | I25: 0
A26: ='Org structure'!E21 -> 0 | I26: 0
A27: ='Org structure'!E22 -> 0 | I27: 0
A28: ='Org structure'!E23 -> 0 | I28: 0
A29: ='Org structure'!A4 -> Vote 3 - OFFICE OF THE SPEAKER | C29: =SUM(C30:C39) -> 0 | D29: 0 | E29: 0 | F29: 0 | G29: 0 | H29: 0 | I29: 0 | K29: 0
A30: ='Org structure'!E25 -> 3.1 - Speaker | I30: 0
A31: ='Org structure'!E26 -> 3.2 - Political Appointments | I31: 0
A32: ='Org structure'!E27 -> 0 | I32: 0
A33: ='Org structure'!E28 -> 0 | I33: 0
A34: ='Org structure'!E29 -> 0 | I34: 0
A35: ='Org structure'!E30 -> 0 | I35: 0
A36: ='Org structure'!E31 -> 0 | I36: 0
A37: ='Org structure'!E32 -> 0 | I37: 0
A38: ='Org structure'!E33 -> 0 | I38: 0
A39: ='Org structure'!E34 -> 0 | I39: 0
A40: ='Org structure'!A5 -> Vote 4 - OFFICE OF THE MUNICIPAL MANAGER | C40: =SUM(C41:C50) -> 0 | D40: 3944739 | E40: 0 | F40: 0 | G40: 0 | H40: 986184.75 | I40: -986184.75 | J40: -1 | K40: 0
A41: ='Org structure'!E36 -> 4.1 - Municipal Manager | D41: 3944739 | G41: =F41 -> 0 | H41: =D41/12*3 -> 986184.75 | I41: -986184.75 | J41: -1 | K41: =G41*12/3 -> 0
A42: ='Org structure'!E37 -> 4.2 - IDP | I42: 0
A43: ='Org structure'!E38 -> 4.3 - Internal Audit | I43: 0
A44: ='Org structure'!E39 -> 4.4 - Organisation & Workstudy | I44: 0
A45: ='Org structure'!E40 -> 4.5 - IT | I45: 0
A46: ='Org structure'!E41 -> 4.6 - Legal Services | I46: 0
A47: ='Org structure'!E42 -> 0 | I47: 0
A48: ='Org structure'!E43 -> 0 | I48: 0
A49: ='Org structure'!E44 -> 0 | I49: 0
A50: ='Org structure'!E45 -> 0 | I50: 0
A51: ='Org structure'!A6 -> Vote 5 - CORPORATE SUPPORT SERVICES | C51: =SUM(C52:C61) -> 0 | D51: =SUM(D52:D61) -> 0 | E51: 0 | F51: 0 | G51: 0 | H51: 0 | I51: 0 | K51: 0
A52: ='Org structure'!E47 -> 5.1 - Corporate Services Admin | I52: 0
A53: ='Org structure'!E48 -> 5.2 - Libraries | I53: 0
A54: ='Org structure'!E49 -> 5.3 - Halls & Offices | I54: 0
A55: ='Org structure'!E50 -> 0 | I55: 0
A56: ='Org structure'!E51 -> 0 | I56: 0
A57: ='Org structure'!E52 -> 0 | I57: 0
A58: ='Org structure'!E53 -> 0 | I58: 0
A59: ='Org structure'!E54 -> 0 | I59: 0
A60: ='Org structure'!E55 -> 0 | I60: 0
A61: ='Org structure'!E56 -> 0 | I61: 0
A62: ='Org structure'!A7 -> Vote 6 - FINANCE | C62: =SUM(C63:C72) -> 0 | D62: =SUM(D63:D72) -> 0 | E62: 0 | F62: 0 | G62: 0 | H62: 0 | I62: 0 | K62: 0
A63: ='Org structure'!E58 -> 6.1 - Administration | I63: 0
A64: ='Org structure'!E59 -> 6.2 - Expenditure | I64: 0
A65: ='Org structure'!E60 -> 6.3 - Budget Control & Salaries | I65: 0
A66: ='Org structure'!E61 -> 6.4 - Stores | I66: 0
A67: ='Org structure'!E62 -> 6.6 - Revenue | I67: 0
A68: ='Org structure'!E63 -> 6.7 - Fresh Produce Market | I68: 0
A69: ='Org structure'!E64 -> 6.8 - Valuation | I69: 0
A70: ='Org structure'!E65 -> 6.8 - Credit Contol | I70: 0
A71: ='Org structure'!E66 -> 0 | I71: =G71-H71 -> 0 | J71: =IF(I71=0,"",I71/H71) -> 
A72: ='Org structure'!E67 -> 0 | I72: 0
A73: ='Org structure'!A8 -> Vote 7 - HUMAN RESOURCES | C73: =SUM(C74:C83) -> 0 | D73: 0 | E73: 0 | F73: 0 | G73: 0 | H73: 0 | I73: 0 | K73: 0
A74: ='Org structure'!E69 -> 7.1 - Administration | I74: 0
A75: ='Org structure'!E70 -> 7.2 - Training | I75: 0
A76: ='Org structure'!E71 -> 7.3 - Health and Safety | I76: 0
A77: ='Org structure'!E72 -> 0 | I77: 0
A78: ='Org structure'!E73 -> 0 | I78: 0
A79: ='Org structure'!E74 -> 0 | I79: 0
A80: ='Org structure'!E75 -> 0 | I80: 0
A81: ='Org structure'!E76 -> 0 | I81: 0
A82: ='Org structure'!E77 -> 0 | I82: 0
A83: ='Org structure'!E78 -> 0 | I83: 0
A84: ='Org structure'!A9 -> Vote 8 - COMMUNITY SERVICES | C84: =SUM(C85:C94) -> 0 | D84: =SUM(D85:D94) -> 47132296 | E84: 0 | F84: 1061795 | G84: 1597795 | H84: 11783074 | I84: -10185279 | J84: -0.8643991373 | K84: 6391180
A85: ='Org structure'!E80 -> 8.1 - Community Services Admin | G85: =F85 -> 0 | H85: =D85/12*3 -> 0 | I85: 0 | K85: =G85*12/3 -> 0
A86: ='Org structure'!E81 -> 8.2 - Parks and Recreation | D86: 47132296 | F86: 1061795 | G86: =F86+381000+155000 -> 1597795 | H86: =D86/12*3 -> 11783074 | I86: -10185279 | J86: -0.8643991373 | K86: =G86*12/3 -> 6391180
A87: ='Org structure'!E82 -> 8.3 - Refuse | G87: 0 | H87: =D87/12*3 -> 0 | I87: 0 | K87: =G87*12/3 -> 0
A88: ='Org structure'!E83 -> 8.4 - Enviromental Protection | G88: 0 | H88: =D88/12*3 -> 0 | I88: 0 | K88: =G88*12/3 -> 0
A89: ='Org structure'!E84 -> 0 | I89: 0
A90: ='Org structure'!E85 -> 0 | I90: 0
A91: ='Org structure'!E86 -> 0 | I91: 0
A92: ='Org structure'!E87 -> 0 | I92: 0
A93: ='Org structure'!E88 -> 0 | I93: 0
A94: ='Org structure'!E89 -> 0 | I94: 0
A95: ='Org structure'!A10 -> Vote 9 - PUBLIC SAFETY AND TRANSPORT | C95: =SUM(C96:C105) -> 0 | D95: =SUM(D96:D105) -> 601788 | E95: 0 | F95: 0 | G95: 0 | H95: 150447 | I95: -150447 | J95: -1 | K95: 0
A96: ='Org structure'!E91 -> 9.1 - Traffic | I96: 0
A97: ='Org structure'!E92 -> 9.2 - Disaster Management | I97: 0
A98: ='Org structure'!E93 -> 9.3 - Security | I98: 0
A99: ='Org structure'!E94 -> 9.4 - Fire Services | D99: 601788 | G99: =F99 -> 0 | H99: =D99/12*3 -> 150447 | I99: -150447 | J99: -1 | K99: =G99*12/3 -> 0
A100: ='Org structure'!E95 -> 0 | I100: 0
A101: ='Org structure'!E96 -> 0 | I101: 0
A102: ='Org structure'!E97 -> 0 | I102: 0
A103: ='Org structure'!E98 -> 0 | I103: 0
A104: ='Org structure'!E99 -> 0 | I104: 0
A105: ='Org structure'!E100 -> 0 | I105: 0
A106: ='Org structure'!A11 -> Vote 10 - ECONOMIC DEVELOPMENT | C106: =SUM(C107:C116) -> 0 | D106: =SUM(D107:D116) -> 14643021 | E106: 0 | F106: 150661 | G106: 3404661 | H106: 3660755.25 | I106: -256094.25 | J106: -0.06995667083 | K106: 13618644
A107: ='Org structure'!E102 -> 10.1 - Economic Development | D107: 14643021 | F107: 150661 | G107: =F107+1271000+1983000 -> 3404661 | H107: =D107/12*3 -> 3660755.25 | I107: -256094.25 | J107: -0.06995667083 | K107: =G107*12/3 -> 13618644
A108: ='Org structure'!E103 -> 0 | I108: 0
A109: ='Org structure'!E104 -> 0 | I109: 0
A110: ='Org structure'!E105 -> 0 | I110: 0
A111: ='Org structure'!E106 -> 0 | I111: 0
A112: ='Org structure'!E107 -> 0 | I112: 0
A113: ='Org structure'!E108 -> 0 | I113: 0
A114: ='Org structure'!E109 -> 0 | I114: 0
A115: ='Org structure'!E110 -> 0 | I115: 0
A116: ='Org structure'!E111 -> 0 | I116: 0
A117: ='Org structure'!A12 -> Vote 11 - ENGINEERING SERVICES | C117: =SUM(C118:C127) -> 0 | D117: =SUM(D118:D127) -> 17108115 | E117: 0 | F117: 288736 | G117: 5686736 | H117: 4277028.75 | I117: 1409707.25 | J117: 0.3295996666 | K117: 22746944
A118: ='Org structure'!E113 -> 11.1 - Building | I118: 0
A119: ='Org structure'!E114 -> 11.2 - Engineering Administration | I119: 0
A120: ='Org structure'!E115 -> 11.3 - Engineering Planning | I120: 0
A121: ='Org structure'!E116 -> 11.4 - Engineering Surveying | I121: 0
A122: ='Org structure'!E117 -> 11.5 - Eng- Intern Serv Building Shop | I122: 0
A123: ='Org structure'!E118 -> 11.6 - Roads | D123: 4350898 | F123: 123959 | G123: =F123+458000+353000 -> 934959 | H123: =D123/12*3 -> 1087724.5 | I123: -152765.5 | J123: -0.14044503 | K123: =G123*12/3 -> 3739836
A124: ='Org structure'!E119 -> 11.7 - Storm Water | D124: 12757217 | F124: 164777 | G124: =F124+2749000+1838000 -> 4751777 | H124: =D124/12*3 -> 3189304.25 | I124: 1562472.75 | J124: 0.489910221 | K124: =G124*12/3 -> 19007108
A125: ='Org structure'!E120 -> 11.8 - Eng - Roads/ Storm Water | G125: =F125 -> 0 | H125: =D125/12*3 -> 0 | I125: 0 | K125: =G125*12/3 -> 0
A126: ='Org structure'!E121 -> 0 | I126: 0
A127: ='Org structure'!E122 -> 0 | I127: 0
A128: ='Org structure'!A13 -> Vote 12 - WATER | C128: =SUM(C129:C138) -> 0 | D128: =SUM(D129:D138) -> 30781038 | E128: 0 | F128: 6565912 | G128: 8133912 | H128: 7695259.5 | I128: 438652.5 | J128: 0.05700295097 | K128: 32535648
A129: ='Org structure'!E124 -> 12.1 - Eng-Admin: Water and Sewerage | G129: =F129 -> 0 | H129: =D129/12*3 -> 0 | I129: 0 | K129: =G129*12/3 -> 0
A130: ='Org structure'!E125 -> 12.2 - Eng-Admin: Water Supply | D130: 40000 | F130: 5993033 | G130: =F130+377000 -> 6370033 | H130: =D130/12*3 -> 10000 | I130: 6360033 | J130: 636.0033 | K130: =G130*12/3 -> 25480132
A131: ='Org structure'!E126 -> 12.3 - Water Workshop | G131: 0 | H131: =D131/12*3 -> 0 | I131: 0 | K131: =G131*12/3 -> 0
A132: ='Org structure'!E127 -> 12.4 - Sewerage Network | D132: 30741038 | F132: 572879 | G132: =F132+1191000 -> 1763879 | H132: =D132/12*3 -> 7685259.5 | I132: -5921380.5 | J132: -0.7704854338 | K132: =G132*12/3 -> 7055516
A133: ='Org structure'!E128 -> 12.5 - Purifying Works | G133: 0 | H133: =D133/12*3 -> 0 | I133: 0 | K133: =G133*12/3 -> 0
A134: ='Org structure'!E129 -> 0 | I134: 0
A135: ='Org structure'!E130 -> 0 | I135: =G135-H135 -> 0 | J135: =IF(I135=0,"",I135/H135) -> 
A136: ='Org structure'!E131 -> 0 | I136: 0
A137: ='Org structure'!E132 -> 0 | I137: 0
A138: ='Org structure'!E133 -> 0 | I138: 0
A139: ='Org structure'!A14 -> Vote 13 - ELECTRICITY | C139: =SUM(C140:C149) -> 0 | D139: =SUM(D140:D149) -> 2240000 | E139: 0 | F139: 0 | G139: 673000 | H139: 560000 | I139: 113000 | J139: 0.2017857143 | K139: 2692000
A140: ='Org structure'!E135 -> 13.1 - Elec and Mec Eng Admin | G140: =F140 -> 0 | H140: =D140/12*3 -> 0 | I140: 0 | K140: =G140*12/3 -> 0
A141: ='Org structure'!E136 -> 13.2 - Distribution | D141: 1800000 | G141: 0 | H141: =D141/12*3 -> 450000 | I141: -450000 | J141: -1 | K141: =G141*12/3 -> 0
A142: ='Org structure'!E137 -> 13.3 - Distribution 132kVA | G142: 0 | H142: =D142/12*3 -> 0 | I142: 0 | K142: =G142*12/3 -> 0
A143: ='Org structure'!E138 -> 13.4 - Streetlights | D143: 440000 | F143: 0 | G143: =F143+673000 -> 673000 | H143: =D143/12*3 -> 110000 | I143: 563000 | J143: 5.118181818 | K143: =G143*12/3 -> 2692000
A144: ='Org structure'!E139 -> 13.5 - Electrical Workshop | I144: 0
A145: ='Org structure'!E140 -> 13.6 - Revenue Protection | I145: 0
A146: ='Org structure'!E141 -> 13.7 - Eng - Plant | I146: 0
A147: ='Org structure'!E142 -> 0 | I147: 0
A148: ='Org structure'!E143 -> 0 | I148: 0
A149: ='Org structure'!E144 -> 0 | I149: 0
A150: ='Org structure'!A15 -> Vote 14 - MECHANICAL WORKSHOP | C150: =SUM(C151:C160) -> 0 | D150: =SUM(D151:D160) -> 0 | E150: 0 | F150: 0 | G150: 0 | H150: 0 | I150: 0 | K150: 0
A151: ='Org structure'!E146 -> 14.1 - Mechanical workshop | I151: 0
A152: ='Org structure'!E147 -> 0 | I152: 0
A153: ='Org structure'!E148 -> 0 | I153: 0
A154: ='Org structure'!E149 -> 0 | I154: 0
A155: ='Org structure'!E150 -> 0 | I155: 0
A156: ='Org structure'!E151 -> 0 | I156: 0
A157: ='Org structure'!E152 -> 0 | I157: 0
A158: ='Org structure'!E153 -> 0 | I158: 0
A159: ='Org structure'!E154 -> 0 | I159: 0
A160: ='Org structure'!E155 -> 0 | I160: 0
A161: ='Org structure'!A16 -> Vote 15 - HOUSING SERVICES | C161: =SUM(C162:C171) -> 0 | D161: =SUM(D162:D171) -> 0 | E161: 0 | F161: 0 | G161: 0 | H161: 0 | I161: 0 | K161: 0
A162: ='Org structure'!E157 -> 15.1 - Housing services | I162: 0
A163: ='Org structure'!E158 -> 0 | I163: 0
A164: ='Org structure'!E159 -> 0 | I164: 0
A165: ='Org structure'!E160 -> 0 | I165: 0
A166: ='Org structure'!E161 -> 0 | I166: 0
A167: ='Org structure'!E162 -> 0 | I167: 0
A168: ='Org structure'!E163 -> 0 | I168: 0
A169: ='Org structure'!E164 -> 0 | I169: 0
A170: ='Org structure'!E165 -> 0 | I170: 0
A171: ='Org structure'!E166 -> 0 | I171: 0 | L171: =SUM(L79:L82) -> 0 | M171: 0 | N171: 0 | O171: 0 | P171: 0 | Q171: 0 | R171: 0 | S171: 0 | T171: 0 | U171: 0 | V171: 0 | W171: 0
A172: Total multi-year capital expenditure | C172: =C7+C18+C29+C40+C51+C62+C73+C84+C95+C106+C117+C128+C139+C150+C161 -> 0 | D172: =D7+D18+D29+D40+D51+D62+D73+D84+D95+D106+D117+D128+D139+D150+D161 -> 146450997 | E172: 0 | F172: 8086254 | G172: 19515254 | H172: 36612749.25 | I172: -17097495.25 | J172: -0.4669820104 | K172: 78061016
I173: 0
A174: Capital expenditure - Municipal Vote
A175: Expenditue of single-year capital appropriation | B175: 1 | I175: 0
A176: ='Org structure'!A2 -> Vote 1 - COUNCIL GENERAL | C176: =SUM(C177:C186) -> 0 | D176: 0 | E176: 0 | F176: 0 | G176: 0 | H176: 0 | I176: 0 | K176: 0
A177: ='Org structure'!E3 -> 1.1 - Council | I177: 0
A178: ='Org structure'!E4 -> 0 | I178: 0
A179: ='Org structure'!E5 -> 0 | I179: 0
A180: ='Org structure'!E6 -> 0 | I180: 0
A181: ='Org structure'!E7 -> 0 | I181: 0
A182: ='Org structure'!E8 -> 0 | I182: 0
A183: ='Org structure'!E9 -> 0 | I183: 0
A184: ='Org structure'!E10 -> 0 | I184: 0
A185: ='Org structure'!E11 -> 0 | I185: 0
A186: ='Org structure'!E12 -> 0 | I186: 0
A187: ='Org structure'!A3 -> Vote 2 - OFFICE OF THE EXECUTIVE MAYOR | C187: =SUM(C188:C197) -> 0 | D187: =SUM(D188:D197) -> 0 | E187: =SUM(E188:E197) -> 0 | F187: 0 | G187: 0 | H187: 0 | I187: 0 | K187: 0
A188: ='Org structure'!E14 -> 2.1 - Executive Mayor | I188: 0
A189: ='Org structure'!E15 -> 2.2 - Mayoral Committee | I189: 0
A190: ='Org structure'!E16 -> 0 | I190: 0
A191: ='Org structure'!E17 -> 0 | I191: 0
A192: ='Org structure'!E18 -> 0 | I192: 0
A193: ='Org structure'!E19 -> 0 | I193: 0
A194: ='Org structure'!E20 -> 0 | I194: 0
A195: ='Org structure'!E21 -> 0 | I195: 0
A196: ='Org structure'!E22 -> 0 | I196: 0
A197: ='Org structure'!E23 -> 0 | I197: 0
A198: ='Org structure'!A4 -> Vote 3 - OFFICE OF THE SPEAKER | C198: =SUM(C199:C208) -> 0 | D198: 0 | E198: 0 | F198: 0 | G198: 0 | H198: 0 | I198: 0 | K198: 0
A199: ='Org structure'!E25 -> 3.1 - Speaker | I199: 0
A200: ='Org structure'!E26 -> 3.2 - Political Appointments | I200: =G200-H200 -> 0 | J200: =IF(I200=0,"",I200/H200) -> 
... 145 more rows

Sheet C6-FinPos
A1: =muni& " - "&S71E& " - "&date -> FS184 Matjhabeng - Table C6 Monthly Budget Statement - Financial Position - M03 September
A2: =desc -> Description | B2: =head27 -> Ref | C2: =Head1 -> 2014/15 | D2: =Head2 -> Budget Year 2015/16
C3: =Head5 -> Audited Outcome | D3: =Head6 -> Original Budget | E3: =Head7 -> Adjusted Budget | F3: =Head39 -> YearTD actual | G3: =Head8 -> Full Year Forecast
A4: R thousands | B4: 1
A5: ASSETS
A6: Current assets
A7: Cash | D7: 5000000 | F7: 91373231 | G7: =F7*12/3 -> 365492924
A8: Call investment deposits | D8: 13624000 | G8: =F8*12/3 -> 0
A9: Consumer debtors | D9: 1912017473 | F9: 148227936 | G9: 592911744
A10: Other debtors | D10: 10000000 | F10: 483000 | G10: 1932000
A11: Current portion of long-term receivables
A12: Inventory | D12: 346477184 | F12: =B12/12*12 -> 0 | G12: =F12*12/3 -> 0
A13: Total current assets | C13: =SUM(C7:C12) -> 0 | D13: =SUM(D7:D12) -> 2287118657 | E13: =SUM(E7:E12) -> 0 | F13: =SUM(F7:F12) -> 240084167 | G13: =SUM(G7:G12) -> 960336668
A15: Non current assets
A16: Long-term receivables
A17: Investments | D17: 15777435 | F17: 20000043 | G17: =F17*12/3 -> 80000172
A18: Investment property | D18: 460000000 | F18: =B18/12*12 -> 0 | G18: 0
A19: Investments in Associate
A20: Property, plant and equipment | D20: 5000000000 | F20: =B20/12*12 -> 0 | G20: =F20*12/3 -> 0
A21: Agricultural
A22: Biological assets
A23: Intangible assets
A24: Other non-current assets | D24: 5000000 | F24: =B24/12*12 -> 0 | G24: =F24*12/3 -> 0
A25: Total non current assets | C25: =SUM(C16:C24) -> 0 | D25: =SUM(D16:D24) -> 5480777435 | E25: =SUM(E16:E24) -> 0 | F25: =SUM(F16:F24) -> 20000043 | G25: =SUM(G16:G24) -> 80000172
A26: TOTAL ASSETS | C26: =C13+C25 -> 0 | D26: =D13+D25 -> 7767896092 | E26: =E13+E25 -> 0 | F26: =F13+F25 -> 260084210 | G26: =G13+G25 -> 1040336840
A28: LIABILITIES
A29: Current liabilities
A30: Bank overdraft
A31: Borrowing | F31: 0 | G31: =F31*12/3 -> 0
A32: Consumer deposits | D32: 33000000 | F32: 95429 | G32: 381716
A33: Trade and other payables | D33: 1450000000 | F33: =-33107341-10554841 -> -43662182 | G33: -174648728
A34: Provisions
A35: Total current liabilities | C35: =SUM(C30:C34) -> 0 | D35: =SUM(D30:D34) -> 1483000000 | E35: =SUM(E30:E34) -> 0 | F35: =SUM(F30:F34) -> -43566753 | G35: =SUM(G30:G34) -> -174267012
A37: Non current liabilities
A38: Borrowing
A39: Provisions | D39: 318000000 | F39: =B39/12*12 -> 0 | G39: =F39*12/3 -> 0
A40: Total non current liabilities | C40: =SUM(C38:C39) -> 0 | D40: =SUM(D38:D39) -> 318000000 | E40: =SUM(E38:E39) -> 0 | F40: =SUM(F38:F39) -> 0 | G40: =SUM(G38:G39) -> 0
A41: TOTAL LIABILITIES | C41: =C35+C40 -> 0 | D41: =D35+D40 -> 1801000000 | E41: =E35+E40 -> 0 | F41: =F35+F40 -> -43566753 | G41: =G35+G40 -> -174267012
A43: NET ASSETS | B43: 2 | C43: =C26-C41 -> 0 | D43: =D26-D41 -> 5966896092 | E43: =E26-E41 -> 0 | F43: =F26-F41 -> 303650963 | G43: =G26-G41 -> 1214603852
A45: COMMUNITY WEALTH/EQUITY
A46: Accumulated Surplus/(Deficit) | D46: 5966896092 | F46: =B46/12*12 -> 0 | G46: =F46*12/3 -> 0
A47: Reserves | F47: 303651000 | G47: 1214604000
A48: TOTAL COMMUNITY WEALTH/EQUITY | B48: 2 | C48: =SUM(C46:C47) -> 0 | D48: =SUM(D46:D47) -> 5966896092 | E48: =SUM(E46:E47) -> 0 | F48: =SUM(F46:F47) -> 303651000 | G48: =SUM(G46:G47) -> 1214604000
A49: =head27a -> References
A50: 1. Material variances to be explained in Table SC1
A51: 2. Net assets must balance with Total Community Wealth/Equity
A54: check balance | C54: =C43-C48 -> 0 | D54: =D43-D48 -> 0 | E54: =E43-E48 -> 0 | F54: =F43-F48 -> -37 | G54: =G43-G48 -> -148

Sheet C7-CFlow
A1: =muni& " - "&S71F& " - "&date -> FS184 Matjhabeng - Table C7 Monthly Budget Statement - Cash Flow - M03 September
A2: =desc -> Description | B2: =head27 -> Ref | C2: =Head1 -> 2014/15 | D2: =Head2 -> Budget Year 2015/16
C3: =Head5 -> Audited Outcome | D3: =Head6 -> Original Budget | E3: =Head7 -> Adjusted Budget | F3: =Head38 -> Monthly actual | G3: =Head39 -> YearTD actual | H3: =Head40 -> YearTD budget | I3: =Head41 -> YTD variance | J3: =Head41 -> YTD variance | K3: =Head8 -> Full Year Forecast
A4: R thousands | B4: 1 | J4: %
A5: CASH FLOW FROM OPERATING ACTIVITIES
A6: Receipts
A7: Property rates, penalties & collection charges | D7: 189178890 | F7: ='SC9'!E6 -> 26140084 | G7: =F7+8336000+10691000 -> 45167084 | H7: =D7/12*3 -> 47294722.5 | I7: =G7-H7 -> -2127638.5 | J7: =IF(I7=0,"",I7/H7) -> -0.04498680587 | K7: =G7*12/3 -> 180668336
A8: Service charges | D8: 911058804 | F8: ='SC9'!E8+'SC9'!E9+'SC9'!E10+'SC9'!E11 -> 55636080 | G8: =F8+43912000+53561000 -> 153109080 | H8: 227764701 | I8: =G8-H8 -> -74655621 | J8: =IF(I8=0,"",I8/H8) -> -0.3277752025 | K8: 612436320
A9: Other revenue | D9: =8607269+4103202+39541+10535024+79072629 -> 102357665 | F9: ='SC9'!E13+'SC9'!E16+'SC9'!E17+'SC9'!E18+'SC9'!E21 -> 17878735 | G9: =F9+6292000+8310000 -> 32480735 | H9: 25589416.25 | I9: 6891318.75 | J9: 0.2693034762 | K9: 129922940
A10: Government - operating | D10: =406586000 -> 406586000 | F10: ='C4-FinPerf RE'!F20 -> 0 | G10: =F10+170484000 -> 170484000 | H10: 101646500 | I10: =G10-H10 -> 68837500 | J10: 0.6772244986 | K10: 681936000
A11: Government - capital | D11: 116451000 | F11: ='C4-FinPerf RE'!F40 -> 600000 | G11: =F11+40735000 -> 41335000 | H11: 29112750 | I11: =G11-H11 -> 12222250 | J11: =IF(I11=0,"",I11/H11) -> 0.4198246473 | K11: 165340000
A12: Interest | D12: =635000+112971000 -> 113606000 | F12: ='SC9'!E14+'SC9'!E15 -> 1038461 | G12: =F12+475000+563000 -> 2076461 | H12: 28401500 | I12: =G12-H12 -> -26325039 | J12: -0.9268890376 | K12: 8305844
A13: Dividends | D13: 13600 | F13: ='C4-FinPerf RE'!F16 -> 0 | G13: =F13 -> 0 | H13: 3400 | I13: =G13-H13 -> -3400 | J13: -1 | K13: 0
A14: Payments
A15: Suppliers and employees | D15: ='C4-FinPerf RE'!D26+'C4-FinPerf RE'!D27+'C4-FinPerf RE'!D28+'C4-FinPerf RE'!D29+'C4-FinPerf RE'!D31+'C4-FinPerf RE'!D32+'C4-FinPerf RE'!D33+'C4-FinPerf RE'!D35 -> 1867822521 | F15: ='C4-FinPerf RE'!F26+'C4-FinPerf RE'!F27+'C4-FinPerf RE'!F28+'C4-FinPerf RE'!F29+'C4-FinPerf RE'!F31+'C4-FinPerf RE'!F32+'C4-FinPerf RE'!F33+'C4-FinPerf RE'!F35 -> 78774417 | G15: ='C4-FinPerf RE'!G26+'C4-FinPerf RE'!G27+'C4-FinPerf RE'!G28+'C4-FinPerf RE'!G29+'C4-FinPerf RE'!G31+'C4-FinPerf RE'!G32+'C4-FinPerf RE'!G33+'C4-FinPerf RE'!G35 -> 270842417 | H15: =D15/12*3 -> 466955630.2 | I15: =H15-G15 -> 196113213.2 | J15: 0.4199825434 | K15: =G15*12/3 -> 1083369668
A16: Finance charges | D16: ='C4-FinPerf RE'!D30 -> 168000000 | F16: ='C4-FinPerf RE'!F30 -> 0 | G16: ='C4-FinPerf RE'!G30 -> 0 | H16: =D16/12*3 -> 42000000 | I16: =H16-G16 -> 42000000 | J16: 1 | K16: =G16*12/3 -> 0
A17: Transfers and Grants | D17: ='C4-FinPerf RE'!D34 -> 32850000 | F17: ='C4-FinPerf RE'!F34 -> 0 | G17: ='C4-FinPerf RE'!G34 -> 0 | H17: =D17/12*3 -> 8212500 | I17: =H17-G17 -> 8212500 | J17: 1 | K17: =G17*12/3 -> 0
A18: NET CASH FROM/(USED) OPERATING ACTIVITIES | C18: =SUM(C7:C13)+SUM(C15:C17) -> 0 | D18: 3907924480 | E18: 0 | F18: 180067777 | G18: 715494777 | H18: 976981120 | I18: =H18-G18 -> 261486343 | J18: 0.2676472837 | K18: =SUM(K7:K13)+SUM(K15:K17) -> 2861979108
A20: CASH FLOWS FROM INVESTING ACTIVITIES
A21: Receipts
A22: Proceeds on disposal of PPE | I22: =G22-H22 -> 0 | J22: =IF(I22=0,"",I22/H22) -> 
A23: Decrease (Increase) in non-current debtors | I23: =G23-H23 -> 0
A24: Decrease (increase) other non-current receivables | I24: =G24-H24 -> 0
A25: Decrease (increase) in non-current investments | I25: =G25-H25 -> 0
A26: Payments
A27: Capital assets | D27: ='C5-Capex'!D63 -> 146450997 | F27: ='C5-Capex'!F63 -> 8086254 | G27: ='C5-Capex'!G63 -> 19515254 | H27: =D27/12*3 -> 36612749.25 | I27: =H27-G27 -> 17097495.25 | J27: 0.4669820104 | K27: =G27*12/3 -> 78061016
A28: NET CASH FROM/(USED) INVESTING ACTIVITIES | C28: =SUM(C22:C25)+C27 -> 0 | D28: =SUM(D22:D25)+D27 -> 146450997 | E28: 0 | F28: 8086254 | G28: 19515254 | H28: 36612749.25 | I28: =H28-G28 -> 17097495.25 | J28: 0.4669820104 | K28: =SUM(K22:K25)+K27 -> 78061016
A30: CASH FLOWS FROM FINANCING ACTIVITIES
A31: Receipts
A32: Short term loans | I32: =G32-H32 -> 0 | J32: =IF(I32=0,"",I32/H32) -> 
A33: Borrowing long term/refinancing | I33: =G33-H33 -> 0
A34: Increase (decrease) in consumer deposits | I34: =G34-H34 -> 0
A35: Payments
A36: Repayment of borrowing | I36: =H36-G36 -> 0
A37: NET CASH FROM/(USED) FINANCING ACTIVITIES | C37: =SUM(C32:C34)+C36 -> 0 | D37: 0 | E37: 0 | F37: 0 | G37: 0 | H37: 0 | I37: =H37-G37 -> 0 | K37: =SUM(K32:K34)+K36 -> 0
A39: NET INCREASE/ (DECREASE) IN CASH HELD | C39: =C18+C28+C37 -> 0 | D39: 4054375477 | E39: 0 | F39: 188154031 | G39: 735010031 | H39: 1013593869 | K39: =K18+K28+K37 -> 2940040124
A40: Cash/cash equivalents at beginning: | H40: =IF(E40=0, D40, E40) -> 0 | K40: =G40 -> 0
A41: Cash/cash equivalents at month/year end: | C41: =C39+C40 -> 0 | D41: =D39+D40 -> 4054375477 | E41: =E39+E40 -> 0 | G41: =G39+G40 -> 735010031 | H41: =H39+H40 -> 1013593869 | K41: =K39+K40 -> 2940040124
A42: References
A43: 1. Material variances to be explained in Table SC1

Sheet SC1
A1: =muni& " - "&S71G& " - "&date -> FS184 Matjhabeng - Supporting Table SC1 Material variance explanations - M03 September
A2: =head27 -> Ref | B2: =desc -> Description
C3: Variance | D3: Reasons for material deviations | E3: Remedial or corrective steps/remarks
B4: R thousands
A5: 1 | B5: ='C4-FinPerf RE'!A5 -> Revenue By Source
B6: Property Rates | D6: Under collection on property rates | E6: Stringent credit control and debt collection action to be taken
B7: Service Charges | D7: Under collection on service charges and losses | E7: Stringent credit control and debt collection action to be taken
A10: 2 | B10: ='C4-FinPerf RE'!A25 -> Expenditure By Type
B11: Other Expenditure | D11: Under expenditure due to cashflow constrains | E11: Intensify revenue collection to ensure that creditors are paid
E12: as per section 65 of the MFMA.
A15: 3 | B15: =RIGHT('C5-Capex'!A40,19) -> Capital Expenditure
B16: MIG Expenditure | D16: Under-spending of MIG | E16: PMU to ensure that the complete documentation should
E17: the finance department on time for verification and payment.
A20: 4 | B20: Financial Position
A25: 5 | B25: Cash Flow
A30: 6 | B30: Measureable performance
A35: 7 | B35: Municipal Entities
A41: =head27a -> References
A42: 1. Revenue for each source, vote and standard classification
A43: 2. Expenditure for each type, vote and standard classification
A44: 3. Capital expenditure for each vote and standard classification
A45: 4. Explain any material variances between the annual budget and the expected financial position based on current trends
A46: 5. Cash receipts by source and cash payments by type where not explained under revenue and expenditure
A47: 6. For Sept, Dec, Mar and Jun statements explain any material variances in achievement of measurable performance objectives

Sheet SC2
A1: =muni& " - "&S71H& " - "&Head57 -> FS184 Matjhabeng - Supporting Table SC2 Monthly Budget Statement - performance indicators - M03 September
A2: Description of financial indicator | B2: Basis of calculation | C2: =head27 -> Ref | D2: =Head1 -> 2014/15 | E2: =Head2 -> Budget Year 2015/16
D3: =Head5 -> Audited Outcome | E3: =Head6 -> Original Budget | F3: =Head7 -> Adjusted Budget | G3: =Head39 -> YearTD actual | H3: =Head8 -> Full Year Forecast
A5: Borrowing Management
A7: Capital Charges to Operating Expenditure | B7: Interest & principal paid/Operating Expenditure | D7: =IF(ISERROR((D42-D43)/D45),0,((D42-D43)/D45)) -> 0 | E7: =IF(ISERROR((E42+E44)/E45),0,((E42+E44)/E45)) -> 0.1743535559 | F7: =IF(ISERROR((F42+F44)/F45),0,((F42+F44)/F45)) -> 0 | G7: =IF(ISERROR((G42+G44)/G45),0,((G42+G44)/G45)) -> 0 | H7: =IF(ISERROR((H42+H44)/H45),0,((H42+H44)/H45)) -> 0.02540013516
A8: Borrowed funding of 'own' capital expenditure | B8: Borrowings/Capital expenditure excl. transfers and grants | D8: =IF(ISERROR(D47/D46),0,(D47/D46)) -> 0 | E8: =IF(ISERROR(E47/E46),0,(E47/E46)) -> 0 | F8: =IF(ISERROR(F47/F46),0,(F47/F46)) -> 0 | G8: =IF(ISERROR(G47/G46),0,(G47/G46)) -> 0 | H8: =IF(ISERROR(H47/H46),0,(H47/H46)) -> 0
A9: Safety of Capital
A10: Debt to Equity | B10: Loans, Accounts Payable, Overdraft & Tax Provision/ Funds & Reserves | D10: =IF(ISERROR(D48/D49),0,(D48/D49)) -> 0 | E10: =IF(ISERROR(E48/E49),0,(E48/E49)) -> 0.2430074159 | F10: =IF(ISERROR(F48/F49),0,(F48/F49)) -> 0 | G10: =IF(ISERROR(G48/G49),0,(G48/G49)) -> -0.1437906742 | H10: =IF(ISERROR(H48/H49),0,(H48/H49)) -> -0.1437906742
A11: Gearing | B11: Long Term Borrowing/ Funds & Reserves | D11: =IF(ISERROR(D51/D50),0,(D51/D50)) -> 0 | E11: =IF(ISERROR(E51/E50),0,(E51/E50)) -> 0 | F11: =IF(ISERROR(F51/F50),0,(F51/F50)) -> 0 | G11: =IF(ISERROR(G51/G50),0,(G51/G50)) -> 0 | H11: =IF(ISERROR(H51/H50),0,(H51/H50)) -> 0
A12: Liquidity
A13: Current Ratio | B13: Current assets/current liabilities | C13: 1 | D13: =IF(ISERROR(D52/D53),0,(D52/D53)) -> 0 | E13: =IF(ISERROR(E52/E53),0,(E52/E53)) -> 1.542224314 | F13: =IF(ISERROR(F52/F53),0,(F52/F53)) -> 0 | G13: =IF(ISERROR(G52/G53),0,(G52/G53)) -> -5.510719768 | H13: =IF(ISERROR(H52/H53),0,(H52/H53)) -> -5.510719768
A14: Liquidity Ratio | B14: Monetary Assets/Current Liabilities | D14: =IF(ISERROR(D54/D53),0,(D54/D53)) -> 0 | E14: =IF(ISERROR(E54/E53),0,(E54/E53)) -> 0.01255832771 | F14: =IF(ISERROR(F54/F53),0,(F54/F53)) -> 0 | G14: =IF(ISERROR(G54/G53),0,(G54/G53)) -> -2.097315607 | H14: =IF(ISERROR(H54/H53),0,(H54/H53)) -> -2.097315607
A15: Revenue Management
A16: Annual Debtors Collection Rate (Payment Level %) | B16: Last 12 Mths Receipts/ Last 12 Mths Billing
A17: Outstanding Debtors to Revenue | B17: Total Outstanding Debtors to Annual Revenue | D17: =IF(ISERROR(D59/D55),0,(D59/D55)) -> 0 | E17: =IF(ISERROR(E59/E55),0,(E59/E55)) -> 0.9842771079 | F17: =IF(ISERROR(F59/F55),0,(F59/F55)) -> 0 | G17: =IF(ISERROR(G59/G55),0,(G59/G55)) -> 0.2543528389 | H17: =IF(ISERROR(H59/H55),0,(H59/H55)) -> 0.2543528389
A18: Longstanding Debtors Recovered | B18: Debtors > 12 Mths Recovered/Total Debtors > 12 Months Old | D18: =IF(ISERROR(D64/D63),0,(D64/D63)) -> 0 | E18: =IF(ISERROR(E64/E63),0,(E64/E63)) -> 0 | F18: =IF(ISERROR(F64/F63),0,(F64/F63)) -> 0 | G18: =IF(ISERROR(G64/G63),0,(G64/G63)) -> 0 | H18: =IF(ISERROR(H64/H63),0,(H64/H63)) -> 0
A19: Creditors Management
A20: Creditors System Efficiency | B20: % of Creditors Paid Within Terms (within MFMA s 65(e))
A21: Funding of Provisions
A22: Percentage Of Provisions Not Funded | B22: Unfunded Provisions/Total Provisions
A23: Other Indicators
A24: Electricity Distribution Losses | B24: % Volume (units purchased and generated less units sold)/units purchased and generated | C24: 2
A25: Water Distribution Losses | B25: % Volume (units purchased and own source less units sold)/Total units purchased and own source | C25: 2
A26: Employee costs | B26: Employee costs/Total Revenue - capital revenue | D26: =IF(ISERROR(D40/D55),0,(D40/D55)) -> 0 | E26: =IF(ISERROR(E40/E55),0,(E40/E55)) -> 0.2915229587 | F26: =IF(ISERROR(F40/F55),0,(F40/F55)) -> 0 | G26: =IF(ISERROR(G40/G55),0,(G40/G55)) -> 0.2418202773 | H26: =IF(ISERROR(H40/H55),0,(H40/H55)) -> 0.2418202773
A27: Repairs & Maintenance | B27: R&M/Total Revenue - capital revenue | D27: =IF(ISERROR(D41/D55),0,(D41/D55)) -> 0 | E27: =IF(ISERROR(E41/E55),0,(E41/E55)) -> 0.1109679916 | F27: =IF(ISERROR(F41/F55),0,(F41/F55)) -> 0 | G27: =IF(ISERROR(G41/G55),0,(G41/G55)) -> 0.007903439205 | H27: =IF(ISERROR(H41/H55),0,(H41/H55)) -> 0.007903439205
A28: Interest & Depreciation | B28: I&D/Total Revenue - capital revenue | D28: =IF(ISERROR((D42+D44)/D55),0,((D42+D44)/D55)) -> 0 | E28: =IF(ISERROR((E42+E44)/E55),0,((E42+E44)/E55)) -> 0.1847066823 | F28: =IF(ISERROR((F42+F44)/F55),0,((F42+F44)/F55)) -> 0 | G28: =IF(ISERROR((G42+G44)/G55),0,((G42+G44)/G55)) -> 0 | H28: =IF(ISERROR((H42+H44)/H55),0,((H42+H44)/H55)) -> 0.01176647539
A29: IDP regulation financial viability indicators
A30: i. Debt coverage | B30: (Total Operating Revenue - Operating Grants)/Debt service payments due within financial year) | E30: =('C4-FinPerf RE'!D23-'SC6'!D38)/'SC3'!K14 -> 0.8441695671 | G30: =('C4-FinPerf RE'!G23-'SC6'!G38)/'SC3'!K14 -> 0.2259027936 | H30: =G30*12/3 -> 0.9036111742
A31: ii. O/S Service Debtors to Revenue | B31: Total outstanding service debtors/annual revenue received for services | E31: ='SC3'!K14/'C4-FinPerf RE'!D23 -> 0.9379451833 | G31: ='SC3'!K14/'C4-FinPerf RE'!G37 -> 6.762397941 | H31: =G31*12/3 -> 27.04959176
A32: iii. Cost coverage | B32: (Available cash + Investments)/monthly fixed operational expenditure | E32: =('SC9'!O34+'SC5'!J24)/'C4-FinPerf RE'!D37 -> 0.8987686258 | G32: =('SC9'!E34+'SC5'!J24)/'C4-FinPerf RE'!G37 -> 0.4478595389 | H32: =G32*12/3 -> 1.791438156
A33: References
A34: 1. Consumer debtors > 12 months old are excluded from current assets.
A35: 2. Material variances to be explained.
A37: Calculations
A38: ='C6-FinPos'!A38 -> Borrowing | D38: ='C6-FinPos'!C38 -> 0 | E38: ='C6-FinPos'!D38 -> 0 | F38: ='C6-FinPos'!E38 -> 0 | G38: ='C6-FinPos'!F38 -> 0 | H38: 0
A39: Total Assets | D39: ='C6-FinPos'!C26 -> 0 | E39: ='C6-FinPos'!D26 -> 7767896092 | F39: ='C6-FinPos'!E26 -> 0 | G39: ='C6-FinPos'!F26 -> 260084210 | H39: ='C6-FinPos'!G26 -> 1040336840
A40: ='C4-FinPerf RE'!A26 -> Employee related costs | D40: ='C4-FinPerf RE'!C26 -> 0 | E40: ='C4-FinPerf RE'!D26 -> 569262676 | F40: ='C4-FinPerf RE'!E26 -> 0 | G40: ='C4-FinPerf RE'!G26 -> 141383599 | H40: ='C4-FinPerf RE'!K26 -> 565534396
A41: =A27 -> Repairs & Maintenance | E41: 216689403 | F41: 0 | G41: =SC13c!G76 -> 4620856 | H41: =G41*12/3 -> 18483424
A42: Interest (finance charges) | D42: ='C4-FinPerf RE'!C30 -> 0 | E42: ='C4-FinPerf RE'!D30 -> 168000000 | F42: ='C4-FinPerf RE'!E30 -> 0 | G42: ='C4-FinPerf RE'!G30 -> 0 | H42: ='C4-FinPerf RE'!K30 -> 0
A43: Principal paid | D43: =-'C7-CFlow'!C36 -> 0 | E43: =-'C7-CFlow'!D36 -> 0 | F43: =-'C7-CFlow'!E36 -> 0 | G43: =-'C7-CFlow'!G36 -> 0 | H43: =-'C7-CFlow'!K36 -> 0
A44: Depreciation | D44: ='C4-FinPerf RE'!C29 -> 0 | E44: ='C4-FinPerf RE'!D29 -> 192680410 | F44: ='C4-FinPerf RE'!E29 -> 0 | H44: ='C4-FinPerf RE'!K27 -> 27517736
A45: Operating expenditure | D45: ='C4-FinPerf RE'!C37 -> 0 | E45: ='C4-FinPerf RE'!D37 -> 2068672521 | F45: ='C4-FinPerf RE'!E37 -> 0 | G45: ='C4-FinPerf RE'!G37 -> 270842417 | H45: ='C4-FinPerf RE'!K37 -> 1083369668
A46: ='C5-Capex'!A40 -> Total Capital Expenditure | D46: ='C5-Capex'!C40 -> 0 | E46: ='C5-Capex'!D40 -> 146450997 | F46: ='C5-Capex'!E40 -> 0 | G46: ='C5-Capex'!G40 -> 19515254 | H46: ='C5-Capex'!K40 -> 78061016
A47: Borrowed funding for capital | D47: ='C5-Capex'!C72 -> 0 | E47: ='C5-Capex'!D72 -> 0 | F47: ='C5-Capex'!E72 -> 0 | G47: ='C5-Capex'!G72 -> 0 | H47: ='C5-Capex'!K72 -> 0
A48: Debt | D48: ='C6-FinPos'!C30+'C6-FinPos'!C31+'C6-FinPos'!C33+'C6-FinPos'!C38 -> 0 | E48: ='C6-FinPos'!D30+'C6-FinPos'!D31+'C6-FinPos'!D33+'C6-FinPos'!D38 -> 1450000000 | F48: ='C6-FinPos'!E30+'C6-FinPos'!E31+'C6-FinPos'!E33+'C6-FinPos'!E38 -> 0 | G48: ='C6-FinPos'!F30+'C6-FinPos'!F31+'C6-FinPos'!F33+'C6-FinPos'!F38 -> -43662182 | H48: ='C6-FinPos'!G30+'C6-FinPos'!G31+'C6-FinPos'!G33+'C6-FinPos'!G38 -> -174648728
A49: Equity | D49: ='C6-FinPos'!C48 -> 0 | E49: ='C6-FinPos'!D48 -> 5966896092 | F49: ='C6-FinPos'!E48 -> 0 | G49: ='C6-FinPos'!F48 -> 303651000 | H49: ='C6-FinPos'!G48 -> 1214604000
A50: ='C6-FinPos'!A47 -> Reserves | D50: ='C6-FinPos'!C47 -> 0 | E50: ='C6-FinPos'!D47 -> 0 | F50: ='C6-FinPos'!E47 -> 0 | G50: ='C6-FinPos'!F47 -> 303651000 | H50: ='C6-FinPos'!G47 -> 1214604000
A51: ='C6-FinPos'!A38 -> Borrowing | D51: ='C6-FinPos'!C38 -> 0 | E51: ='C6-FinPos'!D38 -> 0 | F51: ='C6-FinPos'!E38 -> 0 | G51: ='C6-FinPos'!F38 -> 0 | H51: ='C6-FinPos'!G38 -> 0
A52: ='C6-FinPos'!A6 -> Current assets | D52: ='C6-FinPos'!C13 -> 0 | E52: ='C6-FinPos'!D13 -> 2287118657 | F52: ='C6-FinPos'!E13 -> 0 | G52: ='C6-FinPos'!F13 -> 240084167 | H52: ='C6-FinPos'!G13 -> 960336668
A53: ='C6-FinPos'!A29 -> Current liabilities | D53: ='C6-FinPos'!C35 -> 0 | E53: ='C6-FinPos'!D35 -> 1483000000 | F53: ='C6-FinPos'!E35 -> 0 | G53: ='C6-FinPos'!F35 -> -43566753 | H53: ='C6-FinPos'!G35 -> -174267012
A54: Monetary assets | D54: ='C6-FinPos'!C7+'C6-FinPos'!C8 -> 0 | E54: ='C6-FinPos'!D7+'C6-FinPos'!D8 -> 18624000 | F54: ='C6-FinPos'!E7+'C6-FinPos'!E8 -> 0 | G54: ='C6-FinPos'!F7+'C6-FinPos'!F8 -> 91373231 | H54: ='C6-FinPos'!G7+'C6-FinPos'!G8 -> 365492924
A55: ='C4-FinPerf RE'!A23 -> Total Revenue (excluding capital transfers and contributions) | D55: ='C4-FinPerf RE'!C23 -> 0 | E55: ='C4-FinPerf RE'!D23 -> 1952719877 | F55: ='C4-FinPerf RE'!E23 -> 0 | G55: ='C4-FinPerf RE'!G23 -> 584663952 | H55: ='C4-FinPerf RE'!K23 -> 2338655808
A56: ='C4-FinPerf RE'!A20 -> Transfers recognised - operational | D56: ='C4-FinPerf RE'!C20 -> 0 | E56: ='C4-FinPerf RE'!D20 -> 406586000 | F56: ='C4-FinPerf RE'!E20 -> 0 | G56: ='C4-FinPerf RE'!G20 -> 170913000 | H56: ='C4-FinPerf RE'!K20 -> 683652000
A57: ='C4-FinPerf RE'!A40 -> Transfers recognised - capital | D57: ='C4-FinPerf RE'!C40 -> 0 | E57: ='C4-FinPerf RE'!D40 -> 116450997 | F57: ='C4-FinPerf RE'!E40 -> 0 | G57: ='C4-FinPerf RE'!G40 -> 41335000 | H57: ='C4-FinPerf RE'!K40 -> 165340000
A58: Debt service payments | D58: ='C7-CFlow'!C12+'C7-CFlow'!C36 -> 0 | E58: ='C7-CFlow'!D12+'C7-CFlow'!D36 -> 113606000 | F58: ='C7-CFlow'!E12+'C7-CFlow'!E36 -> 0 | G58: ='C7-CFlow'!G16+'C7-CFlow'!G36 -> 0 | H58: ='C7-CFlow'!K16+'C7-CFlow'!K36 -> 0
A59: Outstanding debtors (receivables) | D59: ='C6-FinPos'!C9+'C6-FinPos'!C10+'C6-FinPos'!C11+'C6-FinPos'!C16 -> 0 | E59: ='C6-FinPos'!D9+'C6-FinPos'!D10+'C6-FinPos'!D11+'C6-FinPos'!D16 -> 1922017473 | F59: ='C6-FinPos'!E9+'C6-FinPos'!E10+'C6-FinPos'!E11+'C6-FinPos'!E16 -> 0 | G59: ='C6-FinPos'!F9+'C6-FinPos'!F10+'C6-FinPos'!F11+'C6-FinPos'!F16 -> 148710936 | H59: ='C6-FinPos'!G9+'C6-FinPos'!G10+'C6-FinPos'!G11+'C6-FinPos'!G16 -> 594843744
A60: Annual services revenue | D60: =SUM('C4-FinPerf RE'!C8:C12) -> 0 | E60: =SUM('C4-FinPerf RE'!D8:D12) -> 1138823505 | F60: =SUM('C4-FinPerf RE'!E8:E12) -> 0 | G60: =SUM('C4-FinPerf RE'!G8:G12) -> 280029674
A61: Cash + investments | B61: Including LT investments | D61: ='C6-FinPos'!C7+'C6-FinPos'!C8+'C6-FinPos'!C17-'C6-FinPos'!C30 -> 0 | E61: ='C6-FinPos'!D7+'C6-FinPos'!D8+'C6-FinPos'!D17-'C6-FinPos'!D30 -> 34401435 | F61: ='C6-FinPos'!E7+'C6-FinPos'!E8+'C6-FinPos'!E17-'C6-FinPos'!E30 -> 0 | G61: ='C6-FinPos'!F7+'C6-FinPos'!F8+'C6-FinPos'!F17-'C6-FinPos'!F30 -> 111373274 | H61: ='C6-FinPos'!G7+'C6-FinPos'!G8+'C6-FinPos'!G17-'C6-FinPos'!G30 -> 445493096
A62: Fixed operational expend. (monthly) | E62: ='C4-FinPerf RE'!D37 -> 2068672521 | G62: ='C4-FinPerf RE'!G37 -> 270842417 | H62: =G62*12/3 -> 1083369668
A63: Longstanding debtors outstanding | D63: ='C6-FinPos'!C16 -> 0 | E63: ='C6-FinPos'!D16 -> 0 | F63: ='C6-FinPos'!E16 -> 0 | G63: ='C6-FinPos'!F16 -> 0 | H63: ='C6-FinPos'!G16 -> 0
A64: Longstanding debtors recovered
A65: Attorney collections

Sheet SC3
A1: =muni& " - "&S71I& " - "&Head57 -> FS184 Matjhabeng - Supporting Table SC3 Monthly Budget Statement - aged debtors - M03 September
A2: =desc -> Description | C2: =Head2 -> Budget Year 2015/16
A3: R thousands | B3: NT Code | C3: 0-30 Days | D3: 31-60 Days | E3: 61-90 Days | F3: 91-120 Days | G3: 121-150 Dys | H3: 151-180 Dys | I3: 181 Dys-1 Yr | J3: Over 1Yr | K3: Total | L3: Total over 90 days | M3: Actual Bad Debts Written Off against Debtors | N3: Impairment - Bad Debts i.t.o Council Policy
A4: Debtors Age Analysis By Income Source
A5: Trade and Other Receivables from Exchange Transactions - Water | B5: 1200 | C5: =[6]AD!$F$8 -> 27197347.98 | D5: =[6]AD!$G$8 -> 20553293.61 | E5: =[6]AD!$H$8 -> 24054973.39 | F5: =[6]AD!$I$8 -> 29044359 | G5: =[6]AD!$J$8 -> 24062726.25 | H5: =[6]AD!$K$8 -> 13562834.27 | I5: =[6]AD!$L$8 -> 109687887.4 | J5: =[6]AD!$M$8 -> 361194489.2 | K5: =SUM(C5:J5) -> 609357911.1 | L5: =SUM(F5:J5) -> 537552296.2
A6: Trade and Other Receivables from Exchange Transactions - Electricity | B6: 1300 | C6: =[6]AD!$F$9 -> 50181075.95 | D6: =[6]AD!$G$9 -> 16835243.97 | E6: =[6]AD!$H$9 -> 9969415.86 | F6: =[6]AD!$I$9 -> 6273883.81 | G6: =[6]AD!$J$9 -> 7485260.86 | H6: =[6]AD!$K$9 -> 4750367.9 | I6: =[6]AD!$L$9 -> 23320514.64 | J6: =[6]AD!$M$9 -> 71123243.49 | K6: =SUM(C6:J6) -> 189939006.5 | L6: =SUM(F6:J6) -> 112953270.7
A7: Receivables from Non-exchange Transactions - Property Rates | B7: 1400 | C7: =[6]AD!$F$10 -> 16495583.37 | D7: =[6]AD!$G$10 -> 9135143.29 | E7: =[6]AD!$H$10 -> 9812871.54 | F7: =[6]AD!$I$10 -> 5138085.06 | G7: =[6]AD!$J$10 -> 4816701.35 | H7: =[6]AD!$K$10 -> 4637469.01 | I7: =[6]AD!$L$10 -> 28690456.35 | J7: =[6]AD!$M$10 -> 146237838.6 | K7: =SUM(C7:J7) -> 224964148.6 | L7: 189520550.4
A8: Receivables from Exchange Transactions - Waste Water Management | B8: 1500 | C8: =[6]AD!$F$11 -> 10032679.5 | D8: =[6]AD!$G$11 -> 8358377.62 | E8: =[6]AD!$H$11 -> 8314362.38 | F8: =[6]AD!$I$11 -> 5917849.92 | G8: =[6]AD!$J$11 -> 4987562.72 | H8: =[6]AD!$K$11 -> 4824626.33 | I8: =[6]AD!$L$11 -> 32050709.1 | J8: =[6]AD!$M$11 -> 149885207.6 | K8: 224371375.1 | L8: 197665955.6
A9: Receivables from Exchange Transactions - Waste Management | B9: 1600 | C9: =[6]AD!$F$12 -> 5942116.89 | D9: =[6]AD!$G$12 -> 4624896.76 | E9: =[6]AD!$H$12 -> 4740808.06 | F9: =[6]AD!$I$12 -> 3585109.95 | G9: =[6]AD!$J$12 -> 3376108.49 | H9: =[6]AD!$K$12 -> 3323817.8 | I9: =[6]AD!$L$12 -> 22603621.6 | J9: =[6]AD!$M$12 -> 103207935.3 | K9: 151404414.9 | L9: =SUM(F9:J9) -> 136096593.2
A10: Receivables from Exchange Transactions - Property Rental Debtors | B10: 1700 | C10: =[6]AD!$F$13 -> 672470.97 | D10: =[6]AD!$G$13 -> 684092.85 | E10: =[6]AD!$H$13 -> 639046.45 | F10: =[6]AD!$I$13 -> 608585.95 | G10: =[6]AD!$J$13 -> 599152.45 | H10: =[6]AD!$K$13 -> 590600.77 | I10: =[6]AD!$L$13 -> 4147392.48 | J10: =[6]AD!$M$13 -> 33337798.37 | K10: 41279140.29 | L10: =SUM(F10:J10) -> 39283530.02
A11: Interest on Arrear Debtor Accounts | B11: 1810 | C11: =[6]AD!$F$14 -> 9239440.46 | D11: =[6]AD!$G$14 -> 8706419.62 | E11: =[6]AD!$H$14 -> 8399647.75 | F11: =[6]AD!$I$14 -> 8834534.06 | G11: =[6]AD!$J$14 -> 8480744.08 | H11: =[6]AD!$K$14 -> 7854322.44 | I11: =[6]AD!$L$14 -> 49627023.12 | J11: =[6]AD!$M$14 -> 265700734.6 | K11: 366842866.1 | L11: 340497358.3
A12: Recoverable unauthorised, irregular, fruitless and wasteful expenditure | B12: 1820 | C12: =[6]AD!$F$15 -> 0 | D12: =[6]AD!$G$15 -> 0 | E12: =[6]AD!$H$15 -> 0 | F12: =[6]AD!$I$15 -> 0 | G12: =[6]AD!$J$15 -> 0 | H12: =[6]AD!$K$15 -> 0 | I12: =[6]AD!$L$15 -> 0 | J12: =[6]AD!$M$15 -> 0 | K12: 0 | L12: 0
A13: Other | B13: 1900 | C13: =[6]AD!$F$16 -> 3281887.88 | D13: =[6]AD!$G$16 -> 1495023.57 | E13: =[6]AD!$H$16 -> 259011.77 | F13: =[6]AD!$I$16 -> 1037117.17 | G13: =[6]AD!$J$16 -> 1700793.91 | H13: =[6]AD!$K$16 -> 1916187.29 | I13: =[6]AD!$L$16 -> 3739833 | J13: =[6]AD!$M$16 -> 9955485.85 | K13: 23385340.44 | L13: =SUM(F13:J13) -> 18349417.22
A14: Total By Income Source | B14: 2000 | C14: =SUM(C5:C13) -> 123042603 | D14: 70392491.29 | E14: 66190137.2 | F14: 60439524.92 | G14: 55509050.11 | H14: 41460225.81 | I14: 273867437.7 | J14: 1140642733 | K14: 1831544203 | L14: =SUM(L5:L13) -> 1571918972 | M14: 0 | N14: 0
A15: =Head1&" - totals only" -> 2014/15 - totals only | K15: =SUM(C15:J15) -> 0 | L15: =SUM(F15:J15) -> 0
A16: Debtors Age Analysis By Customer Group
A17: Organs of State | B17: 2200 | C17: =[6]AD!$F$19 -> 5629469.87 | D17: =[6]AD!$G$19 -> 3258503.7 | E17: =[6]AD!$H$19 -> 3600647.43 | F17: =[6]AD!$I$19 -> 1002221.47 | G17: =[6]AD!$J$19 -> 529740.56 | H17: =[6]AD!$K$19 -> 492590.38 | I17: =[6]AD!$L$19 -> 3059297.41 | J17: =[6]AD!$M$19 -> 7243317.21 | K17: =SUM(C17:J17) -> 24815788.03 | L17: =SUM(F17:J17) -> 12327167.03
A18: Commercial | B18: 2300 | C18: =[6]AD!$F$20 -> 42042371.66 | D18: =[6]AD!$G$20 -> 15144215.52 | E18: =[6]AD!$H$20 -> 10858670.5 | F18: =[6]AD!$I$20 -> 8312575.82 | G18: =[6]AD!$J$20 -> 8103994.93 | H18: =[6]AD!$K$20 -> 7940224.03 | I18: =[6]AD!$L$20 -> 43134197.19 | J18: =[6]AD!$M$20 -> 242111652 | K18: =SUM(C18:J18) -> 377647901.6 | L18: =SUM(F18:J18) -> 309602643.9
A19: Households | B19: 2400 | C19: =[6]AD!$F$21 -> 72184622.16 | D19: =[6]AD!$G$21 -> 48932418.24 | E19: =[6]AD!$H$21 -> 48335206.91 | F19: =[6]AD!$I$21 -> 48953757.33 | G19: =[6]AD!$J$21 -> 45062398.5 | H19: =[6]AD!$K$21 -> 31239516.05 | I19: =[6]AD!$L$21 -> 216439153.8 | J19: =[6]AD!$M$21 -> 862169422.4 | K19: =SUM(C19:J19) -> 1373316495 | L19: =SUM(F19:J19) -> 1203864248
A20: Other | B20: 2500 | C20: =[6]AD!$F$22 -> 3186139.31 | D20: =[6]AD!$G$22 -> 3057353.83 | E20: =[6]AD!$H$22 -> 3395612.36 | F20: =[6]AD!$I$22 -> 2170970.3 | G20: =[6]AD!$J$22 -> 1812916.12 | H20: =[6]AD!$K$22 -> 1787895.35 | I20: =[6]AD!$L$22 -> 11234789.34 | J20: =[6]AD!$M$22 -> 29118341.41 | K20: =SUM(C20:J20) -> 55764018.02 | L20: =SUM(F20:J20) -> 46124912.52
A21: Total By Customer Group | B21: 2600 | C21: =SUM(C17:C20) -> 123042603 | D21: 70392491.29 | E21: 66190137.2 | F21: 60439524.92 | G21: 55509050.11 | H21: 41460225.81 | I21: 273867437.7 | J21: =SUM(J17:J20) -> 1140642733 | K21: =SUM(K17:K20) -> 1831544203 | L21: =SUM(L17:L20) -> 1571918972 | M21: =SUM(M17:M20) -> 0 | N21: =SUM(N17:N20) -> 0
A22: Notes
A23: Material increases in value of debtors' categories compared to previous month to be explained
A24: Bad debts = amounts actually written off in the month
A25: Total by Income Source must reconcile with Total by Customer Group
C26: =C14-C21 -> 0 | D26: =D14-D21 -> 0 | E26: =E14-E21 -> 0 | F26: 0 | G26: 0 | H26: 0 | I26: 0 | J26: =J14-J21 -> 0 | K26: 0
C27: =IF(C26=0,"","MUST AGREE") ->  | D27: =IF(D26=0,"","MUST AGREE") -> 

Sheet SC4
A1: =muni& " - "&S71J& " - "&Head57 -> FS184 Matjhabeng - Supporting Table SC4 Monthly Budget Statement - aged creditors - M03 September
A2: =desc -> Description | B2: NT Code | C2: =Head2 -> Budget Year 2015/16 | L2: Prior year totals for chart (same period)
C3: 0 - 30 Days | D3: 31 - 60 Days | E3: 61 - 90 Days | F3: 91 - 120 Days | G3: 121 - 150 Days | H3: 151 - 180 Days | I3: 181 Days - 1 Year | J3: Over 1 Year | K3: Total
A4: R thousands
A5: Creditors Age Analysis By Customer Type
A6: Bulk Electricity | B6: 0100 | C6: 37658861 | D6: 70224462 | E6: 125069889 | F6: 0 | G6: 466449241 | K6: =SUM(C6:J6) -> 699402453
A7: Bulk Water | B7: 0200 | C7: 38939471 | D7: 44745027 | E7: 36340069 | F7: 36447888 | G7: 1131637315 | K7: =SUM(C7:J7) -> 1288109770
A8: PAYE deductions | B8: 0300 | K8: 0
A9: VAT (output less input) | B9: 0400 | K9: 0
A10: Pensions / Retirement deductions | B10: 0500 | K10: 0
A11: Loan repayments | B11: 0600 | K11: 0
A12: Trade Creditors | B12: 0700 | C12: 2250116 | D12: 1836837 | E12: 529662 | F12: 13077945 | G12: 2955551 | H12: 53325321 | K12: 73975432
A13: Auditor General | B13: 0800 | C13: 1060581 | D13: 795406 | E13: 143152 | F13: 0 | G13: 311331 | K13: 2310470
A14: Other | B14: 0900 | K14: =SUM(C14:J14) -> 0
A15: Total By Customer Type | B15: 1000 | C15: =SUM(C6:C14) -> 79909029 | D15: =SUM(D6:D14) -> 117601732 | E15: 162082772 | F15: 49525833 | G15: 1601353438 | H15: 53325321 | I15: 0 | J15: 0 | K15: =SUM(K6:K14) -> 2063798125 | L15: =SUM(L6:L14) -> 0
A16: Notes
A17: Material increases in value of creditors' categories compared to previous month to be explained

Sheet SC5
A1: =muni& " - "&S71K& " - "&Head57 -> FS184 Matjhabeng - Supporting Table SC5 Monthly Budget Statement - investment portfolio - M03 September
A2: Investments by maturity Name of institution & investment ID | B2: Ref | C2: Period of Investment | D2: Type of Investment | E2: Expiry date of investment | F2: Accrued interest for the month | G2: Yield for the month 1 (%) | H2: Market value at beginning of the month | I2: Change in market value | J2: Market value at end of the month
A3: R thousands | C3: Yrs/Months
A4: Municipality
A5: Absa SEED Investment/ Budget reform (90 9461 7107) | C5: 12 months | D5: Savings | F5: 106813 | H5: 20001000 | I5: -106813 | J5: =F5+H5+I5 -> 20001000
A6: Absa Tragedy Trust (91 0653 8138) | C6: 16 months | D6: Savings | F6: 0 | H6: 0 | I6: 0 | J6: =F6+H6+I6 -> 0
A7: Absa MIG Funds (91 0668 4115) | C7: 15 months | D7: Savings | F7: 0 | H7: 1000 | I7: 0 | J7: 1000
A8: LED (91 0668 4157) | C8: 17 months | D8: Savings | F8: 0 | H8: 1000 | I8: 0 | J8: 1000
A9: Absa Equitable share & FMG (91 0668 4238) | C9: 13 months | D9: Savings | F9: 0 | H9: 1000 | I9: 0 | J9: 1000
A10: Skills development (91 1114 1338) | C10: 18 months | D10: Savings | F10: 0 | H10: 1000 | I10: 0 | J10: 1000
A11: Restructuring (91 2351 5666) | C11: 18 months | D11: Savings | F11: 0 | H11: 1000 | I11: 0 | J11: 1000
A12: Municipality sub-total | F12: =SUM(F5:F11) -> 106813 | H12: =SUM(H5:H11) -> 20006000 | I12: =SUM(I5:I11) -> -106813 | J12: =SUM(J5:J11) -> 20006000
A14: Entities
A22: Entities sub-total | F22: =SUM(F15:F21) -> 0 | H22: =SUM(H15:H21) -> 0 | I22: =SUM(I15:I21) -> 0 | J22: =SUM(J15:J21) -> 0
A24: TOTAL INVESTMENTS AND INTEREST | B24: 2 | F24: =F12+F22 -> 106813 | H24: =H12+H22 -> 20006000 | I24: =I12+I22 -> -106813 | J24: =J12+J22 -> 20006000
A25: =head27a -> References
A26: 1. Yield is calculated as the annualised equivalent
A27: 2. Total market value must reconcile with the total of investments on the 'Financial Position statement'

Sheet SC6
A1: =muni& " - "&S71L& " - "&Head57 -> FS184 Matjhabeng - Supporting Table SC6 Monthly Budget Statement - transfers and grant receipts - M03 September
A2: =desc -> Description | B2: =head27 -> Ref | C2: =Head1 -> 2014/15 | D2: =Head2 -> Budget Year 2015/16
C3: =Head5 -> Audited Outcome | D3: =Head6 -> Original Budget | E3: =Head7 -> Adjusted Budget | F3: =Head38 -> Monthly actual | G3: =Head39 -> YearTD actual | H3: =Head40 -> YearTD budget | I3: =Head41 -> YTD variance | J3: =Head41 -> YTD variance | K3: =Head8 -> Full Year Forecast
A4: R thousands | J4: %
A5: RECEIPTS: | B5: 1,2
A7: Operating Transfers and Grants
A8: National Government: | C8: =SUM(C9:C19) -> 0 | D8: 406586000 | E8: 0 | F8: 0 | G8: 170913000 | H8: 101646500 | I8: 67151750 | J8: =IF(I8=0,"",I8/H8) -> 0.6606400614 | K8: =SUM(K9:K19) -> 406586000
A9: Local Government Equitable Share | D9: 402909000 | F9: 0 | G9: =F9+167879000 -> 167879000 | H9: =D9/12*3 -> 100727250 | I9: =G9-H9 -> 67151750 | J9: 0.6666691486 | K9: =D9 -> 402909000
A10: Finance Management | D10: 1675000 | F10: 0 | G10: =F10+1675000 -> 1675000 | H10: =D10/12*3 -> 418750 | K10: =D10 -> 1675000
A11: Municipal Systems Improvement | D11: 930000 | F11: 0 | G11: =F11+930000 -> 930000 | H11: =D11/12*3 -> 232500 | K11: 930000
A12: EPWP Incentive | D12: 1072000 | F12: 0 | G12: =F12+429000 -> 429000 | H12: =D12/12*3 -> 268000 | K12: 1072000
B14: 3 | I14: 0
I15: 0
I16: 0
I17: 0
I18: 0
A19: Other transfers and grants [insert description] | I19: 0
A20: Provincial Government: | C20: =SUM(C21:C26) -> 0 | D20: 0 | E20: 0 | F20: 0 | G20: 0 | H20: 0 | I20: 0 | K20: =SUM(K21:K26) -> 0
I21: =G21-H21 -> 0
I23: 0
B24: 4 | I24: 0
I25: 0
A26: Other transfers and grants [insert description] | I26: 0
A27: District Municipality: | C27: =SUM(C28:C29) -> 0 | D27: 0 | E27: 0 | F27: 0 | G27: 0 | H27: 0 | I27: 0 | K27: =SUM(K28:K29) -> 0
A28: [insert description] | I28: 0
I29: 0
A30: Other grant providers: | C30: =SUM(C31:C37) -> 0 | D30: 0 | E30: 0 | F30: 0 | G30: 0 | H30: 0 | I30: 0 | K30: =SUM(K31:K37) -> 0
A31: [insert description] | I31: 0
I37: 0
A38: Total Operating Transfers and Grants | B38: 5 | C38: =C8+C20+C27+C30 -> 0 | D38: 406586000 | E38: 0 | F38: 0 | G38: 170913000 | H38: 101646500 | I38: 67151750 | J38: 0.6606400614 | K38: =K8+K20+K27+K30 -> 406586000
A40: Capital Transfers and Grants
A41: =A8 -> National Government: | C41: =SUM(C42:C51) -> 0 | D41: 116451000 | E41: 0 | F41: 600000 | G41: 41335000 | H41: 29112750 | I41: 12222250 | J41: =IF(I41=0,"",I41/H41) -> 0.4198246473 | K41: 116451000
A42: Municipal Infrastructure Grant (MIG) | D42: 114651000 | F42: 0 | G42: =F42+40735000 -> 40735000 | H42: =D42/12*3 -> 28662750 | I42: =G42-H42 -> 12072250 | J42: 0.4211825453 | K42: =D42 -> 114651000
A47: Integrated National Electrification Programme | D47: 1800000 | F47: 600000 | G47: =F47 -> 600000 | H47: =D47/12*3 -> 450000 | I47: 150000 | J47: 0.3333333333 | K47: =D47 -> 1800000
A48: Energy Efficiency and Demand Management | I48: 0
I49: 0
I50: 0
A51: Other capital transfers [insert description] | I51: 0
A52: =A20 -> Provincial Government: | C52: =SUM(C53:C58) -> 0 | D52: 0 | E52: 0 | F52: 0 | G52: 0 | H52: 0 | I52: =G52-H52 -> 0 | J52: =IF(I52=0,"",I52/H52) ->  | K52: =SUM(K53:K58) -> 0
A53: [insert description] | I53: 0 | J53: =IF(I53=0,"",I53/H53) -> 
I58: 0
A59: =A27 -> District Municipality: | C59: =SUM(C60:C61) -> 0 | D59: 0 | E59: 0 | F59: 0 | G59: 0 | H59: 0 | I59: 0 | K59: =SUM(K60:K61) -> 0
A60: [insert description] | I60: 0
I61: 0
A62: =A30 -> Other grant providers: | C62: =SUM(C63:C68) -> 0 | D62: 0 | E62: 0 | F62: 0 | G62: 0 | H62: 0 | I62: 0 | K62: =SUM(K63:K68) -> 0
A63: [insert description] | I63: 0 | J63: =IF(I63=0,"",I63/H63) -> 
I68: 0
A69: Total Capital Transfers and Grants | B69: 5 | C69: =C41+C52+C59+C62 -> 0 | D69: =D41+D52+D59+D62 -> 116451000 | E69: 0 | F69: 600000 | G69: 41335000 | H69: 29112750 | I69: 12222250 | J69: 0.4198246473 | K69: 116451000
A71: TOTAL RECEIPTS OF TRANSFERS & GRANTS | B71: 5 | C71: =C38+C69 -> 0 | D71: 523037000 | E71: 0 | F71: 600000 | G71: 212248000 | H71: 130759250 | I71: 79374000 | J71: 0.6070239773 | K71: 523037000
A72: =head27a -> References
A73: 1. Each grant is listed by name as gazetted together with the name of the transferring department or municipality, donor or other organisation
A74: 2. Grant expenditure must be separately listed for each grant received
A75: 3. Replacement of RSC levies
A76: 4. Housing subsidies for housing where ownership transferred
A77: 5. Total recurrent/capital grants and subsidies must reconcile to the 'Financial Performance' Statement

Sheet SC7(1)
A1: =muni& " - "&S71M& " - "&Head57 -> FS184 Matjhabeng - Supporting Table SC7(1) Monthly Budget Statement - transfers and grant expenditure - M03 September
A2: =desc -> Description | B2: =head27 -> Ref | C2: =Head1 -> 2014/15 | D2: =Head2 -> Budget Year 2015/16
C3: =Head5 -> Audited Outcome | D3: =Head6 -> Original Budget | E3: =Head7 -> Adjusted Budget | F3: =Head38 -> Monthly actual | G3: =Head39 -> YearTD actual | H3: =Head40 -> YearTD budget | I3: =Head41 -> YTD variance | J3: =Head41 -> YTD variance | K3: =Head8 -> Full Year Forecast
A4: R thousands | J4: %
A5: EXPENDITURE
A7: Operating expenditure of Transfers and Grants
A8: ='SC6'!A8 -> National Government: | C8: =SUM(C9:C15) -> 0 | D8: 406586000 | E8: 0 | F8: 78774000 | G8: 164020000 | H8: 101646500 | I8: 62373500 | J8: =IF(I8=0,"",I8/H8) -> 0.6136315564 | K8: =SUM(K9:K15) -> 406586000
A9: ='SC6'!A9 -> Local Government Equitable Share | D9: 402909000 | F9: 78774000 | G9: =F9+26126000+56870000 -> 161770000 | H9: =D9/12*3 -> 100727250 | I9: =G9-H9 -> 61042750 | J9: 0.606020218 | K9: =D9 -> 402909000
A10: ='SC6'!A10 -> Finance Management | D10: 1675000 | F10: 0 | G10: =F10+1675000 -> 1675000 | H10: =D10/12*3 -> 418750 | I10: 1256250 | J10: 3 | K10: =D10 -> 1675000
A11: ='SC6'!A11 -> Municipal Systems Improvement | D11: 930000 | F11: 0 | G11: =F11+362000 -> 362000 | H11: =D11/12*3 -> 232500 | I11: 129500 | J11: 0.5569892473 | K11: =D11 -> 930000
A12: ='SC6'!A12 -> EPWP Incentive | D12: 1072000 | F12: 0 | G12: =F12+111000+102000 -> 213000 | H12: =D12/12*3 -> 268000 | I12: -55000 | J12: -0.2052238806 | K12: 1072000
A13: ='SC6'!A13 -> 0 | I13: 0
A14: ='SC6'!A14 -> 0 | I14: 0
A15: ='SC6'!A19 -> Other transfers and grants [insert description] | I15: 0
A16: ='SC6'!A20 -> Provincial Government: | C16: =SUM(C17:C21) -> 0 | D16: 0 | E16: 0 | F16: 0 | G16: 0 | H16: 0 | I16: 0 | K16: =SUM(K17:K21) -> 0
A17: ='SC6'!A21 -> 0 | I17: =G17-H17 -> 0
A18: ='SC6'!A23 -> 0 | I18: 0
A19: ='SC6'!A24 -> 0 | I19: 0
A20: ='SC6'!A25 -> 0 | I20: 0
A21: ='SC6'!A26 -> Other transfers and grants [insert description] | I21: 0
A22: ='SC6'!A27 -> District Municipality: | C22: =SUM(C23:C24) -> 0 | D22: 0 | E22: =SUM(E23:E24) -> 0 | F22: 0 | G22: 0 | H22: 0 | I22: 0 | K22: =SUM(K23:K24) -> 0
I23: 0
A24: ='SC6'!A28 -> [insert description] | I24: 0
A25: ='SC6'!A30 -> Other grant providers: | C25: =SUM(C26:C27) -> 0 | D25: 0 | E25: 0 | F25: 0 | G25: 0 | H25: 0 | I25: 0 | K25: =SUM(K26:K27) -> 0
I26: 0
A27: ='SC6'!A31 -> [insert description] | I27: 0
A28: Total operating expenditure of Transfers and Grants: | C28: =C8+C16+C22+C25 -> 0 | D28: =D8+D16+D22+D25 -> 406586000 | E28: 0 | F28: 78774000 | G28: 164020000 | H28: 101646500 | I28: 62373500 | J28: 0.6136315564 | K28: =K8+K16+K22+K25 -> 406586000
A30: Capital expenditure of Transfers and Grants
A31: ='SC6'!A41 -> National Government: | C31: =SUM(C32:C37) -> 0 | D31: 116451000 | E31: 0 | F31: 8067000 | G31: 19496000 | H31: 29112750 | I31: -9616750 | J31: =IF(I31=0,"",I31/H31) -> -0.3303277773 | K31: 116451000
A32: ='SC6'!A42 -> Municipal Infrastructure Grant (MIG) | D32: 114651000 | F32: 8067000 | G32: =F32+5236000+5520000 -> 18823000 | H32: =D32/12*3 -> 28662750 | I32: =G32-H32 -> -9839750 | J32: -0.3432939966 | K32: =D32 -> 114651000
A33: ='SC6'!A47 -> Integrated National Electrification Programme | D33: 1800000 | F33: 0 | G33: =F33 -> 0 | H33: =D33/12*3 -> 450000 | I33: -450000 | J33: -1 | K33: =D33 -> 1800000
A34: ='SC6'!A48 -> Energy Efficiency and Demand Management | F34: 0 | G34: =F34+673000 -> 673000 | H34: =D34/12*3 -> 0 | I34: 673000
A35: ='SC6'!A49 -> 0 | I35: 0
A36: ='SC6'!A50 -> 0 | I36: 0
A37: ='SC6'!A51 -> Other capital transfers [insert description] | I37: 0
A38: ='SC6'!A52 -> Provincial Government: | C38: =SUM(C39:C40) -> 0 | D38: 0 | E38: 0 | F38: 0 | G38: 0 | H38: 0 | I38: =G38-H38 -> 0 | K38: =SUM(K39:K40) -> 0
I39: 0
A40: ='SC6'!A58 -> 0 | I40: 0
A41: ='SC6'!A59 -> District Municipality: | C41: =SUM(C42:C43) -> 0 | D41: 0 | E41: 0 | F41: 0 | G41: 0 | H41: 0 | I41: 0 | K41: =SUM(K42:K43) -> 0
I42: 0
A43: ='SC6'!A61 -> 0 | I43: 0
A44: ='SC6'!A62 -> Other grant providers: | C44: =SUM(C45:C46) -> 0 | D44: 0 | E44: 0 | F44: 0 | G44: 0 | H44: 0 | I44: 0 | K44: =SUM(K45:K46) -> 0
I45: 0
A46: ='SC6'!A68 -> 0 | I46: 0
A47: Total capital expenditure of Transfers and Grants | C47: =C31+C38+C41+C44 -> 0 | D47: =D31+D38+D41+D44 -> 116451000 | E47: 0 | F47: 8067000 | G47: 19496000 | H47: 29112750 | I47: -9616750 | J47: =IF(I47=0,"",I47/H47) -> -0.3303277773 | K47: 116451000
A49: TOTAL EXPENDITURE OF TRANSFERS AND GRANTS | C49: =C28+C47 -> 0 | D49: 523037000 | E49: 0 | F49: 86841000 | G49: 183516000 | H49: 130759250 | I49: 52756750 | J49: =IF(I49=0,"",I49/H49) -> 0.4034647644 | K49: 523037000
A50: =head27a -> References

Sheet SC7(2)
A1: =muni& " - "&S71T& " - "&Head57 -> FS184 Matjhabeng - Supporting Table SC7(2) Monthly Budget Statement - Expenditure against approved rollovers - M03 September
A2: =desc -> Description | B2: =head27 -> Ref | C2: =Head2 -> Budget Year 2015/16
C3: ="Approved Rollover " &Head1 -> Approved Rollover 2014/15 | D3: =Head38 -> Monthly actual | E3: =Head39 -> YearTD actual | F3: =Head41 -> YTD variance | G3: =Head41 -> YTD variance
A4: R thousands | G4: %
A5: EXPENDITURE
A7: Operating expenditure of Approved Roll-overs
A8: ='SC6'!A8 -> National Government: | C8: =SUM(C9:C15) -> 0 | D8: =SUM(D9:D15) -> 0 | E8: =SUM(E9:E15) -> 0 | F8: =SUM(F9:F15) -> 0 | G8: =IF(F8=0,"",F8/C8) -> 
A9: ='SC6'!A9 -> Local Government Equitable Share | F9: =E9-C9 -> 0 | G9: =IF(F9=0,"",F9/C9) -> 
A10: ='SC6'!A10 -> Finance Management | F10: =C10-E10 -> 0
A11: ='SC6'!A11 -> Municipal Systems Improvement | F11: 0
A12: ='SC6'!A12 -> EPWP Incentive | F12: 0
A13: ='SC6'!A13 -> 0 | F13: 0
A14: ='SC6'!A14 -> 0 | F14: 0
A15: ='SC6'!A19 -> Other transfers and grants [insert description] | F15: 0
A16: ='SC6'!A20 -> Provincial Government: | C16: =SUM(C17:C21) -> 0 | D16: =SUM(D17:D21) -> 0 | E16: =SUM(E17:E21) -> 0 | F16: =SUM(F17:F21) -> 0
A17: ='SC6'!A21 -> 0 | F17: =C17-E17 -> 0
A18: ='SC6'!A23 -> 0 | F18: =C18-E18 -> 0
A19: ='SC6'!A24 -> 0 | F19: =C19-E19 -> 0
A20: ='SC6'!A25 -> 0 | F20: =C20-E20 -> 0
A21: ='SC6'!A26 -> Other transfers and grants [insert description] | F21: =C21-E21 -> 0
A22: ='SC6'!A27 -> District Municipality: | C22: =SUM(C23:C24) -> 0 | D22: =SUM(D23:D24) -> 0 | E22: =SUM(E23:E24) -> 0 | F22: =SUM(F23:F24) -> 0
F23: =C23-E23 -> 0
A24: ='SC6'!A28 -> [insert description] | F24: =C24-E24 -> 0
A25: ='SC6'!A30 -> Other grant providers: | C25: =SUM(C26:C27) -> 0 | D25: =SUM(D26:D27) -> 0 | E25: =SUM(E26:E27) -> 0 | F25: =SUM(F26:F27) -> 0
F26: =C26-E26 -> 0
A27: ='SC6'!A31 -> [insert description] | F27: =C27-E27 -> 0
A28: Total operating expenditure of Approved Roll-overs | C28: =C8+C16+C22+C25 -> 0 | D28: =D8+D16+D22+D25 -> 0 | E28: =E8+E16+E22+E25 -> 0 | F28: =F8+F16+F22+F25 -> 0
A30: Capital expenditure of Approved Roll-overs
A31: ='SC6'!A41 -> National Government: | C31: =SUM(C32:C37) -> 0 | D31: =SUM(D32:D37) -> 0 | E31: =SUM(E32:E37) -> 0 | F31: =SUM(F32:F37) -> 0
A32: ='SC6'!A42 -> Municipal Infrastructure Grant (MIG) | F32: =C32-E32 -> 0
A33: ='SC6'!A47 -> Integrated National Electrification Programme | F33: 0
A34: ='SC6'!A48 -> Energy Efficiency and Demand Management | F34: 0
A35: ='SC6'!A49 -> 0 | F35: 0
A36: ='SC6'!A50 -> 0 | F36: 0
A37: ='SC6'!A51 -> Other capital transfers [insert description] | F37: 0
A38: ='SC6'!A52 -> Provincial Government: | C38: =SUM(C39:C40) -> 0 | D38: =SUM(D39:D40) -> 0 | E38: =SUM(E39:E40) -> 0 | F38: =SUM(F39:F40) -> 0
F39: =C39-E39 -> 0
A40: ='SC6'!A58 -> 0 | F40: =C40-E40 -> 0
A41: ='SC6'!A59 -> District Municipality: | C41: =SUM(C42:C43) -> 0 | D41: =SUM(D42:D43) -> 0 | E41: =SUM(E42:E43) -> 0 | F41: =SUM(F42:F43) -> 0
F42: =C42-E42 -> 0
A43: ='SC6'!A61 -> 0 | F43: =C43-E43 -> 0
A44: ='SC6'!A62 -> Other grant providers: | C44: =SUM(C45:C46) -> 0 | D44: =SUM(D45:D46) -> 0 | E44: =SUM(E45:E46) -> 0 | F44: =SUM(F45:F46) -> 0
F45: =C45-E45 -> 0
A46: ='SC6'!A68 -> 0 | F46: =C46-E46 -> 0
A47: Total capital expenditure of Approved Roll-overs | C47: =C31+C38+C41+C44 -> 0 | D47: =D31+D38+D41+D44 -> 0 | E47: =E31+E38+E41+E44 -> 0 | F47: =F31+F38+F41+F44 -> 0
A49: TOTAL EXPENDITURE OF APPROVED ROLL-OVERS | C49: =C28+C47 -> 0 | D49: =D28+D47 -> 0 | E49: =E28+E47 -> 0 | F49: =F28+F47 -> 0
A50: =head27a -> References

Sheet SC8
A1: =muni& " - "&S71N& " - "&Head57 -> FS184 Matjhabeng - Supporting Table SC8 Monthly Budget Statement - councillor and staff benefits - M03 September
A2: Summary of Employee and Councillor remuneration | B2: =head27 -> Ref | C2: =Head1 -> 2014/15 | D2: =Head2 -> Budget Year 2015/16
C3: =Head5 -> Audited Outcome | D3: =Head6 -> Original Budget | E3: =Head7 -> Adjusted Budget | F3: =Head38 -> Monthly actual | G3: =Head39 -> YearTD actual | H3: =Head40 -> YearTD budget | I3: =Head41 -> YTD variance | J3: =Head41 -> YTD variance | K3: =Head8 -> Full Year Forecast
A4: R thousands | J4: %
B5: 1 | C5: A | D5: B | E5: C | K5: D
A6: Councillors (Political Office Bearers plus Other)
A7: Basic Salaries and Wages | D7: =[7]SA22!$I$6 -> 12438087.84 | F7: 1398666 | G7: =F7+1379000+1379000 -> 4156666 | H7: =D7/12*3 -> 3109521.96 | I7: =G7-H7 -> 1047144.04 | J7: =IF(I7=0,"",I7/H7) -> 0.3367540265 | K7: =G7*12/3 -> 16626664
A8: Pension and UIF Contributions | D8: =[7]SA22!$I$7 -> 3266312.166 | F8: 204458 | G8: =F8+188000+204000 -> 596458 | H8: 816578.0414 | I8: -220120.0414 | J8: -0.2695639979 | K8: 2385832
A9: Medical Aid Contributions | D9: =[7]SA22!$I$8 -> 933929.5723 | F9: 50400 | G9: =F9+48000+50000 -> 148400 | H9: 233482.3931 | I9: -85082.39308 | J9: -0.3644060349 | K9: 593600
A10: Motor Vehicle Allowance | D10: =[7]SA22!$I$9 -> 2108967 | F10: 528477 | G10: =F10+528000+528000 -> 1584477 | H10: 527241.75 | I10: =G10-H10 -> 1057235.25 | J10: =IF(I10=0,"",I10/H10) -> 2.005219143 | K10: 6337908
A11: Cellphone Allowance | D11: =[7]SA22!$I$10 -> 2773.44 | F11: 130432 | G11: =F11+130000+130000 -> 390432 | H11: 693.36 | I11: =G11-H11 -> 389738.64 | J11: =IF(I11=0,"",I11/H11) -> 562.1014192 | K11: 1561728
A12: Housing Allowances | D12: =[7]SA22!$I$11 -> 0 | G12: =F12 -> 0 | H12: 0 | I12: =G12-H12 -> 0 | J12: =IF(I12=0,"",I12/H12) ->  | K12: 0
A13: Other benefits and allowances | D13: =[7]SA22!$I$12 -> 8013256.372 | G13: 0 | H13: 2003314.093 | I13: -2003314.093 | J13: -1 | K13: 0
A14: Sub Total - Councillors | C14: =SUM(C7:C13) -> 0 | D14: 26763326.39 | E14: 0 | F14: 2312433 | G14: 6876433 | H14: 6690831.597 | I14: 185601.403 | J14: 0.02773966141 | K14: 27505732
A15: % increase | B15: 4 | D15: =IF(D14=0,"",(D14/C14)-1) ->  | E15: =IF(E14=0,"",(E14/C14)-1) ->  | K15: =IF(K14=0,"",(K14/C14)-1) -> 
A17: Senior Managers of the Municipality | B17: 3
A18: Basic Salaries and Wages | D18: =[7]SA22!$I$17 -> 7460459.996 | F18: 648000 | G18: =F18+648000+648000 -> 1944000 | H18: =D18/12*3 -> 1865114.999 | I18: =G18-H18 -> 78885.0009 | J18: =IF(I18=0,"",I18/H18) -> 0.04229497963 | K18: =G18*12/3 -> 7776000
A19: Pension and UIF Contributions | D19: =[7]SA22!$I$18 -> 505284.9444 | F19: 41000 | G19: =F19+41000+41000 -> 123000 | H19: =D19/12*3 -> 126321.2361 | I19: -3321.2361 | J19: -0.02629198544 | K19: =G19*12/3 -> 492000
A20: Medical Aid Contributions | I20: 0
A21: Overtime | I21: 0
A22: Performance Bonus | I22: =G22-H22 -> 0 | J22: =IF(I22=0,"",I22/H22) -> 
A23: Motor Vehicle Allowance | D23: =[7]SA22!$I$22 -> 388245.7764 | F23: 73000 | G23: =F23+73000+73000 -> 219000 | H23: =D23/12*3 -> 97061.4441 | I23: =G23-H23 -> 121938.5559 | J23: =IF(I23=0,"",I23/H23) -> 1.256302717 | K23: =G23*12/3 -> 876000
A24: Cellphone Allowance | I24: =G24-H24 -> 0 | J24: =IF(I24=0,"",I24/H24) -> 
A25: Housing Allowances | I25: =G25-H25 -> 0 | J25: =IF(I25=0,"",I25/H25) -> 
A26: Other benefits and allowances | I26: 0
A27: Payments in lieu of leave | I27: 0
A28: Long service awards | I28: 0
A29: Post-retirement benefit obligations | B29: 2 | I29: 0
A30: Sub Total - Senior Managers of Municipality | C30: =SUM(C18:C29) -> 0 | D30: 8353990.717 | E30: 0 | F30: =SUM(F18:F29) -> 762000 | G30: =SUM(G18:G29) -> 2286000 | H30: =SUM(H18:H29) -> 2088497.679 | I30: 197502.3207 | J30: =IF(I30=0,"",I30/H30) -> 0.09456669388 | K30: 9144000
A31: % increase | B31: 4 | D31: =IF(D30=0,"",(D30/C30)-1) ->  | E31: =IF(E30=0,"",(E30/C30)-1) ->  | K31: =IF(K30=0,"",(K30/C30)-1) -> 
A33: Other Municipal Staff
A34: Basic Salaries and Wages | D34: =[7]SA22!$I$33 -> 318531982 | F34: =33769315-F7-F18 -> 31722649 | G34: =F34+26093000+26006000 -> 83821649 | H34: =D34/12*3 -> 79632995.5 | I34: =G34-H34 -> 4188653.499 | J34: =IF(I34=0,"",I34/H34) -> 0.05259947177 | K34: =G34*12/3 -> 335286596
A35: Pension and UIF Contributions | D35: =[7]SA22!$I$34 -> 47935067.06 | F35: =4501575+293843-F8-F19 -> 4549960 | G35: =F35+3840000+3831000 -> 12220960 | H35: 11983766.76 | I35: 237193.2361 | J35: 0.01979287821 | K35: 48883840
A36: Medical Aid Contributions | D36: =[7]SA22!$I$35 -> 32626138 | F36: =3000303-F9 -> 2949903 | G36: =F36+2924000+2919000 -> 8792903 | H36: 8156534.5 | I36: 636368.5 | J36: 0.07801947016 | K36: 35171612
A37: Overtime | D37: =[7]SA22!$I$36 -> 49353532 | F37: 4955728 | G37: =F37+3431000+4467000 -> 12853728 | H37: 12338383 | I37: 515345 | J37: 0.04176762871 | K37: 51414912
A38: Performance Bonus | D38: =[7]SA22!$F$37 -> 0 | F38: 0 | G38: =F38 -> 0 | H38: 0 | I38: 0 | K38: 0
A39: Motor Vehicle Allowance | D39: =[7]SA22!$I$38 -> 30950005.22 | F39: =3305753-F10-F23 -> 2704276 | G39: =F39+2358000+2365000 -> 7427276 | H39: 7737501.306 | I39: =G39-H39 -> -310225.3059 | J39: =IF(I39=0,"",I39/H39) -> -0.04009373228 | K39: 29709104
A40: Cellphone Allowance | D40: =[7]SA22!$I$39 -> 1584072 | F40: =149649-F11 -> 19217 | G40: =F40+19000+19000 -> 57217 | H40: 396018 | I40: =G40-H40 -> -338801 | J40: =IF(I40=0,"",I40/H40) -> -0.8555191936 | K40: 228868
A41: Housing Allowances | D41: =[7]SA22!$I$40 -> 2651095 | F41: =314241-F12 -> 314241 | G41: =F41+293000+247000 -> 854241 | H41: 662773.75 | I41: =G41-H41 -> 191467.25 | J41: =IF(I41=0,"",I41/H41) -> 0.2888877992 | K41: 3416964
A42: Other benefits and allowances | D42: =[7]SA22!$I$41 -> 56006291 | F42: =1582364+62656+17124+112383+471805 -> 2246332 | G42: =F42+1860000+1980000 -> 6086332 | H42: 14001572.75 | I42: -7915240.75 | J42: -0.5653108327 | K42: 24345328
A43: Payments in lieu of leave | D43: =[7]SA22!$I$42 -> 21002009 | F43: =1396269+796454 -> 2192723 | G43: =F43+1429000+2796000 -> 6417723 | H43: 5250502.25 | I43: 1167220.75 | J43: 0.2223064946 | K43: 25670892
A44: Long service awards | D44: =[7]SA22!$I$43 -> 268494 | F44: 268285 | G44: =F44+119000+179000 -> 566285 | H44: 67123.5 | I44: 499161.5 | J44: 7.43646413 | K44: 2265140
A45: Post-retirement benefit obligations | B45: 2 | D45: =[7]SA22!$I$44 -> 0 | F45: 0 | G45: 0 | H45: 0 | I45: 0 | K45: 0
A46: Sub Total - Other Municipal Staff | C46: =SUM(C34:C45) -> 0 | D46: 560908685.3 | E46: 0 | F46: =SUM(F34:F45) -> 51923314 | G46: =SUM(G34:G45) -> 139098314 | H46: =SUM(H34:H45) -> 140227171.3 | I46: -1128857.321 | J46: =IF(I46=0,"",I46/H46) -> -0.008050203895 | K46: 556393256
A47: % increase | B47: 4 | D47: =IF(D46=0,"",(D46/C46)-1) ->  | E47: =IF(E46=0,"",(E46/C46)-1) ->  | K47: =IF(K46=0,"",(K46/C46)-1) -> 
A49: Total Parent Municipality | C49: =C14+C30+C46 -> 0 | D49: =D14+D30+D46 -> 596026002.4 | E49: 0 | F49: 54997747 | G49: 148260747 | H49: 149006500.6 | I49: =G49-H49 -> -745753.597 | J49: =IF(I49=0,"",I49/H49) -> -0.005004839346 | K49: 593042988
D50: =IF(D49=0,"",(D49/C49)-1) ->  | E50: =IF(E49=0,"",(E49/C49)-1) ->  | K50: =IF(K49=0,"",(K49/C49)-1) -> 
A51: Unpaid salary, allowances & benefits in arrears:
A53: Board Members of Entities
A54: Basic Salaries and Wages | I54: =G54-H54 -> 0 | J54: =IF(I54=0,"",I54/H54) -> 
A55: Pension and UIF Contributions | I55: 0
A56: Medical Aid Contributions | I56: 0
A57: Overtime | I57: =G57-H57 -> 0 | J57: =IF(I57=0,"",I57/H57) -> 
A58: Performance Bonus | I58: =G58-H58 -> 0 | J58: =IF(I58=0,"",I58/H58) -> 
A59: Motor Vehicle Allowance | I59: =G59-H59 -> 0 | J59: =IF(I59=0,"",I59/H59) -> 
A60: Cellphone Allowance | I60: =G60-H60 -> 0 | J60: =IF(I60=0,"",I60/H60) -> 
A61: Housing Allowances | I61: =G61-H61 -> 0 | J61: =IF(I61=0,"",I61/H61) -> 
A62: Other benefits and allowances | I62: 0
A63: Board Fees | I63: =G63-H63 -> 0 | J63: =IF(I63=0,"",I63/H63) -> 
A64: Payments in lieu of leave | I64: 0
A65: Long service awards | I65: 0
A66: Post-retirement benefit obligations | I66: 0
A67: Sub Total - Board Members of Entities | B67: 2 | C67: =SUM(C54:C66) -> 0 | D67: 0 | E67: 0 | F67: =SUM(F54:F66) -> 0 | G67: =SUM(G54:G66) -> 0 | H67: =SUM(H54:H66) -> 0 | I67: 0 | J67: =IF(I67=0,"",I67/H67) ->  | K67: 0
A68: % increase | B68: 4 | D68: =IF(D67=0,"",(D67/C67)-1) ->  | E68: =IF(E67=0,"",(E67/C67)-1) ->  | K68: =IF(K67=0,"",(K67/C67)-1) -> 
A70: Senior Managers of Entities
A71: Basic Salaries and Wages | I71: =G71-H71 -> 0 | J71: =IF(I71=0,"",I71/H71) -> 
A72: Pension and UIF Contributions | I72: 0
A73: Medical Aid Contributions | I73: 0
A74: Overtime | I74: 0
A75: Performance Bonus | I75: =G75-H75 -> 0 | J75: =IF(I75=0,"",I75/H75) -> 
A76: Motor Vehicle Allowance | I76: =G76-H76 -> 0 | J76: =IF(I76=0,"",I76/H76) -> 
A77: Cellphone Allowance | I77: =G77-H77 -> 0 | J77: =IF(I77=0,"",I77/H77) -> 
A78: Housing Allowances | I78: =G78-H78 -> 0 | J78: =IF(I78=0,"",I78/H78) -> 
A79: Other benefits and allowances | I79: 0
A80: Payments in lieu of leave | I80: 0
A81: Long service awards | I81: 0
A82: Post-retirement benefit obligations | B82: 2 | I82: 0
A83: Sub Total - Senior Managers of Entities | C83: =SUM(C71:C82) -> 0 | D83: 0 | E83: 0 | F83: =SUM(F71:F82) -> 0 | G83: =SUM(G71:G82) -> 0 | H83: =SUM(H71:H82) -> 0 | I83: 0 | J83: =IF(I83=0,"",I83/H83) ->  | K83: 0
A84: % increase | B84: 4 | D84: =IF(D83=0,"",(D83/C83)-1) ->  | E84: =IF(E83=0,"",(E83/C83)-1) ->  | K84: =IF(K83=0,"",(K83/C83)-1) -> 
A86: Other Staff of Entities
A87: Basic Salaries and Wages | I87: =G87-H87 -> 0 | J87: =IF(I87=0,"",I87/H87) -> 
A88: Pension and UIF Contributions | I88: 0
A89: Medical Aid Contributions | I89: =G89-H89 -> 0 | J89: =IF(I89=0,"",I89/H89) -> 
A90: Overtime | I90: =G90-H90 -> 0 | J90: =IF(I90=0,"",I90/H90) -> 
A91: Performance Bonus | I91: =G91-H91 -> 0 | J91: =IF(I91=0,"",I91/H91) -> 
A92: Motor Vehicle Allowance | I92: =G92-H92 -> 0 | J92: =IF(I92=0,"",I92/H92) -> 
A93: Cellphone Allowance | I93: 0
A94: Housing Allowances | I94: 0
A95: Other benefits and allowances | I95: 0
A96: Payments in lieu of leave | I96: 0
A97: Long service awards | I97: 0
A98: Post-retirement benefit obligations | I98: 0
A99: Sub Total - Other Staff of Entities | C99: =SUM(C87:C98) -> 0 | D99: 0 | E99: 0 | F99: 0 | G99: 0 | H99: 0 | I99: 0 | J99: =IF(I99=0,"",I99/H99) ->  | K99: =SUM(K87:K98) -> 0
A100: % increase | B100: 4 | D100: =IF(D99=0,"",(D99/C99)-1) ->  | E100: =IF(E99=0,"",(E99/C99)-1) ->  | K100: =IF(K99=0,"",(K99/C99)-1) -> 
A102: Total Municipal Entities | C102: =C67+C83+C99 -> 0 | D102: 0 | E102: 0 | F102: 0 | G102: 0 | H102: 0 | I102: =G102-H102 -> 0 | J102: =IF(I102=0,"",I102/H102) ->  | K102: =K67+K83+K99 -> 0
A104: TOTAL SALARY, ALLOWANCES & BENEFITS | C104: =C49+C102 -> 0 | D104: 596026002.4 | E104: 0 | F104: 54997747 | G104: 148260747 | H104: 149006500.6 | I104: =G104-H104 -> -745753.597 | J104: =IF(I104=0,"",I104/H104) -> -0.005004839346 | K104: =K49+K102 -> 593042988
A105: % increase | B105: 4 | D105: =IF(D104=0,"",(D104/C104)-1) ->  | E105: =IF(E104=0,"",(E104/C104)-1) ->  | K105: =IF(K104=0,"",(K104/C104)-1) -> 
A106: TOTAL MANAGERS AND STAFF | C106: =C30+C46+C83+C99 -> 0 | D106: 569262676 | E106: 0 | F106: 52685314 | G106: 141384314 | H106: 142315669 | I106: -931355 | J106: =IF(I106=0,"",I106/H106) -> -0.006544289933 | K106: =K30+K46+K83+K99 -> 565537256
A107: =head27a -> References
A108: 1. Include 'Loans and advances' where applicable if any reportable amounts until phased compliance with s164 of MFMA achieved
A109: 2. If benefits in kind are provided (e.g. provision of living quarters) the full market value must be shown as the cost to the municipality
A110: 3. s57 of the Systems Act
A111: 4. B/A, C/A, D/A
A112: Column Definitions:
A113: A. Audited actual 2005/06 (audited financial statements). If audited amounts unavailable, unaudited amounts must be provided with a note stating these are unaudited
A114: B. The original budget approved by council for the 2006/07 budget year.
A115: C. The budget for 2006/07 budget year as adjusted by council resolution in terms of section 28 of the MFMA.
A116: D. An estimate of final actual amounts (pre audit - 2006/07 budget year) at the time of preparing the budget for the 2007/08 budget year. This may differ from C.

Sheet SC9
A1: =muni& " - "&S71O& " - "&Head57 -> FS184 Matjhabeng - Supporting Table SC9 Monthly Budget Statement - actuals and revised targets for cash receipts - M03 September
A2: =desc -> Description | B2: =head27 -> Ref | C2: =Head2 -> Budget Year 2015/16 | O2: ='Template names'!B5 -> 2015/16 Medium Term Revenue & Expenditure Framework
C3: July | D3: August | E3: Sept | F3: October | G3: Nov | H3: Dec | I3: January | J3: Feb | K3: March | L3: April | M3: May | N3: June | O3: =Head9 -> Budget Year 2015/16 | P3: =Head10 -> Budget Year +1 2016/17 | Q3: =Head11 -> Budget Year +2 2017/18
A4: R thousands | B4: 1 | C4: Outcome | D4: Outcome | E4: Outcome | F4: Outcome | G4: Outcome | H4: Outcome | I4: Budget | J4: Budget | K4: Budget | L4: Budget | M4: Budget | N4: Budget
A5: Cash Receipts By Source
A6: Property rates | C6: 8335727 | D6: 10691086 | E6: 26140084 | I6: 15765000 | J6: 15765000 | K6: 15765000 | L6: 15765000 | M6: 15765000 | N6: =O6-SUM(C6:M6) -> 65186993 | O6: ='C4-FinPerf RE'!D6 -> 189178890 | P6: =[8]Sheet1!$R$7 -> 235161444 | Q6: =[8]Sheet1!$S$7 -> 248469510
A7: Property rates - penalties & collection charges | N7: 0 | O7: 0 | P7: =[8]Sheet1!$R$8 -> 0 | Q7: =[8]Sheet1!$S$8 -> 0
A8: Service charges - electricity revenue | C8: 28366348 | D8: 35756008 | E8: 37439511 | I8: 62168712.31 | J8: 62168712.31 | K8: 62168712.31 | L8: 62168712.31 | M8: 62168712.31 | N8: 184414209.5 | O8: 596819638 | P8: =[8]Sheet1!$R$9 -> 835547493 | Q8: =[8]Sheet1!$S$9 -> 882338153
A9: Service charges - water revenue | C9: 8372519 | D9: 10133567 | E9: 10192524 | I9: 16990772.07 | J9: 16990772.07 | K9: 16990772.07 | L9: 16990772.07 | M9: 16990772.07 | N9: 49458941.67 | O9: 163111412 | P9: =[8]Sheet1!$R$10 -> 212044835 | Q9: =[8]Sheet1!$S$10 -> 223919346
A10: Service charges - sanitation revenue | C10: 4786804 | D10: 4851894 | E10: 5193500 | I10: 10073531.72 | J10: 10073531.72 | K10: 10073531.72 | L10: 10073531.72 | M10: 10073531.72 | N10: 31506048.42 | O10: 96705905 | P10: =[8]Sheet1!$R$11 -> 128014441 | Q10: =[8]Sheet1!$S$11 -> 135183250
A11: Service charges - refuse | C11: 2386708 | D11: 2819630 | E11: 2810545 | I11: 5668942.557 | J11: 5668942.557 | K11: 5668942.557 | L11: 5668942.557 | M11: 5668942.557 | N11: 18060253.21 | O11: 54421849 | P11: =[8]Sheet1!$R$12 -> 72040922 | Q11: =[8]Sheet1!$S$12 -> 76075214
A12: Service charges - other | I12: 0 | J12: 0 | K12: 0 | L12: 0 | M12: 0 | N12: 0 | O12: 0 | P12: =[8]Sheet1!$R$13 -> 0 | Q12: =[8]Sheet1!$S$13 -> 0
A13: Rental of facilities and equipment | C13: 390153 | D13: 482235 | E13: 469422 | I13: 896590.5 | J13: 896590.5 | K13: 896590.5 | L13: 896590.5 | M13: 896590.5 | N13: 2782506.5 | O13: 8607269 | P13: =[8]Sheet1!$R$14 -> 9115098 | Q13: =[8]Sheet1!$S$14 -> 9625543
A14: Interest earned - external investments | C14: 0 | D14: 0 | E14: 307682 | I14: 52916.66667 | J14: 52916.66667 | K14: 52916.66667 | L14: 52916.66667 | M14: 52916.66667 | N14: 62734.66667 | O14: ='C4-FinPerf RE'!D14 -> 635000 | P14: =[8]Sheet1!$R$15 -> 672465 | Q14: =[8]Sheet1!$S$15 -> 710123
A15: Interest earned - outstanding debtors | C15: 474914 | D15: 562992 | E15: 730779 | I15: 9414250 | J15: 9414250 | K15: 9414250 | L15: 9414250 | M15: 9414250 | N15: 64131065 | O15: ='C4-FinPerf RE'!D15 -> 112971000 | P15: =[8]Sheet1!$R$16 -> 117040481 | Q15: =[8]Sheet1!$S$15 -> 710123
A16: Dividends received | D16: 0 | I16: 1416.666667 | J16: 1416.666667 | K16: 1416.666667 | L16: 1416.666667 | M16: 1416.666667 | N16: 6516.666667 | O16: 13600 | P16: =[8]Sheet1!$R$17 -> 14402 | Q16: =[8]Sheet1!$S$17 -> 15209
A17: Fines | C17: 178000 | D17: 260042 | E17: 202633 | I17: 341933.5 | J17: 341933.5 | K17: 341933.5 | L17: 341933.5 | M17: 341933.5 | N17: 1752859.5 | O17: ='C4-FinPerf RE'!D17 -> 4103202 | P17: =[8]Sheet1!$R$18 -> 4345291 | Q17: =[8]Sheet1!$S$18 -> 4588627
A18: Licences and permits | C18: 5000 | D18: 9675 | E18: 4982 | I18: 3295.083333 | J18: 3295.083333 | K18: 3295.083333 | L18: 3295.083333 | M18: 3295.083333 | N18: 3408.583333 | O18: ='C4-FinPerf RE'!D18 -> 39541 | P18: =[8]Sheet1!$R$19 -> 41874 | Q18: =[8]Sheet1!$S$19 -> 44219
A19: Agency services | I19: 877918.6667 | J19: 877918.6667 | K19: 877918.6667 | L19: 877918.6667 | M19: 877918.6667 | N19: 6145430.667 | O19: ='C4-FinPerf RE'!D19 -> 10535024 | P19: =[8]Sheet1!$R$20 -> 11156590 | Q19: =[8]Sheet1!$S$20 -> 11781359
A20: Transfer receipts - operating | C20: 170484000 | D20: 429000 | I20: 33882166.67 | J20: 33882166.67 | K20: 33882166.67 | L20: 33882166.67 | M20: 33882166.67 | N20: 66262166.67 | O20: ='C4-FinPerf RE'!D20 -> 406586000 | P20: =[8]Sheet1!$R$21 -> 380493000 | Q20: =[8]Sheet1!$S$21 -> 363128000
A21: Other revenue | C21: 5718858 | D21: 7558420 | E21: 17201698 | I21: 6589385.75 | J21: 6589385.75 | K21: 6589385.75 | L21: 6589385.75 | M21: 6589385.75 | N21: 15646724.25 | O21: ='C4-FinPerf RE'!D21 -> 79072629 | P21: =[8]Sheet1!$R$22 -> 63413912 | Q21: =[8]Sheet1!$S$22 -> 66965091
A22: Cash Receipts by Source | C22: =SUM(C6:C21) -> 229499031 | D22: 73554549 | E22: 100693360 | F22: 0 | G22: 0 | H22: 0 | I22: 162726832.1 | J22: 162726832.1 | K22: 162726832.1 | L22: 162726832.1 | M22: 162726832.1 | N22: 505419858.3 | O22: 1722800959 | P22: 2069102248 | Q22: 2023553767
N23: =O23-SUM(C23:M23) -> 0
A24: Other Cash Flows by Source | N24: 0
A25: Transfer receipts - capital | C25: 40735000 | D25: 0 | E25: 600000 | I25: 9704000 | J25: 9704000 | K25: 9704000 | L25: 9704000 | M25: 9704000 | N25: 26596000 | O25: 116451000 | P25: =[8]Sheet1!$R$25 -> 121183000 | Q25: =[8]Sheet1!$S$25 -> 129476000
A26: Contributions & Contributed assets | N26: 0
A27: Proceeds on disposal of PPE | N27: 0
A28: Short term loans | N28: 0
A29: Borrowing long term/refinancing | N29: 0
A30: Increase in consumer deposits | N30: 0
A31: Receipt of non-current debtors | N31: 0
A32: Receipt of non-current receivables | N32: 0
A33: Change in non-current investments | N33: 0
A34: Total Cash Receipts by Source | C34: =SUM(C22:C33) -> 270234031 | D34: 73554549 | E34: 101293360 | F34: 0 | G34: 0 | H34: 0 | I34: 172430832.1 | J34: 172430832.1 | K34: 172430832.1 | L34: 172430832.1 | M34: 172430832.1 | N34: 532015858.3 | O34: 1839251959 | P34: 2190285248 | Q34: 2153029767
N35: =O35-SUM(C35:M35) -> 0
A36: Cash Payments by Type | N36: 0
A37: Employee related costs | C37: 43127000 | D37: 45571000 | E37: 52685599 | I37: 47439000 | J37: 47439000 | K37: 47439000 | L37: 47439000 | M37: 47439000 | N37: 190684077 | O37: ='C4-FinPerf RE'!D26 -> 569262676 | P37: =[8]Sheet1!$R$36 -> 602849174 | Q37: =[8]Sheet1!$S$36 -> 636608728
A38: Remuneration of councillors | C38: 2274000 | D38: 2293000 | E38: 2312434 | I38: 2230000 | J38: 2230000 | K38: 2230000 | L38: 2230000 | M38: 2230000 | N38: 8733892 | O38: ='C4-FinPerf RE'!D27 -> 26763326 | P38: =[8]Sheet1!$R$37 -> 28342363 | Q38: =[8]Sheet1!$S$37 -> 29929535
A39: Interest paid | C39: 0 | D39: 0 | E39: 0 | I39: 1833000 | J39: 1833000 | K39: 1833000 | L39: 1833000 | M39: 1833000 | N39: 158835000 | O39: ='C4-FinPerf RE'!D30 -> 168000000 | P39: =[8]Sheet1!$R$38 -> 22000000 | Q39: =[8]Sheet1!$S$38 -> 22000000
A40: Bulk purchases - Electricity | C40: 453821 | D40: 43981471 | E40: 454103 | I40: 28925000 | J40: 28925000 | K40: 28925000 | L40: 28925000 | M40: 28925000 | N40: 207584108 | O40: 397098503 | P40: =[8]Sheet1!$R$40 -> 371559104 | Q40: =[8]Sheet1!$S$40 -> 401283832
A41: Bulk purchases - Water & Sewer | C41: 0 | D41: 8771930 | E41: 0 | I41: 22559000 | J41: 22559000 | K41: 22559000 | L41: 22559000 | M41: 22559000 | N41: 199144483 | O41: 320711413 | P41: =[8]Sheet1!$R$41 -> 292368326 | Q41: =[8]Sheet1!$S$41 -> 315757792
A42: Other materials | C42: 948912 | D42: 1214368 | E42: 2459448 | N42: -4622728 | O42: 0 | P42: =[8]Sheet1!$R$42 -> 0 | Q42: =[8]Sheet1!$S$42 -> 0
A43: Contracted services | C43: 4018544 | D43: 0 | E43: 0 | I43: 7424000 | J43: 7424000 | K43: 7424000 | L43: 7424000 | M43: 7424000 | N43: 47951058 | O43: 89089602 | P43: =[8]Sheet1!$R$43 -> 82818595 | Q43: =[8]Sheet1!$S$43 -> 86148436
A44: Grants and subsidies paid - other municipalities | C44: 0 | D44: 0 | E44: 0 | I44: 2738000 | J44: 2738000 | K44: 2738000 | L44: 2738000 | M44: 2738000 | N44: 21310000 | O44: 35000000 | P44: =[8]Sheet1!$R$44 -> 35000000 | Q44: =[8]Sheet1!$S$44 -> 35000000
A45: Grants and subsidies paid - other | C45: 0 | D45: 0 | E45: 0 | N45: 0 | O45: 0 | P45: =[8]Sheet1!$R$45 -> 0 | Q45: =[8]Sheet1!$S$45 -> 0
A46: General expenses | C46: 13467287 | D46: 25946686 | E46: 20862833 | I46: 23636000 | J46: 23636000 | K46: 23636000 | L46: 23636000 | M46: 23636000 | N46: -40536806 | O46: 137920000 | P46: =[8]Sheet1!$R$46 -> 146057280 | Q46: =[8]Sheet1!$S$46 -> 154236488
A47: Cash Payments by Type | B47: =SUM(B37:B46) -> 0 | C47: =SUM(C37:C46) -> 64289564 | D47: =SUM(D37:D46) -> 127778455 | E47: 78774417 | F47: 0 | G47: 0 | H47: 0 | I47: 136784000 | J47: 136784000 | K47: 136784000 | L47: 136784000 | M47: 136784000 | N47: 789083084 | O47: 1743845520 | P47: 1580994842 | Q47: 1680964811
N48: =O48-SUM(C48:M48) -> 0
A49: Other Cash Flows/Payments by Type
A50: Capital assets | C50: 5236000 | D50: 6193174 | E50: 8086255 | I50: 9704000 | J50: 9704000 | K50: 9704000 | L50: 9704000 | M50: 9704000 | N50: =O50-SUM(C50:M50) -> 48415571 | O50: 116451000 | P50: =[8]Sheet1!$R$49 -> 121183000 | Q50: =[8]Sheet1!$S$49 -> 129476000
A51: Repayment of borrowing | N51: =O51-SUM(C51:M51) -> 0 | O51: 0 | P51: =[8]Sheet1!$R$50 -> 0 | Q51: =[8]Sheet1!$S$50 -> 0
A52: Other Cash Flows/Payments | N52: =O52-SUM(C52:M52) -> 0 | O52: 0 | P52: =[8]Sheet1!$R$51 -> 229474078 | Q52: =[8]Sheet1!$S$51 -> 242324626
A53: Total Cash Payments by Type | B53: =SUM(B47:B52) -> 0 | C53: 69525564 | D53: 133971629 | E53: 86860672 | F53: 0 | G53: 0 | H53: 0 | I53: 146488000 | J53: 146488000 | K53: 146488000 | L53: 146488000 | M53: 146488000 | N53: 837498655 | O53: 1860296520 | P53: 1931651920 | Q53: 2052765437
N54: =O54-SUM(C54:M54) -> 0
A55: NET INCREASE/(DECREASE) IN CASH HELD | B55: =B34-B53 -> 0 | C55: 200708467 | D55: -60417080 | E55: 14432688 | F55: 0 | G55: 0 | H55: 0 | I55: 25942832.15 | J55: 25942832.15 | K55: 25942832.15 | L55: 25942832.15 | M55: 25942832.15 | N55: -305482796.7 | O55: -21044561 | P55: 258633328 | Q55: 100264330
A56: Cash/cash equivalents at the month/year beginning: | C56: 30000000 | D56: =C57 -> 230708467 | E56: =D57 -> 170291387 | F56: 184724075 | G56: 184724075 | H56: 184724075 | I56: 184724075 | J56: 210666907.1 | K56: 236609739.3 | L56: 262552571.4 | M56: 288495403.6 | N56: 314438235.7 | O56: =C56 -> 30000000 | P56: =O57 -> 8955439 | Q56: =P57 -> 267588767
A57: Cash/cash equivalents at the month/year end: | C57: =C55+C56 -> 230708467 | D57: =D55+D56 -> 170291387 | E57: =E55+E56 -> 184724075 | F57: 184724075 | G57: 184724075 | H57: 184724075 | I57: 210666907.1 | J57: 236609739.3 | K57: 262552571.4 | L57: 288495403.6 | M57: 314438235.7 | N57: 8955439 | O57: =O55+O56 -> 8955439 | P57: =P55+P56 -> 267588767 | Q57: =Q55+Q56 -> 367853097
A58: =head27a -> References
A59: 1. Replace 'budget' heading with adjusted budget, or 'outcome' only for month/s complete
A60: 2. Total of monthly amounts must always agree to the approved or adjusted budget
A61: 3. Amend 'cash-at-beginning' when prior year actual known (as part of the adjustments budget)
E66: =E47+E65 -> 78774417 | F66: 0 | G66: 0 | H66: 0 | I66: 136784000 | J66: 136784000 | K66: 136784000 | L66: 136784000 | N66: =N47+N65 -> 789083084 | O66: 1743845520 | P66: 1580994842
E67: =E55-E65 -> 14432688 | F67: 0 | G67: 0 | H67: 0 | I67: 25942832.15 | J67: 25942832.15 | K67: 25942832.15 | L67: 25942832.15 | M67: =M55-M65 -> 25942832.15 | N67: =N55-N65 -> -305482796.7 | O67: -21044561 | P67: 258633328

Sheet SC10
A1: =muni& " - "&S71P& " - "&Head57 -> FS184 Matjhabeng - NOT REQUIRED - municipality does not have entities or this is the parent municipality's budget - M03 September
A2: =desc -> Description | B2: =head27 -> Ref | C2: =Head1 -> 2014/15 | D2: =Head2 -> Budget Year 2015/16
C3: =Head5 -> Audited Outcome | D3: =Head6 -> Original Budget | E3: =Head7 -> Adjusted Budget | F3: =Head38 -> Monthly actual | G3: =Head39 -> YearTD actual | H3: =Head40 -> YearTD budget | I3: =Head41 -> YTD variance | J3: =Head41 -> YTD variance | K3: =Head8 -> Full Year Forecast
A4: R thousands | B4: 1 | J4: %
A5: ='C4-FinPerf RE'!A5 -> Revenue By Source
A6: ='C4-FinPerf RE'!A6 -> Property rates | I6: =G6-H6 -> 0 | J6: =IF(I6=0,"",I6/H6) -> 
A7: ='C4-FinPerf RE'!A7 -> Property rates - penalties & collection charges | I7: 0 | J7: =IF(I7=0,"",I7/H7) -> 
A8: ='C4-FinPerf RE'!A8 -> Service charges - electricity revenue | I8: 0
A9: ='C4-FinPerf RE'!A9 -> Service charges - water revenue | I9: 0
A10: ='C4-FinPerf RE'!A10 -> Service charges - sanitation revenue | I10: 0
A11: ='C4-FinPerf RE'!A11 -> Service charges - refuse revenue | I11: 0
A12: ='C4-FinPerf RE'!A12 -> Service charges - other | I12: 0
A13: ='C4-FinPerf RE'!A13 -> Rental of facilities and equipment | I13: 0
A14: ='C4-FinPerf RE'!A14 -> Interest earned - external investments | I14: 0
A15: ='C4-FinPerf RE'!A15 -> Interest earned - outstanding debtors | I15: 0
A16: ='C4-FinPerf RE'!A16 -> Dividends received | I16: 0
A17: ='C4-FinPerf RE'!A17 -> Fines | I17: 0
A18: ='C4-FinPerf RE'!A18 -> Licences and permits | I18: 0
A19: ='C4-FinPerf RE'!A19 -> Agency services | I19: 0
A20: ='C4-FinPerf RE'!A20 -> Transfers recognised - operational | I20: 0
A21: ='C4-FinPerf RE'!A21 -> Other revenue | I21: 0
A22: ='C4-FinPerf RE'!A22 -> Gains on disposal of PPE | I22: 0
A23: Total Revenue (excluding capital transfers and contributions) | C23: =SUM(C6:C22) -> 0 | D23: 0 | E23: 0 | F23: 0 | G23: 0 | H23: 0 | I23: =G23-H23 -> 0 | K23: =SUM(K6:K22) -> 0
A25: Expenditure By Type
A26: ='C4-FinPerf RE'!A26 -> Employee related costs | I26: =G26-H26 -> 0 | J26: =IF(I26=0,"",I26/H26) -> 
A27: ='C4-FinPerf RE'!A27 -> Remuneration of councillors | I27: 0
A28: ='C4-FinPerf RE'!A28 -> Debt impairment | I28: 0
A29: ='C4-FinPerf RE'!A29 -> Depreciation & asset impairment | I29: 0
A30: ='C4-FinPerf RE'!A30 -> Finance charges | I30: 0
A31: ='C4-FinPerf RE'!A31 -> Bulk purchases | I31: 0
A32: ='C4-FinPerf RE'!A32 -> Other materials | I32: 0
A33: ='C4-FinPerf RE'!A33 -> Contracted services | I33: 0
A34: ='C4-FinPerf RE'!A34 -> Transfers and grants | I34: 0
A35: ='C4-FinPerf RE'!A35 -> Other expenditure | I35: 0
A36: ='C4-FinPerf RE'!A36 -> Loss on disposal of PPE | I36: 0
A37: Total Expenditure | C37: =SUM(C26:C36) -> 0 | D37: 0 | E37: 0 | F37: 0 | G37: 0 | H37: 0 | I37: 0 | K37: =SUM(K26:K36) -> 0
I38: 0
A39: ='C4-FinPerf RE'!A39 -> Surplus/(Deficit) | C39: =C23-C37 -> 0 | D39: 0 | E39: 0 | F39: 0 | G39: 0 | H39: 0 | I39: 0 | K39: =K23-K37 -> 0
A40: ='C4-FinPerf RE'!A40 -> Transfers recognised - capital | I40: 0
A41: ='C4-FinPerf RE'!A41 -> Contributions recognised - capital | I41: 0
A42: ='C4-FinPerf RE'!A42 -> Contributed assets | I42: 0
A43: ='C4-FinPerf RE'!A43 -> Surplus/(Deficit) after capital transfers & contributions | C43: =C39+SUM(C40:C42) -> 0 | D43: =D39+SUM(D40:D42) -> 0 | E43: 0 | F43: 0 | G43: 0 | H43: 0 | I43: 0 | K43: 0
A44: ='C4-FinPerf RE'!A44 -> Taxation | I44: 0
A45: ='C4-FinPerf RE'!A45 -> Surplus/(Deficit) after taxation | C45: =C43-C44 -> 0 | D45: 0 | E45: 0 | F45: 0 | G45: 0 | H45: 0 | I45: 0 | K45: =K43-K44 -> 0
A46: =head27a -> References
A47: 1. Votes (consolidated) are revenue sources and expenditure type

Sheet SC11
A1: =muni& " - "&S71Q& " - "&Head57 -> FS184 Matjhabeng - NOT REQUIRED - municipality does not have entities or this is the parent municipality's budget - M03 September
A2: =desc -> Description | B2: =head27 -> Ref | C2: =Head1 -> 2014/15 | D2: =Head2 -> Budget Year 2015/16
C3: =Head5 -> Audited Outcome | D3: =Head6 -> Original Budget | E3: =Head7 -> Adjusted Budget | F3: =Head38 -> Monthly actual | G3: =Head39 -> YearTD actual | H3: =Head40 -> YearTD budget | I3: =Head41 -> YTD variance | J3: =Head41 -> YTD variance | K3: =Head8 -> Full Year Forecast
A4: R thousands | J4: %
A5: Revenue By Municipal Entity
A6: Insert name of municipal entity | I6: =G6-H6 -> 0 | J6: =IF(I6=0,"",I6/H6) -> 
I7: 0 | J7: =IF(I7=0,"",I7/H7) -> 
I8: 0
I9: 0
I10: 0
I11: 0
I12: 0
I13: 0
I14: 0
I15: 0
A16: Total Operating Revenue | B16: 1 | C16: =SUM(C6:C15) -> 0 | D16: 0 | E16: 0 | F16: 0 | G16: 0 | H16: 0 | I16: 0 | K16: =SUM(K6:K15) -> 0
A18: Expenditure By Municipal Entity
A19: =A6 -> Insert name of municipal entity | I19: 0 | J19: =IF(I19=0,"",I19/H19) -> 
A20: =IF(A7="","",A7) ->  | I20: 0
A21: =IF(A8="","",A8) ->  | I21: 0
I22: 0
I23: 0
I24: 0
I25: 0
I26: 0
I27: 0
I28: 0
A29: Total Operating Expenditure | B29: 2 | C29: =SUM(C19:C28) -> 0 | D29: 0 | E29: 0 | F29: 0 | G29: 0 | H29: 0 | I29: 0 | K29: =SUM(K19:K28) -> 0
A31: =Head42 -> Surplus/ (Deficit) for the yr/period | C31: =C16-C29 -> 0 | D31: =D16-D29 -> 0 | E31: 0 | F31: 0 | G31: 0 | H31: 0 | I31: =I16+I29 -> 0 | K31: 0
A32: Capital Expenditure By Municipal Entity
A33: =$A$6 -> Insert name of municipal entity | I33: 0
A34: =IF(A7="","",A7) ->  | I34: 0
A35: =IF(A8="","",A8) ->  | I35: 0
I36: 0
I37: 0
I38: 0
I39: 0
I40: 0
I41: 0
A43: Total Capital Expenditure | B43: 3 | C43: =SUM(C32:C42) -> 0 | D43: =SUM(D32:D42) -> 0 | E43: 0 | F43: 0 | G43: 0 | H43: =SUM(H32:H42) -> 0 | I43: =G43-H43 -> 0 | K43: 0
A44: =head27a -> References
A45: 1. Must reconcile to the sum of all municipal entity monthly revenue reports
A46: 2. Must reconcile to the sum of all municipal entity monthly expenditure reports
A47: 3. YTD = Year to date; FAV - favourable variance or unfavourable variance
A48: 4. Material variances to be explained
A49: 5. Insert additional 'Adjustment' Budget column for each Adjustment made by an entity

Sheet SC12
A1: =muni& " - "&S71R& " - "&Head57 -> FS184 Matjhabeng - Supporting Table SC12 Monthly Budget Statement - capital expenditure trend - M03 September
A2: Month | B2: =Head1 -> 2014/15 | C2: =Head2 -> Budget Year 2015/16
B3: =Head5 -> Audited Outcome | C3: =Head6 -> Original Budget | D3: =Head7 -> Adjusted Budget | E3: =Head38 -> Monthly actual | F3: =Head39 -> YearTD actual | G3: =Head40 -> YearTD budget | H3: =Head41 -> YTD variance | I3: =Head41 -> YTD variance | J3: % spend of Original Budget
A4: R thousands | I4: %
A5: Monthly expenditure performance trend
A6: July | C6: 12204250 | E6: 5235920 | F6: =IF(E6>0,E6,"") -> 5235920 | G6: =IF(D6>0,D6,C6) -> 12204250 | H6: =IF(F6="",0,G6-F6) -> 6968330 | I6: =IF(F6="","",IF(H6=0,"",H6/G6)) -> 0.5709756847 | J6: =IF(F6="","",F6/$C$18) -> 0.03575202627
A7: August | C7: 12204250 | E7: 6193174 | F7: =IF(E7>0,E7+F6,"") -> 11429094 | G7: =IF(D7>0,D7+D6,C7+C6) -> 24408500 | H7: 12979406 | I7: 0.5317576254 | J7: 0.07804039576
A8: September | C8: 12204250 | E8: 8086000 | F8: =IF(E8>0,E8+F7,"") -> 19515094 | G8: =IF(D8>0,D8+G7,C8+G7) -> 36612750 | H8: 17097656 | I8: 0.4669863914 | J8: 0.1332534022
A9: October | C9: 12204250 | G9: =IF(D9>0,D9+G8,C9+G8) -> 48817000 | H9: 0
A10: November | C10: 12204250 | G10: 61021250 | H10: 0
A11: December | C11: 12204250 | G11: 73225500 | H11: 0
A12: January | C12: 12204250 | G12: 85429750 | H12: 0
A13: February | C13: 12204250 | G13: 97634000 | H13: 0
A14: March | C14: 12204250 | G14: 109838250 | H14: 0
A15: April | C15: 12204250 | G15: 122042500 | H15: 0
A16: May | C16: 12204250 | G16: 134246750 | H16: 0
A17: June | C17: 12204250 | G17: 146451000 | H17: =IF(F17="",0,G17-F17) -> 0 | I17: =IF(F17="","",IF(H17=0,"",H17/G17)) ->  | J17: =IF(F17="","",F17/$C$18) -> 
A18: Total Capital expenditure | B18: =SUM(B6:B17) -> 0 | C18: =SUM(C6:C17) -> 146451000 | D18: =SUM(D6:D17) -> 0 | E18: =SUM(E6:E17) -> 19515094

Sheet SC13a
A1: =muni& " - "&S71Sa& " - "&Head57 -> FS184 Matjhabeng - Supporting Table SC13a Monthly Budget Statement - capital expenditure on new assets by asset class - M03 September
A2: =desc -> Description | B2: =head27 -> Ref | C2: =Head1 -> 2014/15 | D2: =Head2 -> Budget Year 2015/16
C3: =Head5 -> Audited Outcome | D3: =Head6 -> Original Budget | E3: =Head7 -> Adjusted Budget | F3: =Head38 -> Monthly actual | G3: =Head39 -> YearTD actual | H3: =Head40 -> YearTD budget | I3: =Head41 -> YTD variance | J3: =Head41 -> YTD variance | K3: =Head8 -> Full Year Forecast
A4: R thousands | B4: 1 | J4: %
A5: Capital expenditure on new assets by Asset Class/Sub-class
A7: Infrastructure | C7: =C8+C11+C15+C19+C22 -> 0 | D7: 56772174 | E7: 0 | F7: 7005309 | G7: 17898309 | H7: 14193043.5 | I7: =H7-G7 -> -3705265.5 | J7: =IF(I7=0,"",I7/H7) -> -0.261062083 | K7: =K8+K11+K15+K19+K22 -> 71593236
A8: Infrastructure - Road transport | C8: =SUM(C9:C10) -> 0 | D8: 17108115 | E8: 0 | F8: 288736 | G8: 5686736 | H8: 4277028.75 | I8: -1409707.25 | J8: -0.3295996666 | K8: =SUM(K9:K10) -> 22746944
A9: Roads, Pavements & Bridges | D9: =[9]C5C!D123 -> 4350898 | F9: ='C5C'!F123 -> 123959 | G9: ='C5C'!G123 -> 934959 | H9: =D9/12*3 -> 1087724.5 | I9: 152765.5 | J9: 0.14044503 | K9: =G9*12/3 -> 3739836
A10: Storm water | D10: =[9]C5C!D124 -> 12757217 | F10: ='C5C'!F124 -> 164777 | G10: ='C5C'!G124 -> 4751777 | H10: =D10/12*3 -> 3189304.25 | I10: -1562472.75 | J10: -0.489910221 | K10: =G10*12/3 -> 19007108
A11: Infrastructure - Electricity | C11: =SUM(C12:C14) -> 0 | D11: 2240000 | E11: 0 | F11: 0 | G11: 673000 | H11: 560000 | I11: -113000 | J11: -0.2017857143 | K11: =SUM(K12:K14) -> 2692000
A12: Generation | I12: 0
A13: Transmission & Reticulation | D13: =[9]C5C!D141 -> 1800000 | F13: ='C5C'!F141 -> 0 | G13: ='C5C'!G141 -> 0 | H13: =D13/12*3 -> 450000 | I13: 450000 | J13: 1 | K13: =G13*12/3 -> 0
A14: Street Lighting | D14: =[9]C5C!D143 -> 440000 | F14: ='C5C'!F143 -> 0 | G14: ='C5C'!G143 -> 673000 | H14: =D14/12*3 -> 110000 | I14: -563000 | J14: -5.118181818 | K14: =G14*12/3 -> 2692000
A15: Infrastructure - Water | C15: =SUM(C16:C18) -> 0 | D15: 40000 | E15: 0 | F15: 5993033 | G15: 6370033 | H15: 10000 | I15: -6360033 | J15: -636.0033 | K15: =SUM(K16:K18) -> 25480132
A16: Dams & Reservoirs | I16: 0
A17: Water purification | I17: 0
A18: Reticulation | D18: =[9]C5C!D130 -> 40000 | F18: ='C5C'!F130 -> 5993033 | G18: ='C5C'!G130 -> 6370033 | H18: =D18/12*3 -> 10000 | I18: -6360033 | J18: -636.0033 | K18: =G18*12/3 -> 25480132
A19: Infrastructure - Sanitation | C19: =SUM(C20:C21) -> 0 | D19: 30741038 | E19: 0 | F19: 572879 | G19: 1763879 | H19: 7685259.5 | I19: 5921380.5 | J19: 0.7704854338 | K19: =SUM(K20:K21) -> 7055516
A20: Reticulation | I20: 0
A21: Sewerage purification | D21: =[9]C5C!D132 -> 30741038 | F21: ='C5C'!F132 -> 572879 | G21: ='C5C'!G132 -> 1763879 | H21: =D21/12*3 -> 7685259.5 | I21: 5921380.5 | J21: 0.7704854338 | K21: =G21*12/3 -> 7055516
A22: Infrastructure - Other | C22: =SUM(C23:C26) -> 0 | D22: 6643021 | E22: 0 | F22: 150661 | G22: 3404661 | H22: 1660755.25 | I22: -1743905.75 | J22: -1.050067883 | K22: =SUM(K23:K26) -> 13618644
A23: Waste Management | I23: 0
A24: Transportation | I24: 0
A25: Gas | I25: 0
A26: Other | D26: =[9]C5C!D107-[9]SC13b!D23 -> 6643021 | F26: ='C5C'!F107-SC13b!F23 -> 150661 | G26: ='C5C'!G107-SC13b!G23 -> 3404661 | H26: =D26/12*3 -> 1660755.25 | I26: -1743905.75 | J26: -1.050067883 | K26: =G26*12/3 -> 13618644
A28: Community | C28: =SUM(C29:C42) -> 0 | D28: 18631084 | E28: 0 | F28: 1061795 | G28: 1597795 | H28: 4657771 | I28: 3059976 | J28: 0.6569614522 | K28: =SUM(K29:K42) -> 6391180
A29: Parks & gardens | I29: 0
A30: Sportsfields & stadia | D30: =[9]C5C!D86-D34-[9]SC13b!D40 -> 296 | F30: ='C5C'!F86-F34 -> -205 | G30: ='C5C'!G86 -> 1597795 | H30: =D30/12*3 -> 74 | I30: -1597721 | J30: -21590.82432 | K30: =G30*12/3 -> 6391180
A31: Swimming pools | I31: 0
A32: Community halls | I32: 0
A33: Libraries | I33: 0
A34: Recreational facilities | D34: 18029000 | F34: 1062000 | G34: ='C5C'!G85-SC13b!G40 -> 0 | H34: =D34/12*3 -> 4507250 | I34: 4507250 | J34: 1 | K34: =G34*12/3 -> 0
A35: Fire, safety & emergency | D35: =[9]C5C!D99 -> 601788 | F35: ='C5C'!F99 -> 0 | G35: ='C5C'!G99 -> 0 | H35: =D35/12*3 -> 150447 | I35: 150447 | J35: 1 | K35: =G35*12/3 -> 0
A36: Security and policing | I36: 0
A37: Buses | I37: 0
A38: Clinics | I38: 0
A39: Museums & Art Galleries | I39: 0
A40: Cemeteries | I40: 0
A41: Social rental housing | I41: =H41-G41 -> 0 | J41: =IF(I41=0,"",I41/H41) -> 
A42: Other | I42: 0
A43: Heritage assets | C43: =SUM(C44:C45) -> 0 | D43: 0 | E43: 0 | F43: 0 | G43: 0 | H43: 0 | I43: 0 | K43: =SUM(K44:K45) -> 0
A44: Buildings | I44: 0
A45: Other | I45: 0
I46: 0
A47: Investment properties | C47: =SUM(C48:C49) -> 0 | D47: 0 | E47: 0 | F47: 0 | G47: 0 | H47: 0 | I47: 0 | K47: =SUM(K48:K49) -> 0
A48: Housing development | I48: 0
A49: Other | I49: 0
A50: Other assets | C50: =SUM(C51:C62) -> 0 | D50: 27031739 | E50: 0 | F50: 19150 | G50: 19150 | H50: 6757934.75 | I50: 6738784.75 | J50: 0.997166294 | K50: 76600
A51: General vehicles | I51: 0
A52: Specialised vehicles | C52: =C78 -> 0 | D52: 0 | E52: 0 | F52: 0 | G52: 0 | H52: 0 | I52: 0 | K52: =K78 -> 0
A53: Plant & equipment | I53: 0
A54: Computers - hardware/equipment | I54: 0
A55: Furniture and other office equipment | I55: 0 | K55: =G55*12/3 -> 0
A56: Abattoirs | I56: 0
A57: Markets | I57: 0
A58: Civic Land and Buildings | I58: 0
A59: Other Buildings | I59: 0
A60: Other Land | I60: 0
A61: Surplus Assets - (Investment or Inventory) | I61: 0
A62: Other | D62: =[9]C5C!D8+[9]C5C!D41-[9]SC13b!D59 -> 27031739 | F62: ='C5C'!F8 -> 19150 | G62: ='C5C'!G8 -> 19150 | H62: =D62/12*3 -> 6757934.75 | I62: 6738784.75 | J62: 0.997166294 | K62: =G62*12/3 -> 76600
A64: Agricultural assets | C64: =SUM(C65:C66) -> 0 | D64: 0 | E64: 0 | F64: 0 | G64: 0 | H64: 0 | I64: =H64-G64 -> 0 | K64: =SUM(K65) -> 0
A65: List sub-class | I65: =H65-G65 -> 0
I66: =H66-G66 -> 0
J67: =IF(I67=0,"",I67/H67) -> 
A68: Biological assets | C68: =SUM(C69:C70) -> 0 | D68: 0 | E68: 0 | F68: 0 | G68: 0 | H68: 0 | I68: =H68-G68 -> 0 | J68: =IF(I68=0,"",I68/H68) ->  | K68: =SUM(K69) -> 0
A69: List sub-class | I69: =H69-G69 -> 0 | J69: =IF(I69=0,"",I69/H69) -> 
I70: =H70-G70 -> 0 | J70: =IF(I70=0,"",I70/H70) -> 
A72: Intangibles | C72: =SUM(C73:C74) -> 0 | D72: 0 | E72: 0 | F72: 0 | G72: 0 | H72: 0 | I72: =H72-G72 -> 0 | J72: =IF(I72=0,"",I72/H72) ->  | K72: =SUM(K73:K74) -> 0
A73: Computers - software & programming | I73: =H73-G73 -> 0 | J73: =IF(I73=0,"",I73/H73) -> 
A74: Other | I74: =H74-G74 -> 0 | J74: =IF(I74=0,"",I74/H74) -> 
A76: Total Capital Expenditure on new assets | B76: 1 | C76: =C7+C28+C43+C47+C50+C64+C68+C72 -> 0 | D76: 102434997 | E76: 0 | F76: 8086254 | G76: 19515254 | H76: 25608749.25 | I76: 6093495.25 | J76: 0.237945836 | K76: =K7+K28+K43+K47+K50+K64+K68+K72 -> 78061016
A78: Specialised vehicles | C78: =SUM(C79:C82) -> 0 | D78: 0 | E78: 0 | F78: 0 | G78: 0 | H78: 0 | I78: =H78-G78 -> 0 | J78: =IF(I78=0,"",I78/H78) ->  | K78: 0
A79: Refuse | I79: =H79-G79 -> 0 | J79: =IF(I79=0,"",I79/H79) -> 
A80: Fire | I80: =H80-G80 -> 0 | J80: =IF(I80=0,"",I80/H80) -> 
A81: Conservancy | I81: =H81-G81 -> 0 | J81: =IF(I81=0,"",I81/H81) -> 
A82: Ambulances | I82: =H82-G82 -> 0 | J82: =IF(I82=0,"",I82/H82) -> 
A83: =head27a -> References
A84: 1. Total Capital Expenditure on new assets (SC13a) plus Total Capital Expenditure on renewal of existing assets (SC13b) must reconcile to total capital expenditure in Table C5
A86: check balance | C86: =C76+SC13b!C76-'C5-Capex'!C40 -> 0 | D86: =D76+SC13b!D76-'C5-Capex'!D40 -> 0 | E86: =E76+SC13b!E76-'C5-Capex'!E40 -> 0 | F86: =F76+SC13b!F76-'C5-Capex'!F40 -> 0 | G86: =G76+SC13b!G76-'C5-Capex'!G40 -> 0 | H86: =H76+SC13b!H76-'C5-Capex'!H40 -> 0 | K86: =K76+SC13b!K76-'C5-Capex'!K40 -> 0

Sheet SC13b
A1: =muni& " - "&S71Sb& " - "&Head57 -> FS184 Matjhabeng - Supporting Table SC13b Monthly Budget Statement - capital expenditure on renewal of existing assets by asset class - M03 September
A2: =desc -> Description | B2: =head27 -> Ref | C2: =Head1 -> 2014/15 | D2: =Head2 -> Budget Year 2015/16
C3: =Head5 -> Audited Outcome | D3: =Head6 -> Original Budget | E3: =Head7 -> Adjusted Budget | F3: =Head38 -> Monthly actual | G3: =Head39 -> YearTD actual | H3: =Head40 -> YearTD budget | I3: =Head41 -> YTD variance | J3: =Head41 -> YTD variance | K3: =Head8 -> Full Year Forecast
A4: R thousands | B4: 1 | J4: %
A5: Capital expenditure on renewal of existing assets by Asset Class/Sub-class
A7: Infrastructure | C7: =C8+C11+C15+C19+C22 -> 0 | D7: 8000000 | E7: 0 | F7: 0 | G7: 0 | H7: 2000000 | I7: =H7-G7 -> 2000000 | J7: =IF(I7=0,"",I7/H7) -> 1 | K7: =K8+K11+K15+K19+K22 -> 0
A8: Infrastructure - Road transport | C8: =SUM(C9:C10) -> 0 | D8: 0 | E8: 0 | F8: 0 | G8: 0 | H8: 0 | I8: 0 | K8: =SUM(K9:K10) -> 0
A9: Roads, Pavements & Bridges | I9: 0
A10: Storm water | I10: 0
A11: Infrastructure - Electricity | C11: =SUM(C12:C14) -> 0 | D11: 0 | E11: 0 | F11: 0 | G11: 0 | H11: 0 | I11: 0 | K11: =SUM(K12:K14) -> 0
A12: Generation | I12: 0
A13: Transmission & Reticulation | I13: 0
A14: Street Lighting | I14: 0
A15: Infrastructure - Water | C15: =SUM(C16:C18) -> 0 | D15: 0 | E15: 0 | F15: 0 | G15: 0 | H15: 0 | I15: 0 | K15: =SUM(K16:K18) -> 0
A16: Dams & Reservoirs | I16: 0
A17: Water purification | I17: 0
A18: Reticulation | I18: 0
A19: Infrastructure - Sanitation | C19: =SUM(C20:C21) -> 0 | D19: 0 | E19: 0 | F19: 0 | G19: 0 | H19: 0 | I19: 0 | K19: =SUM(K20:K21) -> 0
A20: Reticulation | I20: 0
A21: Sewerage purification | I21: 0
A22: Infrastructure - Other | C22: =SUM(C23:C26) -> 0 | D22: 8000000 | E22: 0 | F22: 0 | G22: 0 | H22: 2000000 | I22: 2000000 | J22: 1 | K22: =SUM(K23:K26) -> 0
A23: Waste Management | D23: 8000000 | G23: =F23 -> 0 | H23: =D23/12*3 -> 2000000 | I23: 2000000 | J23: 1 | K23: =G23*12/3 -> 0
A24: Transportation | I24: 0
A25: Gas | I25: 0
A26: Other | I26: 0
A28: Community | C28: =SUM(C29:C42) -> 0 | D28: 29103000 | E28: 0 | F28: 0 | G28: 0 | H28: 7275750 | I28: 7275750 | J28: 1 | K28: =SUM(K29:K42) -> 0
A29: Parks & gardens | I29: 0
A30: Sportsfields & stadia | I30: 0
A31: Swimming pools | I31: 0
A32: Community halls | I32: 0
A33: Libraries | I33: 0
A34: Recreational facilities | I34: 0
A35: Fire, safety & emergency | I35: 0
A36: Security and policing | I36: 0
A37: Buses | I37: 0
A38: Clinics | I38: 0
A39: Museums & Art Galleries | I39: 0
A40: Cemeteries | D40: 29103000 | G40: =F40 -> 0 | H40: =D40/12*3 -> 7275750 | I40: 7275750 | J40: 1 | K40: =G40*12/3 -> 0
A41: Social rental housing | I41: 0
A42: Other | I42: 0
A43: Heritage assets | C43: =SUM(C44:C45) -> 0 | D43: 0 | E43: 0 | F43: 0 | G43: 0 | H43: 0 | I43: 0 | K43: =SUM(K44:K45) -> 0
A44: Buildings | I44: 0
A45: Other | I45: 0
I46: 0
A47: Investment properties | C47: =SUM(C48:C49) -> 0 | D47: 0 | E47: 0 | F47: 0 | G47: 0 | H47: 0 | I47: 0 | K47: =SUM(K48:K49) -> 0
A48: Housing development | I48: 0
A49: Other | I49: 0
A50: Other assets | C50: =SUM(C51:C62) -> 0 | D50: 6913000 | E50: 0 | F50: 0 | G50: 0 | H50: 1728250 | I50: 1728250 | J50: 1 | K50: 0
A51: General vehicles | I51: 0
A52: Specialised vehicles | C52: =C78 -> 0 | D52: 0 | E52: 0 | F52: 0 | G52: 0 | H52: 0 | I52: 0 | K52: =K78 -> 0
A53: Plant & equipment | I53: 0
A54: Computers - hardware/equipment | I54: 0
A55: Furniture and other office equipment | I55: 0
A56: Abattoirs | I56: 0
A57: Markets | I57: 0
A58: Civic Land and Buildings | I58: 0
A59: Other Buildings | D59: 6913000 | G59: =F59 -> 0 | H59: =D59/12*3 -> 1728250 | I59: 1728250 | J59: 1 | K59: =G59*12/3 -> 0
A60: Other Land | I60: 0
A61: Surplus Assets - (Investment or Inventory) | I61: 0
A62: Other | I62: 0
A64: Agricultural assets | C64: =SUM(C65:C66) -> 0 | D64: 0 | E64: 0 | F64: 0 | G64: 0 | H64: 0 | I64: =H64-G64 -> 0 | K64: =SUM(K65) -> 0
A65: List sub-class | I65: =H65-G65 -> 0
I66: =H66-G66 -> 0
J67: =IF(I67=0,"",I67/H67) -> 
A68: Biological assets | C68: =SUM(C69:C70) -> 0 | D68: 0 | E68: 0 | F68: 0 | G68: 0 | H68: 0 | I68: =H68-G68 -> 0 | J68: =IF(I68=0,"",I68/H68) ->  | K68: =SUM(K69) -> 0
A69: List sub-class | I69: =H69-G69 -> 0 | J69: =IF(I69=0,"",I69/H69) -> 
I70: =H70-G70 -> 0 | J70: =IF(I70=0,"",I70/H70) -> 
A72: Intangibles | C72: =SUM(C73:C74) -> 0 | D72: 0 | E72: 0 | F72: 0 | G72: 0 | H72: 0 | I72: =H72-G72 -> 0 | J72: =IF(I72=0,"",I72/H72) ->  | K72: =SUM(K73:K74) -> 0
A73: Computers - software & programming | I73: =H73-G73 -> 0 | J73: =IF(I73=0,"",I73/H73) -> 
A74: Other | I74: =H74-G74 -> 0 | J74: =IF(I74=0,"",I74/H74) -> 
A76: Total Capital Expenditure on renewal of existing assets | B76: 1 | C76: =C7+C28+C43+C47+C50+C64+C68+C72 -> 0 | D76: 44016000 | E76: 0 | F76: 0 | G76: 0 | H76: 11004000 | I76: =H76-G76 -> 11004000 | J76: =IF(I76=0,"",I76/H76) -> 1 | K76: =K7+K28+K43+K47+K50+K64+K68+K72 -> 0
A78: Specialised vehicles | C78: =SUM(C79:C82) -> 0 | D78: 0 | E78: 0 | F78: 0 | G78: 0 | H78: 0 | I78: =H78-G78 -> 0 | J78: =IF(I78=0,"",I78/H78) ->  | K78: 0
A79: Refuse | I79: =H79-G79 -> 0 | J79: =IF(I79=0,"",I79/H79) -> 
A80: Fire | I80: =H80-G80 -> 0 | J80: =IF(I80=0,"",I80/H80) -> 
A81: Conservancy | I81: =H81-G81 -> 0 | J81: =IF(I81=0,"",I81/H81) -> 
A82: Ambulances | I82: =H82-G82 -> 0 | J82: =IF(I82=0,"",I82/H82) -> 
A83: =head27a -> References
A84: 1. Total Capital Expenditure on new assets (SC13a) plus Total Capital Expenditure on renewal of existing assets (SC13b) must reconcile to total capital expenditure in Table C5
A86: check balance | C86: =C76+SC13a!C76-'C5-Capex'!C40 -> 0 | D86: =D76+SC13a!D76-'C5-Capex'!D40 -> 0 | E86: =E76+SC13a!E76-'C5-Capex'!E40 -> 0 | F86: =F76+SC13a!F76-'C5-Capex'!F40 -> 0 | G86: =G76+SC13a!G76-'C5-Capex'!G40 -> 0 | H86: =H76+SC13a!H76-'C5-Capex'!H40 -> 0 | K86: =K76+SC13a!K76-'C5-Capex'!K40 -> 0

Sheet SC13c
A1: =muni& " - "&S71Sc& " - "&Head57 -> FS184 Matjhabeng - Supporting Table SC13c Monthly Budget Statement - expenditure on repairs and maintenance by asset class - M03 September
A2: =desc -> Description | B2: =head27 -> Ref | C2: =Head1 -> 2014/15 | D2: =Head2 -> Budget Year 2015/16
C3: =Head5 -> Audited Outcome | D3: =Head6 -> Original Budget | E3: =Head7 -> Adjusted Budget | F3: =Head38 -> Monthly actual | G3: =Head39 -> YearTD actual | H3: =Head40 -> YearTD budget | I3: =Head41 -> YTD variance | J3: =Head41 -> YTD variance | K3: =Head8 -> Full Year Forecast
A4: R thousands | B4: 1 | J4: %
A5: Repairs and maintenance expenditure by Asset Class/Sub-class
A7: Infrastructure | C7: =C8+C11+C15+C19+C22 -> 0 | D7: 185653058 | E7: 0 | F7: 2098450 | G7: 3945450 | H7: 46413264.5 | I7: =H7-G7 -> 42467814.5 | J7: =IF(I7=0,"",I7/H7) -> 0.9149930512 | K7: =K8+K11+K15+K19+K22 -> 15781800
A8: Infrastructure - Road transport | C8: =SUM(C9:C10) -> 0 | D8: 65311841 | E8: 0 | F8: 295010 | G8: 399010 | H8: 16327960.25 | I8: 15928950.25 | J8: 0.9755627774 | K8: =SUM(K9:K10) -> 1596040
A9: Roads, Pavements & Bridges | D9: =65311841-17569443 -> 47742398 | F9: 295010 | G9: =F9 -> 295010 | H9: =D9/12*3 -> 11935599.5 | I9: 11640589.5 | J9: 0.9752831854 | K9: =G9*12/3 -> 1180040
A10: Storm water | D10: 17569443 | F10: 0 | G10: =F10+104000 -> 104000 | H10: =D10/12*3 -> 4392360.75 | I10: 4288360.75 | J10: 0.9763225277 | K10: =G10*12/3 -> 416000
A11: Infrastructure - Electricity | C11: =SUM(C12:C14) -> 0 | D11: 50237277 | E11: 0 | F11: 812549 | G11: 1576549 | H11: 12559319.25 | I11: 10982770.25 | J11: 0.8744717792 | K11: =SUM(K12:K14) -> 6306196
A12: Generation | G12: =F12 -> 0 | H12: =D12/12*3 -> 0 | I12: 0 | K12: =G12*12/3 -> 0
A13: Transmission & Reticulation | D13: =50237277-1577642 -> 48659635 | F13: 639563 | G13: =F13+316000+417000 -> 1372563 | H13: =D13/12*3 -> 12164908.75 | I13: 10792345.75 | J13: 0.8871703004 | K13: =G13*12/3 -> 5490252
A14: Street Lighting | D14: 1577642 | F14: 172986 | G14: =F14+31000 -> 203986 | H14: =D14/12*3 -> 394410.5 | I14: 190424.5 | J14: 0.4828078867 | K14: =G14*12/3 -> 815944
A15: Infrastructure - Water | C15: =SUM(C16:C18) -> 0 | D15: 26225951 | E15: 0 | F15: 809174 | G15: 1575174 | H15: 6556487.75 | I15: 4981313.75 | J15: 0.7597533832 | K15: =SUM(K16:K18) -> 6300696
A16: Dams & Reservoirs | G16: =F16 -> 0 | H16: =D16/12*3 -> 0 | I16: 0 | K16: =G16*12/3 -> 0
A17: Water purification | F17: 809174 | G17: 809174 | H17: =D17/12*3 -> 0 | I17: -809174 | K17: =G17*12/3 -> 3236696
A18: Reticulation | D18: =58698829-17880065-14592813 -> 26225951 | F18: 0 | G18: =F18+294000+472000 -> 766000 | H18: =D18/12*3 -> 6556487.75 | I18: 5790487.75 | J18: 0.8831691556 | K18: =G18*12/3 -> 3064000
A19: Infrastructure - Sanitation | C19: =SUM(C20:C21) -> 0 | D19: 32472878 | E19: 0 | F19: 178609 | G19: 346609 | H19: 8118219.5 | I19: 7771610.5 | J19: 0.9573048006 | K19: =SUM(K20:K21) -> 1386436
A20: Reticulation | G20: =F20 -> 0 | H20: =D20/12*3 -> 0 | I20: 0 | K20: =G20*12/3 -> 0
A21: Sewerage purification | D21: =17880065+14592813 -> 32472878 | F21: 178609 | G21: =F21+146000+22000 -> 346609 | H21: =D21/12*3 -> 8118219.5 | I21: 7771610.5 | J21: 0.9573048006 | K21: =G21*12/3 -> 1386436
A22: Infrastructure - Other | C22: =SUM(C23:C26) -> 0 | D22: 11405111 | E22: 0 | F22: 3108 | G22: 48108 | H22: 2851277.75 | I22: 2803169.75 | J22: 0.9831275645 | K22: =SUM(K23:K26) -> 192432
A23: Waste Management | D23: 11405111 | G23: =F23 -> 0 | H23: =D23/12*3 -> 2851277.75 | I23: 2851277.75 | J23: 1 | K23: =G23*12/3 -> 0
A24: Transportation | G24: 0 | H24: =D24/12*3 -> 0 | I24: 0 | K24: =G24*12/3 -> 0
A25: Gas | G25: 0 | H25: =D25/12*3 -> 0 | I25: 0 | K25: =G25*12/3 -> 0
A26: Other | F26: 3108 | G26: =F26+45000 -> 48108 | H26: =D26/12*3 -> 0 | I26: -48108 | K26: =G26*12/3 -> 192432
A28: Community | C28: =SUM(C29:C42) -> 0 | D28: 4184161 | E28: 0 | F28: 167935 | G28: 169935 | H28: 1046040.25 | I28: 876105.25 | J28: 0.8375444922 | K28: =SUM(K29:K42) -> 679740
A29: Parks & gardens | D29: 3428081 | F29: 118000 | G29: =F29 -> 118000 | H29: =D29/12*3 -> 857020.25 | I29: 739020.25 | J29: 0.8623136384 | K29: =G29*12/3 -> 472000
A30: Sportsfields & stadia | G30: 0 | H30: 0 | I30: 0 | K30: 0
A31: Swimming pools | G31: 0 | H31: 0 | I31: 0 | K31: 0
A32: Community halls | F32: 2438 | G32: 2438 | H32: 0 | I32: -2438 | K32: 9752
A33: Libraries | F33: 756 | G33: 756 | H33: 0 | I33: -756 | K33: 3024
A34: Recreational facilities | G34: 0 | H34: 0 | I34: 0 | K34: 0
A35: Fire, safety & emergency | F35: =8818+29276 -> 38094 | G35: 38094 | H35: 0 | I35: -38094 | K35: 152376
A36: Security and policing | F36: 0 | G36: =F36+2000 -> 2000 | H36: 0 | I36: -2000 | K36: 8000
A37: Buses | G37: 0 | H37: 0 | I37: 0 | K37: 0
A38: Clinics | G38: 0 | H38: 0 | I38: 0 | K38: 0
A39: Museums & Art Galleries | G39: 0 | H39: 0 | I39: 0 | K39: 0
A40: Cemeteries | G40: 0 | H40: 0 | I40: 0 | K40: 0
A41: Social rental housing | G41: 0 | H41: 0 | I41: 0 | K41: 0
A42: Other | D42: 756080 | F42: =8647 -> 8647 | G42: 8647 | H42: 189020 | I42: 180373 | J42: 0.9542535181 | K42: 34588
A43: Heritage assets | C43: =SUM(C44:C45) -> 0 | D43: 0 | E43: 0 | F43: 0 | G43: 0 | H43: 0 | I43: 0 | K43: =SUM(K44:K45) -> 0
A44: Buildings | G44: =F44 -> 0 | H44: =D44/12*3 -> 0 | I44: 0 | K44: =G44*12/3 -> 0
A45: Other | G45: 0 | H45: =D45/12*3 -> 0 | I45: 0 | K45: =G45*12/3 -> 0
I46: 0
A47: Investment properties | C47: =SUM(C48:C49) -> 0 | D47: 0 | E47: 0 | F47: 169285 | G47: 442285 | H47: 0 | I47: -442285 | K47: =SUM(K48:K49) -> 1769140
A48: Housing development | F48: 169285 | G48: =F48+13000+260000 -> 442285 | H48: =D48/12*3 -> 0 | I48: -442285 | K48: =G48*12/3 -> 1769140
A49: Other | G49: =F49 -> 0 | H49: =D49/12*3 -> 0 | I49: 0 | K49: =G49*12/3 -> 0
A50: Other assets | C50: =SUM(C51:C62) -> 0 | D50: 26852000 | E50: 0 | F50: 23186 | G50: 63186 | H50: 6713000 | I50: 6649814 | J50: 0.9905875168 | K50: 252744
A51: General vehicles | I51: 0
A52: Specialised vehicles | C52: =C78 -> 0 | D52: 0 | E52: 0 | F52: 0 | G52: 0 | H52: 0 | I52: 0 | K52: =K78 -> 0
A53: Plant & equipment | G53: =F53 -> 0 | H53: =D53/12*3 -> 0 | I53: 0 | K53: =G53*12/3 -> 0
A54: Computers - hardware/equipment | F54: 12832 | G54: =F54+15000 -> 27832 | H54: 0 | I54: -27832 | K54: 111328
A55: Furniture and other office equipment | G55: 0 | H55: 0 | I55: 0 | K55: 0
A56: Abattoirs | G56: 0 | H56: 0 | I56: 0 | K56: 0
A57: Markets | G57: 0 | H57: 0 | I57: 0 | K57: 0
A58: Civic Land and Buildings | G58: 0 | H58: 0 | I58: 0 | K58: 0
A59: Other Buildings | G59: 0 | H59: 0 | I59: 0 | K59: 0
A60: Other Land | G60: 0 | H60: 0 | I60: 0 | K60: 0
A61: Surplus Assets - (Investment or Inventory) | G61: 0 | H61: 0 | I61: 0 | K61: 0
A62: Other | D62: 26852000 | F62: =5304+5050 -> 10354 | G62: =F62+14000+11000 -> 35354 | H62: 6713000 | I62: 6677646 | J62: 0.9947335022 | K62: 141416
A64: Agricultural assets | C64: =SUM(C65:C66) -> 0 | D64: 0 | E64: 0 | F64: 0 | G64: 0 | H64: 0 | I64: =H64-G64 -> 0 | K64: =SUM(K65) -> 0
A65: List sub-class | I65: =H65-G65 -> 0
I66: =H66-G66 -> 0
J67: =IF(I67=0,"",I67/H67) -> 
A68: Biological assets | C68: =SUM(C69:C70) -> 0 | D68: 0 | E68: 0 | F68: 0 | G68: 0 | H68: 0 | I68: =H68-G68 -> 0 | J68: =IF(I68=0,"",I68/H68) ->  | K68: =SUM(K69) -> 0
A69: List sub-class | I69: =H69-G69 -> 0 | J69: =IF(I69=0,"",I69/H69) -> 
I70: =H70-G70 -> 0 | J70: =IF(I70=0,"",I70/H70) -> 
A72: Intangibles | C72: =SUM(C73:C74) -> 0 | D72: 0 | E72: 0 | F72: 0 | G72: 0 | H72: 0 | I72: =H72-G72 -> 0 | J72: =IF(I72=0,"",I72/H72) ->  | K72: =SUM(K73:K74) -> 0
A73: Computers - software & programming | I73: =H73-G73 -> 0 | J73: =IF(I73=0,"",I73/H73) -> 
A74: Other | I74: =H74-G74 -> 0 | J74: =IF(I74=0,"",I74/H74) -> 
A76: Total Repairs and Maintenance Expenditure | C76: =C7+C28+C43+C47+C50+C64+C68+C72 -> 0 | D76: 216689219 | E76: 0 | F76: 2458856 | G76: 4620856 | H76: 54172304.75 | I76: =H76-G76 -> 49551448.75 | J76: =IF(I76=0,"",I76/H76) -> 0.9147007678 | K76: =K7+K28+K43+K47+K50+K64+K68+K72 -> 18483424
A78: Specialised vehicles | C78: =SUM(C79:C82) -> 0 | D78: 0 | E78: 0 | F78: 0 | G78: 0 | H78: 0 | I78: =H78-G78 -> 0 | J78: =IF(I78=0,"",I78/H78) ->  | K78: 0
A79: Refuse | I79: =H79-G79 -> 0 | J79: =IF(I79=0,"",I79/H79) -> 
A80: Fire | I80: =H80-G80 -> 0 | J80: =IF(I80=0,"",I80/H80) -> 
A81: Conservancy | I81: =H81-G81 -> 0 | J81: =IF(I81=0,"",I81/H81) -> 
A82: Ambulances | I82: =H82-G82 -> 0 | J82: =IF(I82=0,"",I82/H82) -> 

Sheet SC13d
A1: =muni& " - "&S71Sd& " - "&Head57 -> FS184 Matjhabeng - Supporting Table SC13d Monthly Budget Statement - depreciation by asset class - M03 September
A2: =desc -> Description | B2: =head27 -> Ref | C2: =Head1 -> 2014/15 | D2: =Head2 -> Budget Year 2015/16
C3: =Head5 -> Audited Outcome | D3: =Head6 -> Original Budget | E3: =Head7 -> Adjusted Budget | F3: =Head38 -> Monthly actual | G3: =Head39 -> YearTD actual | H3: =Head40 -> YearTD budget | I3: =Head41 -> YTD variance | J3: =Head41 -> YTD variance | K3: =Head8 -> Full Year Forecast
A4: R thousands | B4: 1 | J4: %
A5: Depreciation by Asset Class/Sub-class
A7: Infrastructure | C7: =C8+C11+C15+C19+C22 -> 0 | D7: 192680000 | E7: 0 | F7: 0 | G7: 0 | H7: 48170000 | I7: =H7-G7 -> 48170000 | J7: =IF(I7=0,"",I7/H7) -> 1 | K7: =K8+K11+K15+K19+K22 -> 0
A8: Infrastructure - Road transport | C8: =SUM(C9:C10) -> 0 | D8: 0 | E8: 0 | F8: 0 | G8: 0 | H8: 0 | I8: 0 | K8: =SUM(K9:K10) -> 0
A9: Roads, Pavements & Bridges | I9: 0
A10: Storm water | I10: 0
A11: Infrastructure - Electricity | C11: =SUM(C12:C14) -> 0 | D11: 0 | E11: 0 | F11: 0 | G11: 0 | H11: 0 | I11: 0 | K11: =SUM(K12:K14) -> 0
A12: Generation | I12: 0
A13: Transmission & Reticulation | I13: 0
A14: Street Lighting | I14: 0
A15: Infrastructure - Water | C15: =SUM(C16:C18) -> 0 | D15: 0 | E15: 0 | F15: 0 | G15: 0 | H15: 0 | I15: 0 | K15: =SUM(K16:K18) -> 0
A16: Dams & Reservoirs | I16: 0
A17: Water purification | I17: 0
A18: Reticulation | I18: 0
A19: Infrastructure - Sanitation | C19: =SUM(C20:C21) -> 0 | D19: 0 | E19: 0 | F19: 0 | G19: 0 | H19: 0 | I19: 0 | K19: =SUM(K20:K21) -> 0
A20: Reticulation | I20: 0
A21: Sewerage purification | I21: 0
A22: Infrastructure - Other | C22: =SUM(C23:C26) -> 0 | D22: 192680000 | E22: 0 | F22: 0 | G22: 0 | H22: 48170000 | I22: 48170000 | J22: 1 | K22: =SUM(K23:K26) -> 0
A23: Waste Management | I23: 0
A24: Transportation | I24: 0
A25: Gas | I25: 0
A26: Other | D26: 192680000 | G26: =F26 -> 0 | H26: =D26/12*3 -> 48170000 | I26: 48170000 | J26: 1 | K26: =G26*12/3 -> 0
A28: Community | C28: =SUM(C29:C42) -> 0 | D28: 0 | E28: 0 | F28: 0 | G28: 0 | H28: 0 | I28: 0 | K28: =SUM(K29:K42) -> 0
A29: Parks & gardens | I29: 0
A30: Sportsfields & stadia | I30: 0
A31: Swimming pools | I31: 0
A32: Community halls | I32: 0
A33: Libraries | I33: 0
A34: Recreational facilities | I34: 0
A35: Fire, safety & emergency | I35: 0
A36: Security and policing | I36: 0
A37: Buses | I37: 0
A38: Clinics | I38: 0
A39: Museums & Art Galleries | I39: 0
A40: Cemeteries | I40: 0
A41: Social rental housing | I41: 0
A42: Other | I42: 0
A43: Heritage assets | C43: =SUM(C44:C45) -> 0 | D43: 0 | E43: 0 | F43: 0 | G43: 0 | H43: 0 | I43: 0 | K43: =SUM(K44:K45) -> 0
A44: Buildings | I44: 0
A45: Other | I45: 0
I46: 0
A47: Investment properties | C47: =SUM(C48:C49) -> 0 | D47: 0 | E47: 0 | F47: 0 | G47: 0 | H47: 0 | I47: 0 | K47: =SUM(K48:K49) -> 0
A48: Housing development | I48: 0
A49: Other | I49: 0
A50: Other assets | C50: =SUM(C51:C62) -> 0 | D50: 0 | E50: 0 | F50: 0 | G50: 0 | H50: 0 | I50: 0 | K50: 0
A51: General vehicles | I51: 0
A52: Specialised vehicles | C52: =C78 -> 0 | D52: 0 | E52: 0 | F52: 0 | G52: 0 | H52: 0 | I52: 0 | K52: =K78 -> 0
A53: Plant & equipment | I53: 0
A54: Computers - hardware/equipment | I54: 0
A55: Furniture and other office equipment | I55: 0
A56: Abattoirs | I56: 0
A57: Markets | I57: 0
A58: Civic Land and Buildings | I58: 0
A59: Other Buildings | I59: 0
A60: Other Land | I60: 0
A61: Surplus Assets - (Investment or Inventory) | I61: 0
A62: Other | I62: 0
A64: Agricultural assets | C64: =SUM(C65:C66) -> 0 | D64: 0 | E64: 0 | F64: 0 | G64: 0 | H64: 0 | I64: =H64-G64 -> 0 | K64: =SUM(K65) -> 0
A65: List sub-class | I65: =H65-G65 -> 0
I66: =H66-G66 -> 0
J67: =IF(I67=0,"",I67/H67) -> 
A68: Biological assets | C68: =SUM(C69:C70) -> 0 | D68: 0 | E68: 0 | F68: 0 | G68: 0 | H68: 0 | I68: =H68-G68 -> 0 | J68: =IF(I68=0,"",I68/H68) ->  | K68: =SUM(K69) -> 0
A69: List sub-class | I69: =H69-G69 -> 0 | J69: =IF(I69=0,"",I69/H69) -> 
I70: =H70-G70 -> 0 | J70: =IF(I70=0,"",I70/H70) -> 
A72: Intangibles | C72: =SUM(C73:C74) -> 0 | D72: 0 | E72: 0 | F72: 0 | G72: 0 | H72: 0 | I72: =H72-G72 -> 0 | J72: =IF(I72=0,"",I72/H72) ->  | K72: =SUM(K73:K74) -> 0
A73: Computers - software & programming | I73: =H73-G73 -> 0 | J73: =IF(I73=0,"",I73/H73) -> 
A74: Other | I74: =H74-G74 -> 0 | J74: =IF(I74=0,"",I74/H74) -> 
A76: Total Depreciation | C76: =C7+C28+C43+C47+C50+C64+C68+C72 -> 0 | D76: 192680000 | E76: 0 | F76: 0 | G76: 0 | H76: 48170000 | I76: =H76-G76 -> 48170000 | J76: =IF(I76=0,"",I76/H76) -> 1 | K76: =K7+K28+K43+K47+K50+K64+K68+K72 -> 0
A78: Specialised vehicles | C78: =SUM(C79:C82) -> 0 | D78: 0 | E78: 0 | F78: 0 | G78: 0 | H78: 0 | I78: =H78-G78 -> 0 | J78: =IF(I78=0,"",I78/H78) ->  | K78: 0
A79: Refuse | I79: =H79-G79 -> 0 | J79: =IF(I79=0,"",I79/H79) -> 
A80: Fire | I80: =H80-G80 -> 0 | J80: =IF(I80=0,"",I80/H80) -> 
A81: Conservancy | I81: =H81-G81 -> 0 | J81: =IF(I81=0,"",I81/H81) -> 
A82: Ambulances | I82: =H82-G82 -> 0 | J82: =IF(I82=0,"",I82/H82) -> 

Sheet SC71charts
A1: ='Template names'!B101 -> Chart C1 2015/16 Capital Expenditure Monthly Trend: actual v target
A2: Month | B2: ='SC12'!B2 -> 2014/15 | C2: ='SC12'!C3 -> Original Budget | D2: ='SC12'!D3 -> Adjusted Budget | E2: ='SC12'!E3 -> Monthly actual
A3: =LEFT('SC12'!A6,3) -> Jul | B3: ='SC12'!B6 -> 0 | C3: ='SC12'!C6 -> 12204250 | D3: ='SC12'!D6 -> 0 | E3: ='SC12'!E6 -> 5235920
A4: =LEFT('SC12'!A7,3) -> Aug | B4: ='SC12'!B7 -> 0 | C4: ='SC12'!C7 -> 12204250 | D4: ='SC12'!D7 -> 0 | E4: ='SC12'!E7 -> 6193174
A5: =LEFT('SC12'!A8,3) -> Sep | B5: ='SC12'!B8 -> 0 | C5: ='SC12'!C8 -> 12204250 | D5: ='SC12'!D8 -> 0 | E5: ='SC12'!E8 -> 8086000
A6: =LEFT('SC12'!A9,3) -> Oct | B6: ='SC12'!B9 -> 0 | C6: ='SC12'!C9 -> 12204250 | D6: ='SC12'!D9 -> 0 | E6: ='SC12'!E9 -> 0
A7: =LEFT('SC12'!A10,3) -> Nov | B7: ='SC12'!B10 -> 0 | C7: ='SC12'!C10 -> 12204250 | D7: ='SC12'!D10 -> 0 | E7: ='SC12'!E10 -> 0
A8: =LEFT('SC12'!A11,3) -> Dec | B8: ='SC12'!B11 -> 0 | C8: ='SC12'!C11 -> 12204250 | D8: ='SC12'!D11 -> 0 | E8: ='SC12'!E11 -> 0
A9: =LEFT('SC12'!A12,3) -> Jan | B9: ='SC12'!B12 -> 0 | C9: ='SC12'!C12 -> 12204250 | D9: ='SC12'!D12 -> 0 | E9: ='SC12'!E12 -> 0
A10: =LEFT('SC12'!A13,3) -> Feb | B10: ='SC12'!B13 -> 0 | C10: ='SC12'!C13 -> 12204250 | D10: ='SC12'!D13 -> 0 | E10: ='SC12'!E13 -> 0
A11: =LEFT('SC12'!A14,3) -> Mar | B11: ='SC12'!B14 -> 0 | C11: ='SC12'!C14 -> 12204250 | D11: ='SC12'!D14 -> 0 | E11: ='SC12'!E14 -> 0
A12: =LEFT('SC12'!A15,3) -> Apr | B12: ='SC12'!B15 -> 0 | C12: ='SC12'!C15 -> 12204250 | D12: ='SC12'!D15 -> 0 | E12: ='SC12'!E15 -> 0
A13: =LEFT('SC12'!A16,3) -> May | B13: ='SC12'!B16 -> 0 | C13: ='SC12'!C16 -> 12204250 | D13: ='SC12'!D16 -> 0 | E13: ='SC12'!E16 -> 0
A14: =LEFT('SC12'!A17,3) -> Jun | B14: ='SC12'!B17 -> 0 | C14: ='SC12'!C17 -> 12204250 | D14: ='SC12'!D17 -> 0 | E14: ='SC12'!E17 -> 0
A26: ='Template names'!B102 -> Chart C2 2015/16 Capital Expenditure: YTD actual v YTD target
A27: Month | B27: ='SC12'!F3 -> YearTD actual | C27: ='SC12'!G3 -> YearTD budget
A28: =LEFT('SC12'!A6,3) -> Jul | B28: ='SC12'!F6 -> 5235920 | C28: ='SC12'!G6 -> 12204250
A29: =LEFT('SC12'!A7,3) -> Aug | B29: ='SC12'!F7 -> 11429094 | C29: ='SC12'!G7 -> 24408500
A30: =LEFT('SC12'!A8,3) -> Sep | B30: ='SC12'!F8 -> 19515094 | C30: ='SC12'!G8 -> 36612750
A31: =LEFT('SC12'!A9,3) -> Oct | B31: ='SC12'!F9 ->  | C31: ='SC12'!G9 -> 48817000
A32: =LEFT('SC12'!A10,3) -> Nov | B32: ='SC12'!F10 ->  | C32: ='SC12'!G10 -> 61021250
A33: =LEFT('SC12'!A11,3) -> Dec | B33: ='SC12'!F11 ->  | C33: ='SC12'!G11 -> 73225500
A34: =LEFT('SC12'!A12,3) -> Jan | B34: ='SC12'!F12 ->  | C34: ='SC12'!G12 -> 85429750
A35: =LEFT('SC12'!A13,3) -> Feb | B35: ='SC12'!F13 ->  | C35: ='SC12'!G13 -> 97634000
A36: =LEFT('SC12'!A14,3) -> Mar | B36: ='SC12'!F14 ->  | C36: ='SC12'!G14 -> 109838250
A37: =LEFT('SC12'!A15,3) -> Apr | B37: ='SC12'!F15 ->  | C37: ='SC12'!G15 -> 122042500
A38: =LEFT('SC12'!A16,3) -> May | B38: ='SC12'!F16 ->  | C38: ='SC12'!G16 -> 134246750
A39: =LEFT('SC12'!A17,3) -> Jun | B39: ='SC12'!F17 ->  | C39: ='SC12'!G17 -> 146451000
A51: ='Template names'!B103 -> Chart C3 Aged Consumer Debtors Analysis
B52: ='SC3'!C3 -> 0-30 Days | C52: ='SC3'!D3 -> 31-60 Days | D52: ='SC3'!E3 -> 61-90 Days | E52: ='SC3'!F3 -> 91-120 Days | F52: ='SC3'!G3 -> 121-150 Dys | G52: ='SC3'!H3 -> 151-180 Dys | H52: ='SC3'!I3 -> 181 Dys-1 Yr | I52: ='SC3'!J3 -> Over 1Yr
A53: =Head2 -> Budget Year 2015/16 | B53: ='SC3'!C14 -> 123042603 | C53: ='SC3'!D14 -> 70392491.29 | D53: ='SC3'!E14 -> 66190137.2 | E53: ='SC3'!F14 -> 60439524.92 | F53: ='SC3'!G14 -> 55509050.11 | G53: ='SC3'!H14 -> 41460225.81 | H53: ='SC3'!I14 -> 273867437.7 | I53: ='SC3'!J14 -> 1140642733
A54: =Head1 -> 2014/15 | B54: ='SC3'!C15 -> 0 | C54: ='SC3'!D15 -> 0 | D54: ='SC3'!E15 -> 0 | E54: ='SC3'!F15 -> 0 | F54: ='SC3'!G15 -> 0 | G54: ='SC3'!H15 -> 0 | H54: ='SC3'!I15 -> 0 | I54: ='SC3'!J15 -> 0
A76: ='Template names'!B104 -> Chart C4 Consumer Debtors (total by Debtor Customer Category)
B77: =Head1 -> 2014/15 | C77: =Head2 -> Budget Year 2015/16
A78: ='SC3'!A17 -> Organs of State | B78: =C78*0.97 -> 24071314.39 | C78: ='SC3'!K17 -> 24815788.03
A79: ='SC3'!A18 -> Commercial | B79: =C79*0.97 -> 366318464.6 | C79: ='SC3'!K18 -> 377647901.6
A80: ='SC3'!A19 -> Households | B80: =C80*0.97 -> 1332117001 | C80: ='SC3'!K19 -> 1373316495
A81: ='SC3'!A20 -> Other | B81: =C81*0.97 -> 54091097.48 | C81: ='SC3'!K20 -> 55764018.02
A101: ='Template names'!B105 -> Chart C5 Aged Creditors Analysis
B102: ='SC4'!A6 -> Bulk Electricity | C102: ='SC4'!A7 -> Bulk Water | D102: ='SC4'!A8 -> PAYE deductions | E102: ='SC4'!A9 -> VAT (output less input) | F102: ='SC4'!A10 -> Pensions / Retirement deductions | G102: ='SC4'!A11 -> Loan repayments | H102: ='SC4'!A12 -> Trade Creditors | I102: ='SC4'!A13 -> Auditor General | J102: ='SC4'!A14 -> Other
A103: =A54 -> 2014/15 | B103: ='SC4'!L6 -> 0 | C103: ='SC4'!L7 -> 0 | D103: ='SC4'!L8 -> 0 | E103: ='SC4'!L9 -> 0 | F103: ='SC4'!L10 -> 0 | G103: ='SC4'!L11 -> 0 | H103: ='SC4'!L12 -> 0 | I103: ='SC4'!L13 -> 0 | J103: ='SC4'!L14 -> 0
A104: =A53 -> Budget Year 2015/16 | B104: ='SC4'!K6 -> 699402453 | C104: ='SC4'!K7 -> 1288109770 | D104: ='SC4'!K8 -> 0 | E104: ='SC4'!K9 -> 0 | F104: ='SC4'!K10 -> 0 | G104: ='SC4'!K11 -> 0 | H104: ='SC4'!K12 -> 73975432 | I104: ='SC4'!K13 -> 2310470 | J104: ='SC4'!K14 -> 0
